Workbook

Sheet resultat
C2: ANALYSE DU COMPTE DE RESULTATS | K2: Exercices précédents la période d'analyse
B3: =IF(ISBLANK(societe),"Inscrire le nom de l'entreprise ci-dessus"," ") -> Inscrire le nom de l'entreprise ci-dessus
B4: Unité monétaire : (€ ou K€) | D4: =IF(ISBLANK(activité),"Pour une entreprise de négoce : inscrire N, de production de biens : inscrire PB, de production de services : inscrire PS :"," ") -> Pour une entreprise de négoce : inscrire N, de production de biens : inscrire PB, de production de services : inscrire PS : | K4: =IF(AND(ca_5>0,ISBLANK(u))," renseigner l'unité monétaire choisie"," ") ->  | N4: =IF(AND(ca_5>0,ISBLANK(u)),1,0) -> 0 | O4: =IF(AND(ca_5>0,ISBLANK(activité)),1,0) -> 0
B6: Comment conduire une analyse financière | E6: =IF(AND(ca_1>1,du_1=0),"préciser la durée"," ") ->  | F6: =IF(AND(ca_2>1,du_2=0),"préciser la durée"," ") ->  | G6: =IF(AND(ca_3>1,du_3=0),"préciser la durée"," ") ->  | H6: =IF(AND(ca_4>1,du_4=0),"préciser la durée"," ") ->  | I6: =IF(AND(ca_5>1,du_5=0),"préciser la durée"," ") ->  | K6: =IF(AND(ca_5>0,ISBLANK(activité)),"renseigner l'activité principale exercée"," ") -> 
B8: Rubriques du compte de résultat | C8: Années : | E8: =IF(ISBLANK(d)," ",d+4) ->  | F8: =IF(ISBLANK(d)," ",d+3) ->  | G8: =IF(ISBLANK(d)," ",d+2) ->  | H8: =IF(ISBLANK(d)," ",d+1) ->  | K8: =IF(ISBLANK(d)," ",d-1) ->  | L8: =IF(ISBLANK(d)," ",d-2) ->  | M8: =IF(ISBLANK(d)," ",d-3) ->  | N8: =IF(ISBLANK(d)," ",d-4) ->  | O8: =IF(ISBLANK(d)," ",d-5) -> 
C9: Durée en mois : | J9: =IF(AND(ISBLANK(d),ca_5>0),1,0) -> 0
C10: Cerfa | E10: =IF(ISBLANK(u)," ",u) ->  | F10: =IF(ISBLANK(u)," ",u) ->  | G10: =IF(ISBLANK(u)," ",u) ->  | H10: =IF(ISBLANK(u)," ",u) ->  | I10: =IF(ISBLANK(u)," ",u) ->  | K10: =IF(ISBLANK(u)," ",u) ->  | L10: =IF(ISBLANK(u)," ",u) ->  | M10: =IF(ISBLANK(u)," ",u) ->  | N10: =IF(ISBLANK(u)," ",u) ->  | O10: =IF(ISBLANK(u)," ",u) -> 
H12: =IF(AND(ISBLANK(d),caf_5>0),"préciser l'année ci-dessus"," ") -> préciser l'année ci-dessus
B14: Vente de marchandises | C14: 2052 | D14: FC
C15: % du CA total net | E15: =IF(ca_1=0," ",IF(ISBLANK(fc_1)," ",fc_1/ca_1)) ->  | F15: =IF(ca_2=0," ",IF(ISBLANK(fc_2)," ",fc_2/ca_2)) ->  | G15: =IF(ca_3=0," ",IF(ISBLANK(fc_3)," ",fc_3/ca_3)) ->  | H15: =IF(ca_4=0," ",IF(ISBLANK(fc_4)," ",fc_4/ca_4)) ->  | I15: =IF(ca_5=0," ",IF(ISBLANK(fc_5)," ",fc_5/ca_5)) ->  | K15: =IF(K29=0," ",IF(ISBLANK(K14)," ",K14/K29)) ->  | L15: =IF(L29=0," ",IF(ISBLANK(L14)," ",L14/L29)) ->  | M15: =IF(M29=0," ",IF(ISBLANK(M14)," ",M14/M29)) ->  | N15: =IF(N29=0," ",IF(ISBLANK(N14)," ",N14/N29)) ->  | O15: =IF(O29=0," ",IF(ISBLANK(O14)," ",O14/O29)) -> 
D17: D % | E17: =IF(ISBLANK(fc_1)," ",(fc_1/fc_2)-1) ->  | F17: =IF(ISBLANK(fc_2)," ",(fc_2/fc_3)-1) ->  | G17: =IF(ISBLANK(fc_3)," ",(fc_3/fc_4)-1) ->  | H17: =IF(ISBLANK(fc_4)," ",(fc_4/fc_5)-1) ->  | I17: =IF(ISERROR(IF(ISBLANK(K14)," ",(fc_5/K14)-1))," ",IF(ISBLANK(K14)," ",(fc_5/K14)-1)) ->  | K17: =IF(ISERROR(IF(ISBLANK(L14)," ",(K14/L14)-1))," ",IF(ISBLANK(L14)," ",(K14/L14)-1)) ->  | L17: =IF(ISERROR(IF(ISBLANK(M14)," ",(L14/M14)-1))," ",IF(ISBLANK(M14)," ",(L14/M14)-1)) ->  | M17: =IF(ISERROR(IF(ISBLANK(N14)," ",(M14/N14)-1))," ",IF(ISBLANK(N14)," ",(M14/N14)-1)) ->  | N17: =IF(ISERROR(IF(ISBLANK(O14)," ",(N14/O14)-1))," ",IF(ISBLANK(O14)," ",(N14/O14)-1)) -> 
B19: Production vendue de biens | C19: 2052 | D19: FF
C20: % du CA total net | E20: =IF(ca_1=0," ",IF(ISBLANK(ff_1)," ",ff_1/ca_1)) ->  | F20: =IF(ca_2=0," ",IF(ISBLANK(ff_2)," ",ff_2/ca_2)) ->  | G20: =IF(ca_3=0," ",IF(ISBLANK(ff_3)," ",ff_3/ca_3)) ->  | H20: =IF(ca_4=0," ",IF(ISBLANK(ff_4)," ",ff_4/ca_4)) ->  | I20: =IF(ca_5=0," ",IF(ISBLANK(ff_5)," ",ff_5/ca_5)) ->  | K20: =IF(K29=0," ",IF(ISBLANK(K19)," ",K19/K29)) ->  | L20: =IF(L29=0," ",IF(ISBLANK(L19)," ",L19/L29)) ->  | M20: =IF(M29=0," ",IF(ISBLANK(M19)," ",M19/M29)) ->  | N20: =IF(N29=0," ",IF(ISBLANK(N19)," ",N19/N29)) ->  | O20: =IF(O29=0," ",IF(ISBLANK(O19)," ",O19/O29)) -> 
D22: D % | E22: =IF(ISBLANK(ff_1)," ",(ff_1/ff_2)-1) ->  | F22: =IF(ISBLANK(ff_2)," ",(ff_2/ff_3)-1) ->  | G22: =IF(ISBLANK(ff_3)," ",(ff_3/ff_4)-1) ->  | H22: =IF(ISBLANK(ff_4)," ",(ff_4/ff_5)-1) ->  | I22: =IF(ISERROR(IF(ISBLANK(K19)," ",(ff_5/K19)-1))," ",IF(ISBLANK(K19)," ",(ff_5/K19)-1)) ->  | K22: =IF(ISERROR(IF(ISBLANK(L19)," ",(K19/L19)-1))," ",IF(ISBLANK(L19)," ",(K19/L19)-1)) ->  | L22: =IF(ISERROR(IF(ISBLANK(M19)," ",(L19/M19)-1))," ",IF(ISBLANK(M19)," ",(L19/M19)-1)) ->  | M22: =IF(ISERROR(IF(ISBLANK(N19)," ",(M19/N19)-1))," ",IF(ISBLANK(N19)," ",(M19/N19)-1)) ->  | N22: =IF(ISERROR(IF(ISBLANK(O19)," ",(N19/O19)-1))," ",IF(ISBLANK(O19)," ",(N19/O19)-1)) -> 
B24: Production vendue de services | C24: 2052 | D24: FI
C25: % du CA total net | E25: =IF(ca_1=0," ",IF(ISBLANK(E24)," ",E24/ca_1)) ->  | F25: =IF(ca_2=0," ",IF(ISBLANK(F24)," ",F24/ca_2)) ->  | G25: =IF(ca_3=0," ",IF(ISBLANK(G24)," ",G24/ca_3)) ->  | H25: =IF(ca_4=0," ",IF(ISBLANK(H24)," ",H24/ca_4)) ->  | I25: =IF(ca_5=0," ",IF(ISBLANK(I24)," ",I24/ca_5)) ->  | K25: =IF(K29=0," ",IF(ISBLANK(K24)," ",K24/K29)) ->  | L25: =IF(L29=0," ",IF(ISBLANK(L24)," ",L24/L29)) ->  | M25: =IF(M29=0," ",IF(ISBLANK(M24)," ",M24/M29)) ->  | N25: =IF(N29=0," ",IF(ISBLANK(N24)," ",N24/N29)) ->  | O25: =IF(O29=0," ",IF(ISBLANK(O24)," ",O24/O29)) -> 
D27: D % | E27: =IF(ISBLANK(E24)," ",(E24/F24)-1) ->  | F27: =IF(ISBLANK(F24)," ",(F24/G24)-1) ->  | G27: =IF(ISBLANK(G24)," ",(G24/H24)-1) ->  | H27: =IF(ISBLANK(H24)," ",(H24/I24)-1) ->  | I27: =IF(ISERROR(IF(ISBLANK(K24)," ",(fi_5/K24)-1))," ",IF(ISBLANK(K24)," ",(fi_5/K24)-1)) ->  | K27: =IF(ISERROR(IF(ISBLANK(L24)," ",(K24/L24)-1))," ",IF(ISBLANK(L24)," ",(K24/L24)-1)) ->  | L27: =IF(ISERROR(IF(ISBLANK(M24)," ",(L24/M24)-1))," ",IF(ISBLANK(M24)," ",(L24/M24)-1)) ->  | M27: =IF(ISERROR(IF(ISBLANK(N24)," ",(M24/N24)-1))," ",IF(ISBLANK(N24)," ",(M24/N24)-1)) ->  | N27: =IF(ISERROR(IF(ISBLANK(O24)," ",(N24/O24)-1))," ",IF(ISBLANK(O24)," ",(N24/O24)-1)) -> 
B29: Chiffre d'affaires total net | C29: 2052 | D29: FL | E29: =fc_1+ff_1+fi_1 -> 0 | F29: =fc_2+ff_2+fi_2 -> 0 | G29: =fc_3+ff_3+fi_3 -> 0 | H29: =fc_4+ff_4+fi_4 -> 0 | I29: =fc_5+ff_5+fi_5 -> 0 | K29: =K14+K19+K24 -> 0 | L29: =L14+L19+L24 -> 0 | M29: =M14+M19+M24 -> 0 | N29: =N14+N19+N24 -> 0 | O29: =O14+O19+O24 -> 0
D31: D % | E31: =IF(E29=0," ",(E29/F29)-1) ->  | F31: =IF(F29=0," ",(F29/G29)-1) ->  | G31: =IF(G29=0," ",(G29/H29)-1) ->  | H31: =IF(H29=0," ",(H29/I29)-1) ->  | I31: =IF(ISERROR(IF(ISBLANK(K29)," ",(ca_5/K29)-1))," ",IF(ISBLANK(K29)," ",(ca_5/K29)-1)) ->  | K31: =IF(K29=0," ",(K29/L29)-1) ->  | L31: =IF(L29=0," ",(L29/M29)-1) ->  | M31: =IF(M29=0," ",(M29/N29)-1) ->  | N31: =IF(N29=0," ",(N29/O29)-1) -> 
B33: Chiffre d'affaires France | C33: Montant | D33: =IF(ISBLANK(u)," ",u) -> 
C34: % du CA total net | E34: =IF(ca_1=0," ",IF(ISBLANK(E33)," ",E33/ca_1)) ->  | F34: =IF(ca_2=0," ",IF(ISBLANK(F33)," ",F33/ca_2)) ->  | G34: =IF(ca_3=0," ",IF(ISBLANK(G33)," ",G33/ca_3)) ->  | H34: =IF(ca_4=0," ",IF(ISBLANK(H33)," ",H33/ca_4)) ->  | I34: =IF(ca_5=0," ",IF(ISBLANK(I33)," ",I33/ca_5)) ->  | K34: =IF(K29=0," ",IF(ISBLANK(K33)," ",K33/K29)) ->  | L34: =IF(L29=0," ",IF(ISBLANK(L33)," ",L33/L29)) ->  | M34: =IF(M29=0," ",IF(ISBLANK(M33)," ",M33/M29)) ->  | N34: =IF(N29=0," ",IF(ISBLANK(N33)," ",N33/N29)) ->  | O34: =IF(O29=0," ",IF(ISBLANK(O33)," ",O33/O29)) -> 
D36: D % | E36: =IF(ISBLANK(E33)," ",(E33/F33)-1) ->  | F36: =IF(ISBLANK(F33)," ",(F33/G33)-1) ->  | G36: =IF(ISBLANK(G33)," ",(G33/H33)-1) ->  | H36: =IF(ISBLANK(H33)," ",(H33/I33)-1) ->  | I36: =IF(ISERROR(IF(ISBLANK(K33)," ",(I33/K33)-1))," ",IF(ISBLANK(K33)," ",(I33/K33)-1)) ->  | K36: =IF(ISERROR(IF(ISBLANK(L33)," ",(K33/L33)-1))," ",IF(ISBLANK(L33)," ",(K33/L33)-1)) ->  | L36: =IF(ISERROR(IF(ISBLANK(M33)," ",(L33/M33)-1))," ",IF(ISBLANK(M33)," ",(L33/M33)-1)) ->  | M36: =IF(ISERROR(IF(ISBLANK(N33)," ",(M33/N33)-1))," ",IF(ISBLANK(N33)," ",(M33/N33)-1)) ->  | N36: =IF(ISERROR(IF(ISBLANK(O33)," ",(N33/O33)-1))," ",IF(ISBLANK(O33)," ",(N33/O33)-1)) -> 
B38: Chiffre d'affaires Export | C38: Montant | D38: =IF(ISBLANK(u)," ",u) ->  | E38: =E29-E33 -> 0 | F38: =F29-F33 -> 0 | G38: =G29-G33 -> 0 | H38: =H29-H33 -> 0 | I38: =I29-I33 -> 0 | K38: =K29-K33 -> 0 | L38: =L29-L33 -> 0 | M38: =M29-M33 -> 0 | N38: =N29-N33 -> 0 | O38: =O29-O33 -> 0
C39: % du CA total net | E39: =IF(ca_1=0," ",IF(ISBLANK(E38)," ",E38/ca_1)) ->  | F39: =IF(ca_2=0," ",IF(ISBLANK(F38)," ",F38/ca_2)) ->  | G39: =IF(ca_3=0," ",IF(ISBLANK(G38)," ",G38/ca_3)) ->  | H39: =IF(ca_4=0," ",IF(ISBLANK(H38)," ",H38/ca_4)) ->  | I39: =IF(ca_5=0," ",IF(ISBLANK(I38)," ",I38/ca_5)) ->  | K39: =IF(K29=0," ",IF(ISBLANK(K38)," ",K38/K29)) ->  | L39: =IF(L29=0," ",IF(ISBLANK(L38)," ",L38/L29)) ->  | M39: =IF(M29=0," ",IF(ISBLANK(M38)," ",M38/M29)) ->  | N39: =IF(N29=0," ",IF(ISBLANK(N38)," ",N38/N29)) ->  | O39: =IF(O29=0," ",IF(ISBLANK(O38)," ",O38/O29)) -> 
D41: D % | E41: =IF(ISERROR(IF(ca_1=0," ",(E38/F38)-1))," ",IF(ca_1=0," ",(E38/F38)-1)) ->  | F41: =IF(ISERROR(IF(ca_2=0," ",(F38/G38)-1))," ",IF(ca_2=0," ",(F38/G38)-1)) ->  | G41: =IF(ISERROR(IF(ca_3=0," ",(G38/H38)-1))," ",IF(ca_3=0," ",(G38/H38)-1)) ->  | H41: =IF(ISERROR(IF(ca_4=0," ",(H38/I38)-1))," ",IF(ca_4=0," ",(H38/I38)-1)) ->  | I41: =IF(ISERROR(IF(ISBLANK(K38)," ",(export_5/K38)-1))," ",IF(ISBLANK(K38)," ",(export_5/K38)-1)) ->  | K41: =IF(ISERROR(IF(ISBLANK(L38)," ",(K38/L38)-1))," ",IF(ISBLANK(L38)," ",(K38/L38)-1)) ->  | L41: =IF(ISERROR(IF(ISBLANK(M38)," ",(L38/M38)-1))," ",IF(ISBLANK(M38)," ",(L38/M38)-1)) ->  | M41: =IF(ISERROR(IF(ISBLANK(N38)," ",(M38/N38)-1))," ",IF(ISBLANK(N38)," ",(M38/N38)-1)) ->  | N41: =IF(ISERROR(IF(ISBLANK(O38)," ",(N38/O38)-1))," ",IF(ISBLANK(O38)," ",(N38/O38)-1)) -> 
C42: Commentaire
B43: Production stockée ou déstockée | C43: 2052 | D43: FM
B44: Production immobilisée | C44: 2052 | D44: FN
B45: Production de l'exercice | C45: Montant | D45: =IF(ISBLANK(u)," ",u) ->  | E45: =ca_1+fm_1+fn_1 -> 0 | F45: =ca_2+fm_2+fn_2 -> 0 | G45: =ca_3+fm_3+fn_3 -> 0 | H45: =ca_4+fm_4+fn_4 -> 0 | I45: =ca_5+fm_5+fn_5 -> 0 | K45: =K29+K43+K44 -> 0 | L45: =L29+L43+L44 -> 0 | M45: =M29+M43+M44 -> 0 | N45: =N29+N43+N44 -> 0 | O45: =O29+O43+O44 -> 0
C46: % du CA total net | E46: =IF(ca_1=0," ",pr_1/ca_1) ->  | F46: =IF(ca_2=0," ",pr_2/ca_2) ->  | G46: =IF(ca_3=0," ",pr_3/ca_3) ->  | H46: =IF(ca_4=0," ",pr_4/ca_4) ->  | I46: =IF(ca_5=0," ",pr_5/ca_5) ->  | K46: =IF(K29=0," ",K45/K29) ->  | L46: =IF(L29=0," ",L45/L29) ->  | M46: =IF(M29=0," ",M45/M29) ->  | N46: =IF(N29=0," ",N45/N29) ->  | O46: =IF(O29=0," ",O45/O29) -> 
D48: D % | E48: =IF(pr_1=0," ",(pr_1/pr_2)-1) ->  | F48: =IF(pr_2=0," ",(pr_2/pr_3)-1) ->  | G48: =IF(pr_3=0," ",(pr_3/pr_4)-1) ->  | H48: =IF(pr_4=0," ",(pr_4/pr_5)-1) ->  | I48: =IF(ISERROR(IF(ISBLANK(K45)," ",(pr_5/K45)-1))," ",IF(ISBLANK(K45)," ",(pr_5/K45)-1)) ->  | K48: =IF(ISERROR(IF(ISBLANK(L45)," ",(K45/L45)-1))," ",IF(ISBLANK(L45)," ",(K45/L45)-1)) ->  | L48: =IF(ISERROR(IF(ISBLANK(M45)," ",(L45/M45)-1))," ",IF(ISBLANK(M45)," ",(L45/M45)-1)) ->  | M48: =IF(ISERROR(IF(ISBLANK(N45)," ",(M45/N45)-1))," ",IF(ISBLANK(N45)," ",(M45/N45)-1)) ->  | N48: =IF(ISERROR(IF(ISBLANK(O45)," ",(N45/O45)-1))," ",IF(ISBLANK(O45)," ",(N45/O45)-1)) -> 
B50: Achats de marchandises | C50: 2052 | D50: FS
B51: Variation de stocks de marchandises | C51: 2052 | D51: FT
B52: Transport et frais accessoires d'achat (si montant inclus dans le poste "autres achats et charges externes") | C52: se reporter ligne 74 | E52: =E71 -> 0 | F52: =F71 -> 0 | G52: =G71 -> 0 | H52: =H71 -> 0 | I52: =I71 -> 0 | K52: =K71 -> 0 | L52: =L71 -> 0 | M52: =M71 -> 0 | N52: =N71 -> 0 | O52: =O71 -> 0
B53: Différence positive de change | C53: 2052 | D53: GN
B54: Différence négative de change | C54: 2052 | D54: GS
A55: CV | B55: Coût d'achat des marchandises consommées | E55: =IF(ca_1=0," ",fs_1+ft_1+E52-E53+E54) ->  | F55: =IF(ca_2=0," ",fs_2+ft_2+F52-F53+F54) ->  | G55: =IF(ca_3=0," ",fs_3+ft_3+G52-G53+G54) ->  | H55: =IF(ca_4=0," ",fs_4+ft_4+H52-H53+H54) ->  | I55: =IF(ca_5=0," ",fs_5+ft_5+I52-I53+I54) ->  | K55: =IF(K29=0," ",K50+K51+K52-K53+K54) ->  | L55: =IF(L29=0," ",L50+L51+L52-L53+L54) ->  | M55: =IF(M29=0," ",M50+M51+M52-M53+M54) ->  | N55: =IF(N29=0," ",N50+N51+N52-N53+N54) ->  | O55: =IF(O29=0," ",O50+O51+O52-O53+O54) -> 
B56: Marge commerciale | C56: Montant | D56: =IF(ISBLANK(u)," ",u) ->  | E56: =IF(ISBLANK(fc_1)," ",fc_1-mse_1) ->  | F56: =IF(ISBLANK(fc_2)," ",fc_2-mse_2) ->  | G56: =IF(ISBLANK(fc_3)," ",fc_3-mse_3) ->  | H56: =IF(ISBLANK(fc_4)," ",fc_4-mse_4) ->  | I56: =IF(ISBLANK(fc_5)," ",fc_5-mse_5) ->  | K56: =IF(ISBLANK(K14)," ",K14-K55) ->  | L56: =IF(ISBLANK(L14)," ",L14-L55) ->  | M56: =IF(ISBLANK(M14)," ",M14-M55) ->  | N56: =IF(ISBLANK(N14)," ",N14-N55) ->  | O56: =IF(ISBLANK(O14)," ",O14-O55) -> 
C57: Taux de marge | E57: =IF(ISBLANK(fc_1)," ",mc_1/fc_1) ->  | F57: =IF(ISBLANK(fc_2)," ",mc_2/fc_2) ->  | G57: =IF(ISBLANK(fc_3)," ",mc_3/fc_3) ->  | H57: =IF(ISBLANK(fc_4)," ",mc_4/fc_4) ->  | I57: =IF(ISBLANK(fc_5)," ",mc_5/fc_5) ->  | K57: =IF(ISBLANK(K14)," ",K56/K14) ->  | L57: =IF(ISBLANK(L14)," ",L56/L14) ->  | M57: =IF(ISBLANK(M14)," ",M56/M14) ->  | N57: =IF(ISBLANK(N14)," ",N56/N14) ->  | O57: =IF(ISBLANK(O14)," ",O56/O14) -> 
B58: Achats de matières premières et autres approvisionnements | C58: 2052 | D58: FU
B59: Variation de stocks de mat 1° et appros | C59: 2052 | D59: FV
B60: Transport et frais accessoires d'achat (si montant inclus dans le poste "autres achats et charges externes") | C60: se reporter ligne 75 | E60: =E72 -> 0 | F60: 0 | G60: 0 | H60: 0 | I60: 0 | K60: =K72 -> 0 | L60: 0 | M60: 0 | N60: 0 | O60: 0
B61: Sous-traitance de production (si montant inclus dans le poste "autres achats et charges externes") | C61: se reporter ligne 76 | E61: 0 | F61: 0 | G61: 0 | H61: 0 | I61: 0 | K61: 0 | L61: 0 | M61: 0 | N61: 0 | O61: 0
B62: Crédit-bail mobilier sur biens à disposition des clients | C62: Détail des comptes | E62: =hpc_1 -> 0 | F62: =hpc_2 -> 0 | G62: =hpc_3 -> 0 | H62: =hpc_4 -> 0 | I62: =hpc_5 -> 0 | K62: =hpc_5 -> 0 | L62: =hpc_5 -> 0 | M62: =hpc_5 -> 0 | N62: =hpc_5 -> 0 | O62: =hpc_5 -> 0
B63: Différence positive de change | C63: 2052 | D63: GN
B64: Différence négative de change | C64: 2052 | D64: GS
A65: CV | B65: Coût d'achat des matières consommées | E65: =IF(ca_1=0," ",fu_1+fv_1+E60+E61+E62-E63+E64) ->  | F65: =IF(ca_2=0," ",fu_2+fv_2+F60+F61+F62-F63+F64) ->  | G65: =IF(ca_3=0," ",fu_3+fv_3+G60+G61+G62-G63+G64) ->  | H65: =IF(ca_4=0," ",fu_4+fv_4+H60+H61+H62-H63+H64) ->  | I65: =IF(ca_5=0," ",fu_5+fv_5+I60+I61+I62-I63+I64) ->  | K65: =IF(K29=0," ",K58+K59+K60+K61+K62-K63+K64) ->  | L65: =IF(L29=0," ",L58+L59+L60+L61+L62-L63+L64) ->  | M65: =IF(M29=0," ",M58+M59+M60+M61+M62-M63+M64) ->  | N65: =IF(N29=0," ",N58+N59+N60+N61+N62-N63+N64) ->  | O65: =IF(O29=0," ",O58+O59+O60+O61+O62-O63+O64) -> 
B66: Marge brute sur production de biens ou de services | C66: Montant | D66: =IF(ISBLANK(u)," ",u) ->  | E66: =IF(ca_1=0," ",IF($H$4="PB",ff_1+fm_1+fn_1-mat_1,IF($H$4="PS",fi_1+fm_1+fn_1-mat_1," "))) ->  | F66: =IF(ca_2=0," ",IF($H$4="PB",ff_2+fm_2+fn_2-mat_2,IF($H$4="PS",fi_2+fm_2+fn_2-mat_2," "))) ->  | G66: =IF(ca_3=0," ",IF($H$4="PB",ff_3+fm_3+fn_3-mat_3,IF($H$4="PS",fi_3+fm_3+fn_3-mat_3," "))) ->  | H66: =IF(ca_4=0," ",IF($H$4="PB",ff_4+fm_4+fn_4-mat_4,IF($H$4="PS",fi_4+fm_4+fn_4-mat_4," "))) ->  | I66: =IF(ca_5=0," ",IF($H$4="PB",ff_5+fm_5+fn_5-mat_5,IF($H$4="PS",fi_5+fm_5+fn_5-mat_5," "))) ->  | K66: =IF(K29=0," ",IF($H$4="PB",K19+K43+K44-K65,IF($H$4="PS",K24+K43+K44-K65," "))) ->  | L66: =IF(L29=0," ",IF($H$4="PB",L19+L43+L44-L65,IF($H$4="PS",L24+L43+L44-L65," "))) ->  | M66: =IF(M29=0," ",IF($H$4="PB",M19+M43+M44-M65,IF($H$4="PS",M24+M43+M44-M65," "))) ->  | N66: =IF(N29=0," ",IF($H$4="PB",N19+N43+N44-N65,IF($H$4="PS",N24+N43+N44-N65," "))) ->  | O66: =IF(O29=0," ",IF($H$4="PB",O19+O43+O44-O65,IF($H$4="PS",O24+O43+O44-O65," "))) -> 
C67: Taux de marge | E67: =IF(ca_1=0," ",IF(mb_1=0," ",IF(mb_1=" "," ",IF(resultat!$H$4="PB",mb_1/ff_1,IF(resultat!$H$4="PS",mb_1/fi_1," "))))) ->  | F67: =IF(ca_2=0," ",IF(mb_2=0," ",IF(mb_2=" "," ",IF(resultat!$H$4="PB",mb_2/ff_2,IF(resultat!$H$4="PS",mb_2/fi_2," "))))) ->  | G67: =IF(ca_3=0," ",IF(mb_3=0," ",IF(mb_3=" "," ",IF(resultat!$H$4="PB",mb_3/ff_3,IF(resultat!$H$4="PS",mb_3/fi_3," "))))) ->  | H67: =IF(ca_4=0," ",IF(mb_4=0," ",IF(mb_4=" "," ",IF(resultat!$H$4="PB",mb_4/ff_4,IF(resultat!$H$4="PS",mb_4/fi_4," "))))) ->  | I67: =IF(ca_5=0," ",IF(mb_5=0," ",IF(mb_5=" "," ",IF(resultat!$H$4="PB",mb_5/ff_5,IF(resultat!$H$4="PS",mb_5/fi_5," "))))) ->  | K67: =IF(K29=0," ",IF(K66=0," ",IF(K66=" "," ",IF(resultat!$H$4="PB",K66/K19,IF(resultat!$H$4="PS",K66/K24," "))))) ->  | L67: =IF(L29=0," ",IF(L66=0," ",IF(L66=" "," ",IF(resultat!$H$4="PB",L66/L19,IF(resultat!$H$4="PS",L66/L24," "))))) ->  | M67: =IF(M29=0," ",IF(M66=0," ",IF(M66=" "," ",IF(resultat!$H$4="PB",M66/M19,IF(resultat!$H$4="PS",M66/M24," "))))) ->  | N67: =IF(N29=0," ",IF(N66=0," ",IF(N66=" "," ",IF(resultat!$H$4="PB",N66/N19,IF(resultat!$H$4="PS",N66/N24," "))))) ->  | O67: =IF(O29=0," ",IF(O66=0," ",IF(O66=" "," ",IF(resultat!$H$4="PB",O66/O19,IF(resultat!$H$4="PS",O66/O24," "))))) -> 
B68: Marge brute totale | C68: Montant | D68: =IF(ISBLANK(u)," ",u) ->  | E68: =IF(ca_1=0," ",pr_1-mse_1-mat_1) ->  | F68: =IF(ca_2=0," ",pr_2-mse_2-mat_2) ->  | G68: =IF(ca_3=0," ",pr_3-mse_3-mat_3) ->  | H68: =IF(ca_4=0," ",pr_4-mse_4-mat_4) ->  | I68: =IF(ca_5=0," ",pr_5-mse_5-mat_5) ->  | K68: =IF(K29=0," ",K45-K55-K65) ->  | L68: =IF(L29=0," ",L45-L55-L65) ->  | M68: =IF(M29=0," ",M45-M55-M65) ->  | N68: =IF(N29=0," ",N45-N55-N65) ->  | O68: =IF(O29=0," ",O45-O55-O65) -> 
C69: % de la production | E69: =IF(ca_1=0," ",E68/pr_1) ->  | F69: =IF(ca_2=0," ",F68/pr_2) ->  | G69: =IF(ca_3=0," ",G68/pr_3) ->  | H69: =IF(ca_4=0," ",H68/pr_4) ->  | I69: =IF(ca_5=0," ",I68/pr_5) ->  | K69: =IF(K29=0," ",K68/K45) ->  | L69: =IF(L29=0," ",L68/L45) ->  | M69: =IF(M29=0," ",M68/M45) ->  | N69: =IF(N29=0," ",N68/N45) ->  | O69: =IF(O29=0," ",O68/O45) -> 
B70: Autres achats et charges externes | C70: 2052 | D70: FW
B71: - dont transport et frais accessoires d'achat de marchandises | C71: Détail des comptes
B72: - dont transport et frais accessoires d'achat de matières | C72: Détail des comptes
B73: - dont sous-traitance de production | C73: Détail des comptes
B74: - dont crédit-bail mobilier | C74: 2053 | D74: HP
B75: Crédit-bail mobilier sur biens à disposition des clients | C75: Détail des comptes
B76: - dont crédit-bail immobilier | C76: 2053 | D76: HQ
B77: - dont personnel extérieur à l'entreprise | C77: 2058-C | D77: YU
A78: CV | B78: - dont transports sur ventes | C78: Détail des comptes
B79: Autres consommations (hors transports/achats, sous-traitance de production, crédit-bail & intérim) | C79: Montant | D79: =IF(ISBLANK(u)," ",u) ->  | E79: =IF(ca_1=0,0,fw_1-E71-E72-E73-hp_1+hpc_1-E75-hq_1-yu_1) -> 0 | F79: =IF(ca_2=0,0,fw_2-F71-F72-F73-hp_2+hpc_2-F75-hq_2-yu_2) -> 0 | G79: =IF(ca_3=0,0,fw_3-G71-G72-G73-hp_3+hpc_3-G75-hq_3-yu_3) -> 0 | H79: =IF(ca_4=0,0,fw_4-H71-H72-H73-hp_4+hpc_4-H75-hq_4-yu_4) -> 0 | I79: =IF(ca_5=0,0,fw_5-I71-I72-I73-hp_5+hpc_5-I75-hq_5-yu_5) -> 0 | K79: =IF(K29=0,0,K70-K71-K72-K73-K74+K75-K75-K76-K77) -> 0 | L79: =IF(L29=0,0,L70-L71-L72-L73-L74+L75-L75-L76-L77) -> 0 | M79: =IF(M29=0,0,M70-M71-M72-M73-M74+M75-M75-M76-M77) -> 0 | N79: =IF(N29=0,0,N70-N71-N72-N73-N74+N75-N75-N76-N77) -> 0 | O79: =IF(O29=0,0,O70-O71-O72-O73-O74+O75-O75-O76-O77) -> 0
C80: % de la production | E80: =IF(ISERROR(E79/E45)," ",E79/E45) ->  | F80: =IF(ISERROR(F79/F45)," ",F79/F45) ->  | K80: =IF(ISERROR(K79/K45)," ",K79/K45) -> 
A81: CF | E81: =E79-E78 -> 0 | F81: =F79-F78 -> 0 | G81: =G79-G78 -> 0 | H81: =H79-H78 -> 0 | I81: =I79-I78 -> 0 | K81: =K79-K78 -> 0 | L81: =L79-L78 -> 0 | M81: =M79-M78 -> 0 | N81: =N79-N78 -> 0 | O81: =O79-O78 -> 0
B82: Valeur ajoutée | C82: Montant | D82: =IF(ISBLANK(u)," ",u) ->  | E82: =IF(ca_1=0," ",pr_1-E55-E65-E79) ->  | F82: =IF(ca_2=0," ",pr_2-F55-F65-F79) ->  | G82: =IF(ca_3=0," ",pr_3-G55-G65-G79) ->  | H82: =IF(ca_4=0," ",pr_4-H55-H65-H79) ->  | I82: =IF(ca_5=0," ",pr_5-I55-I65-I79) ->  | K82: =IF(K29=0," ",K45-K55-K65-K79) ->  | L82: =IF(L29=0," ",L45-L55-L65-L79) ->  | M82: =IF(M29=0," ",M45-M55-M65-M79) ->  | N82: =IF(N29=0," ",N45-N55-N65-N79) ->  | O82: =IF(O29=0," ",O45-O55-O65-O79) -> 
C83: % de la production | E83: =IF(ca_1=0," ",IF(va_1=0," ",va_1/pr_1)) ->  | F83: =IF(ca_2=0," ",IF(va_2=0," ",va_2/pr_2)) ->  | G83: =IF(ca_3=0," ",IF(va_3=0," ",va_3/pr_3)) ->  | H83: =IF(ca_4=0," ",IF(va_4=0," ",va_4/pr_4)) ->  | I83: =IF(ca_5=0," ",IF(va_5=0," ",va_5/pr_5)) ->  | K83: =IF(K29=0," ",IF(K82=0," ",K82/K45)) ->  | L83: =IF(L29=0," ",IF(L82=0," ",L82/L45)) ->  | M83: =IF(M29=0," ",IF(M82=0," ",M82/M45)) ->  | N83: =IF(N29=0," ",IF(N82=0," ",N82/N45)) ->  | O83: =IF(O29=0," ",IF(O82=0," ",O82/O45)) -> 
B84: Subventions d'exploitation | C84: 2052 | D84: FO
B85: Reprise sur provisions d'exploitation | C85: 2056 | D85: UF
B86: Transfert de charges | C86: 2053 | D86: A1
B87: Autres produits | C87: 2052 | D87: FQ
B88: Impôts et taxes | C88: 2052 | D88: FX
B89: Salaires et traitements | C89: 2052 | D89: FY
B90: - dont intéressement aux résultats | C90: Détail des comptes
B91: Charges sociales | C91: 2052 | D91: FZ
B92: - dont abondements/PEE/PERCO | C92: Détail des comptes
B93: - dont forfait social sur intéressement-participation-abondement | C93: Détail des comptes
B94: = Salaires et traitements (hors intéressement et abondement) | E94: =fy_1-E90 -> 0 | F94: =fy_2-F90 -> 0 | G94: =fy_3-G90 -> 0 | H94: =fy_4-H90 -> 0 | I94: =fy_5-I90 -> 0 | K94: =K89-K90 -> 0 | L94: =L89-L90 -> 0 | M94: =M89-M90 -> 0 | N94: =N89-N90 -> 0 | O94: =O89-O90 -> 0
B95: = Charges sociales (hors intéressement et abondement) | E95: =E91-E92-E93 -> 0 | F95: =F91-F92-F93 -> 0 | G95: =G91-G92-G93 -> 0 | H95: =H91-H92-H93 -> 0 | I95: =I91-I92-I93 -> 0 | K95: =K91-K92-K93 -> 0 | L95: =L91-L92-L93 -> 0 | M95: =M91-M92-M93 -> 0 | N95: =N91-N92-N93 -> 0 | O95: =O91-O92-O93 -> 0
B96: Taux de charges sociales | E96: =IF(ca_1=0,0,IF(ISBLANK(E91),0,(E91-E92-E93)/(fy_1-E90))) -> 0.0% | F96: =IF(ca_2=0,0,IF(ISBLANK(F91),0,(F91-F92-F93)/(fy_2-F90))) -> 0.0% | G96: =IF(ca_3=0,0,IF(ISBLANK(G91),0,(G91-G92-G93)/(fy_3-G90))) -> 0.0% | H96: =IF(ca_4=0,0,IF(ISBLANK(H91),0,(H91-H92-H93)/(fy_4-H90))) -> 0.0% | I96: =IF(ca_5=0,0,IF(ISBLANK(I91),0,(I91-I92-I93)/(fy_5-I90))) -> 0.0% | K96: =IF(K29=0,0,IF(ISBLANK(K91),0,(K91-K92-K93)/(K89-K90))) -> 0.0% | L96: =IF(L29=0,0,IF(ISBLANK(L91),0,(L91-L92-L93)/(L89-L90))) -> 0.0% | M96: =IF(M29=0,0,IF(ISBLANK(M91),0,(M91-M92-M93)/(M89-M90))) -> 0.0% | N96: =IF(N29=0,0,IF(ISBLANK(N91),0,(N91-N92-N93)/(N89-N90))) -> 0.0% | O96: =IF(O29=0,0,IF(ISBLANK(O91),0,(O91-O92-O93)/(O89-O90))) -> 0.0%
A97: CV | B97: Personnel extérieur à l'entreprise | E97: =IF(ca_1=0,0,E77) -> 0 | F97: =IF(ca_2=0,0,F77) -> 0 | G97: =IF(ca_3=0,0,G77) -> 0 | H97: =IF(ca_4=0,0,H77) -> 0 | I97: =IF(ca_5=0,0,I77) -> 0 | K97: =IF(K29=0,0,K77) -> 0 | L97: =IF(L29=0,0,L77) -> 0 | M97: =IF(M29=0,0,M77) -> 0 | N97: =IF(N29=0,0,N77) -> 0 | O97: =IF(O29=0,0,O77) -> 0
B98: Total des charges de personnel hors intéressement et abondement | C98: Montant | D98: =IF(ISBLANK(u)," ",u) ->  | E98: =IF(ca_1=0,0,E94+E95+E97) -> 0 | F98: =IF(ca_2=0,0,F94+F95+F97) -> 0 | G98: =IF(ca_3=0,0,G94+G95+G97) -> 0 | H98: =IF(ca_4=0,0,H94+H95+H97) -> 0 | I98: =IF(ca_5=0,0,I94+I95+I97) -> 0 | K98: =IF(K29=0,0,K94+K95+K97) -> 0 | L98: =IF(L29=0,0,L94+L95+L97) -> 0 | M98: 0 | N98: 0 | O98: 0
C99: % de la production | E99: =IF(E98=0," ",E98/E45) ->  | F99: =IF(F98=0," ",F98/F45) ->  | K99: =IF(K98=0," ",K98/K45) ->  | L99: =IF(L98=0," ",L98/L45) -> 
C100: % de la valeur ajoutée | E100: =IF(E98=0," ",E98/E82) ->  | K100: =IF(K98=0," ",K98/K82) ->  | L100: =IF(L98=0," ",L98/L82) -> 
B101: Dotation aux provisions d'exploitation | C101: 2056 | D101: UE
B102: - dont provisions d'exploitation sur immobilisations | C102: 2052 | D102: GB
B103: Autres charges | C103: 2052 | D103: GE
B104: EBITDA - Earnings Before Interest,Tax, Depreciation & Amortization | C104: Montant | D104: =IF(ISBLANK(u)," ",u) ->  | E104: =IF(ca_1=0,0,E82+E84+E85+E86+E87-E88-E98-E101+E102-E103) -> 0 | F104: =IF(ca_2=0,0,F82+F84+F85+F86+F87-F88-F98-F101+F102-F103) -> 0 | G104: =IF(ca_3=0,0,G82+G84+G85+G86+G87-G88-G98-G101+G102-G103) -> 0 | H104: =IF(ca_4=0,0,H82+H84+H85+H86+H87-H88-H98-H101+H102-H103) -> 0 | I104: =IF(ca_5=0,0,I82+I84+I85+I86+I87-I88-I98-I101+I102-I103) -> 0 | K104: =IF(K29=0,0,K82+K84+K85+K86+K87-K88-K98-K101+K102-K103) -> 0 | L104: =IF(L29=0,0,L82+L84+L85+L86+L87-L88-L98-L101+L102-L103) -> 0 | M104: 0 | N104: 0 | O104: 0
C105: % de la production | E105: =IF(OR(E29=0,E104=0)," ",E104/E45) ->  | K105: =IF(OR(K29=0,K104=0)," ",K104/K45) ->  | L105: =IF(OR(L29=0,L104=0)," ",L104/L45) -> 
C106: % de la valeur ajoutée | E106: =IF(ca_1=0," ",IF(E104=" "," ",E104/va_1)) ->  | F106: =IF(ca_2=0," ",IF(F104=" "," ",F104/va_2)) ->  | G106: =IF(ca_3=0," ",IF(G104=" "," ",G998/va_3)) ->  | H106: =IF(ca_4=0," ",IF(H104=" "," ",H104/va_4)) ->  | I106: =IF(ca_5=0," ",IF(I104=" "," ",I104/va_5)) ->  | K106: =IF(K29=0," ",IF(K104=" "," ",K104/K82)) ->  | L106: =IF(L29=0," ",IF(L104=" "," ",L104/L82)) ->  | M106: =IF(M29=0," ",IF(M104=" "," ",M104/M82)) ->  | N106: =IF(N29=0," ",IF(N104=" "," ",N104/N82)) ->  | O106: =IF(O29=0," ",IF(O104=" "," ",O104/O82)) -> 
B107: Excédent brut d'exploitation | C107: Montant | D107: =IF(ISBLANK(u)," ",u) ->  | E107: =E104-E85-E86-E87+E101-E102+E103 -> 0 | F107: =F104-F85-F86-F87+F101-F102+F103 -> 0 | G107: =G104-G85-G86-G87+G101-G102+G103 -> 0 | H107: =H104-H85-H86-H87+H101-H102+H103 -> 0 | I107: =I104-I85-I86-I87+I101-I102+I103 -> 0 | K107: =K104-K85-K86-K87+K101-K102+K103 -> 0 | L107: =L104-L85-L86-L87+L101-L102+L103 -> 0 | M107: =M104-M85-M86-M87+M101-M102+M103 -> 0 | N107: =N104-N85-N86-N87+N101-N102+N103 -> 0 | O107: =O104-O85-O86-O87+O101-O102+O103 -> 0
C108: % de la production | E108: =IF(OR(E29=0,E104=0)," ",E107/E45) ->  | F108: =IF(OR(F29=0,F104=0)," ",F107/F45) ->  | K108: =IF(OR(K29=0,K104=0)," ",K107/K45) -> 
C109: % de la valeur ajoutée | E109: =IF(E29=0," ",IF(E107=" "," ",E107/E82)) ->  | K109: =IF(K29=0," ",IF(K107=" "," ",K107/K82)) ->  | L109: =IF(L29=0," ",IF(L107=" "," ",L107/L82)) -> 
B110: Dotation aux amortissements | C110: 2052 | D110: GA
B111: Part de crédit-bail retraitée | E111: =IF(ca_1=0,0,(hp_1*E184)+(hq_1*E194)) -> 0 | F111: =IF(ca_2=0,0,(hp_2*F184)+(hq_2*F194)) -> 0 | G111: =IF(ca_1=0,0,(hp_3*G184)+(hq_3*G194)) -> 0 | H111: =IF(ca_4=0,0,(hp_4*H184)+(hq_4*H194)) -> 0 | I111: =IF(ca_5=0,0,(hp_5*I184)+(hq_5*I194)) -> 0 | K111: =IF(K29=0,0,(K74*K184)+(K76*K194)) -> 0 | L111: =IF(L29=0,0,(L74*L184)+(L76*L194)) -> 0 | M111: =IF(M29=0,0,(M74*M184)+(M76*M194)) -> 0 | N111: =IF(N29=0,0,(N74*N184)+(N76*N194)) -> 0 | O111: =IF(O29=0,0,(O74*O184)+(O76*O194)) -> 0
B112: Dotation aux provisions d'exploitation sur immobilisations | E112: =E102 -> 0 | F112: =F102 -> 0 | G112: =G102 -> 0 | H112: =H102 -> 0 | I112: =I102 -> 0 | K112: =K102 -> 0 | L112: =L102 -> 0 | M112: =M102 -> 0 | N112: =N102 -> 0 | O112: =O102 -> 0
B113: Résultat d'exploitation | C113: Montant | D113: =IF(ISBLANK(u)," ",u) ->  | E113: =IF(ca_1=0,0,E104-E110-E111-E112) -> 0 | F113: =IF(ca_2=0,0,F104-F110-F111-F112) -> 0 | G113: =IF(ca_3=0,0,G104-G110-G111-G112) -> 0 | H113: =IF(ca_4=0,0,H104-H110-H111-H112) -> 0 | I113: =IF(ca_5=0,0,I104-I110-I111-I112) -> 0 | K113: =IF(K29=0,0,K104-K110-K111-K112) -> 0 | L113: =IF(L29=0,0,L104-L110-L111-L112) -> 0 | M113: =IF(M29=0,0,M104-M110-M111-M112) -> 0 | N113: =IF(N29=0,0,N104-N110-N111-N112) -> 0 | O113: =IF(O29=0,0,O104-O110-O111-O112) -> 0
C114: % de la production | E114: =IF(ca_1=0," ",IF(re_1=" "," ",re_1/pr_1)) ->  | F114: =IF(ca_2=0," ",IF(re_2=" "," ",re_2/pr_2)) ->  | G114: =IF(ca_3=0," ",IF(re_3=" "," ",re_3/pr_3)) ->  | H114: =IF(ca_4=0," ",IF(re_4=" "," ",re_4/pr_4)) ->  | I114: =IF(ca_5=0," ",IF(re_5=" "," ",re_5/pr_5)) ->  | K114: =IF(K29=0," ",IF(K113=" "," ",K113/K45)) ->  | L114: =IF(L29=0," ",IF(L113=" "," ",L113/L45)) ->  | M114: =IF(M29=0," ",IF(M113=" "," ",M113/M45)) ->  | N114: =IF(N29=0," ",IF(N113=" "," ",N113/N45)) ->  | O114: =IF(O29=0," ",IF(O113=" "," ",O113/O45)) -> 
A115: CF | E115: =-E85-E86-E87+E88+E98-E97+E101+E103+E110+E111 -> 0 | F115: =-F85-F86-F87+F88+F98-F97+F101+F103+F110+F111 -> 0 | G115: =-G85-G86-G87+G88+G98-G97+G101+G103+G110+G111 -> 0 | H115: =-H85-H86-H87+H88+H98-H97+H101+H103+H110+H111 -> 0 | I115: =-I85-I86-I87+I88+I98-I97+I101+I103+I110+I111 -> 0 | K115: =-K85-K86-K87+K88+K98-K97+K101+K103+K110+K111 -> 0 | L115: =-L85-L86-L87+L88+L98-L97+L101+L103+L110+L111 -> 0 | M115: =-M85-M86-M87+M88+M98-M97+M101+M103+M110+M111 -> 0 | N115: =-N85-N86-N87+N88+N98-N97+N101+N103+N110+N111 -> 0 | O115: =-O85-O86-O87+O88+O98-O97+O101+O103+O110+O111 -> 0
B116: Produits financiers de participation | C116: 2052 | D116: GJ
B117: Produits des autres valeurs et créances de l'actif immobilisé | C117: 2052 | D117: GK
B118: Autres intérêts et produits assimilés | C118: 2052 | D118: GL
B119: Reprise sur provisions financières | C119: 2056 | D119: UH
B120: Transfert de charges | C120: 2052-56 | D120: GM-UH
B121: Produits nets sur cessions de valeurs mobilières de placement | C121: 2052 | D121: GO
B122: Total des produits financiers | E122: =IF(ca_1=0," ",SUM(E116:E121)) ->  | F122: =IF(ca_2=0," ",SUM(F116:F121)) ->  | G122: =IF(ca_3=0," ",SUM(G116:G121)) ->  | H122: =IF(ca_4=0," ",SUM(H116:H121)) ->  | I122: =IF(ca_5=0," ",SUM(I116:I121)) ->  | K122: =IF(K29=0," ",SUM(K116:K121)) ->  | L122: =IF(L29=0," ",SUM(L116:L121)) ->  | M122: =IF(M29=0," ",SUM(M116:M121)) ->  | N122: =IF(N29=0," ",SUM(N116:N121)) ->  | O122: =IF(O29=0," ",SUM(O116:O121)) -> 
B123: Dotation aux provisions financières | C123: 2056 | D123: UG
B124: Intérêts et charges assimilées | C124: 2052 | D124: GR
B125: Part de crédit-bail retraitée | E125: =IF(ca_1=0," ",E74+E76-E111) ->  | F125: =IF(ca_2=0," ",F74+F76-F111) ->  | G125: =IF(ca_3=0," ",G74+G76-G111) ->  | H125: =IF(ca_4=0," ",H74+H76-H111) ->  | I125: =IF(ca_5=0," ",I74+I76-I111) ->  | K125: =IF(K29=0," ",K74+K76-K111) ->  | L125: =IF(L29=0," ",L74+L76-L111) ->  | M125: =IF(M29=0," ",M74+M76-M111) ->  | N125: =IF(N29=0," ",N74+N76-N111) ->  | O125: =IF(O29=0," ",O74+O76-O111) -> 
B126: Frais financiers nets | C126: Montant | D126: =IF(ISBLANK(u)," ",u) ->  | E126: =IF(ca_1=0," ",IF((E124+E125-E118-E121)<0,0,E124+E125-E118-E121)) ->  | F126: =IF(ca_2=0," ",IF((F124+F125-F118-F121)<0,0,F124+F125-F118-F121)) ->  | G126: =IF(ca_3=0," ",IF((G124+G125-G118-G121)<0,0,G124+G125-G118-G121)) ->  | H126: =IF(ca_4=0," ",IF((H124+H125-H118-H121)<0,0,H124+H125-H118-H121)) ->  | I126: =IF(ca_5=0," ",IF((I124+I125-I118-I121)<0,0,I124+I125-I118-I121)) ->  | K126: =IF(K29=0," ",IF((K124+K125-K118-K121)<0,0,K124+K125-K118-K121)) ->  | L126: =IF(L29=0," ",IF((L124+L125-L118-L121)<0,0,L124+L125-L118-L121)) ->  | M126: =IF(M29=0," ",IF((M124+M125-M118-M121)<0,0,M124+M125-M118-M121)) ->  | N126: =IF(N29=0," ",IF((N124+N125-N118-N121)<0,0,N124+N125-N118-N121)) ->  | O126: =IF(O29=0," ",IF((O124+O125-O118-O121)<0,0,O124+O125-O118-O121)) -> 
C127: % de l'EBE | E127: =IF(I_1=" "," ",I_1/ebe_1) ->  | F127: =IF(I_2=" "," ",I_2/ebe_2) ->  | G127: =IF(I_3=" "," ",I_3/ebe_3) ->  | H127: =IF(I_4=" "," ",I_4/ebe_4) ->  | I127: =IF(I_5=" "," ",I_5/ebe_5) ->  | K127: =IF(K126=" "," ",K126/K104) ->  | L127: =IF(L126=" "," ",L126/L104) ->  | M127: =IF(M126=" "," ",M126/M104) ->  | N127: =IF(N126=" "," ",N126/N104) ->  | O127: =IF(O126=" "," ",O126/O104) -> 
B128: Charges nettes sur cessions de valeurs mobilières de placement | C128: 2052 | D128: GT
B129: Total des charges financières | E129: =IF(ca_1=0," ",SUM(E123:E125)+E128) ->  | F129: =IF(ca_2=0," ",SUM(F123:F125)+F128) ->  | G129: =IF(ca_3=0," ",SUM(G123:G125)+G128) ->  | H129: =IF(ca_4=0," ",SUM(H123:H125)+H128) ->  | I129: =IF(ca_5=0," ",SUM(I123:I125)+I128) ->  | K129: =IF(K29=0," ",SUM(K123:K125)+K128) ->  | L129: =IF(L29=0," ",SUM(L123:L125)+L128) ->  | M129: =IF(M29=0," ",SUM(M123:M125)+M128) ->  | N129: =IF(N29=0," ",SUM(N123:N125)+N128) ->  | O129: =IF(O29=0," ",SUM(O123:O125)+O128) -> 
B130: Résultat financier | E130: =IF(ca_1=0," ",E122-E129) ->  | F130: =IF(ca_2=0," ",F122-F129) ->  | G130: =IF(ca_3=0," ",G122-G129) ->  | H130: =IF(ca_4=0," ",H122-H129) ->  | I130: =IF(ca_5=0," ",I122-I129) ->  | K130: =IF(K29=0," ",K122-K129) ->  | L130: =IF(L29=0," ",L122-L129) ->  | M130: =IF(M29=0," ",M122-M129) ->  | N130: =IF(N29=0," ",N122-N129) ->  | O130: =IF(O29=0," ",O122-O129) -> 
A131: CF | E131: =IF(ISERROR(E130/-1),0,E130/-1) -> 0 | F131: =IF(ISERROR(F130/-1),0,F130/-1) -> 0 | G131: =IF(ISERROR(G130/-1),0,G130/-1) -> 0 | H131: =IF(ISERROR(H130/-1),0,H130/-1) -> 0 | I131: =IF(ISERROR(I130/-1),0,I130/-1) -> 0 | K131: =IF(ISERROR(K130/-1),0,K130/-1) -> 0 | L131: 0 | M131: =IF(ISERROR(M130/-1),0,M130/-1) -> 0 | N131: 0 | O131: 0
B132: Résultat courant avant impôts (A) | C132: Montant | D132: =IF(ISBLANK(u)," ",u) ->  | E132: =IF(ca_1=0,0,re_1+E130) -> 0 | F132: =IF(ca_2=0,0,re_2+F130) -> 0 | G132: =IF(ca_3=0,0,re_3+G130) -> 0 | H132: =IF(ca_4=0,0,re_4+H130) -> 0 | I132: =IF(ca_5=0,0,re_5+I130) -> 0 | K132: =IF(K29=0,0,K113+K130) -> 0 | L132: =IF(L29=0,0,L113+L130) -> 0 | M132: =IF(M29=0,0,M113+M130) -> 0 | N132: =IF(N29=0,0,N113+N130) -> 0 | O132: =IF(O29=0,0,O113+O130) -> 0
C133: % de la production | E133: =IF(ca_1=0," ",IF(rc_1=" "," ",rc_1/pr_1)) ->  | F133: =IF(ca_2=0," ",IF(rc_2=" "," ",rc_2/pr_2)) ->  | G133: =IF(ca_3=0," ",IF(rc_3=" "," ",rc_3/pr_3)) ->  | H133: =IF(ca_4=0," ",IF(rc_4=" "," ",rc_4/pr_4)) ->  | I133: =IF(ca_5=0," ",IF(rc_5=" "," ",rc_5/pr_5)) ->  | K133: =IF(K29=0," ",IF(K132=" "," ",K132/K45)) ->  | L133: =IF(L29=0," ",IF(L132=" "," ",L132/L45)) ->  | M133: =IF(M29=0," ",IF(M132=" "," ",M132/M45)) ->  | N133: =IF(N29=0," ",IF(N132=" "," ",N132/N45)) ->  | O133: =IF(O29=0," ",IF(O132=" "," ",O132/O45)) -> 
B135: Produits exceptionnels sur opérations de gestion | C135: 2053 | D135: HA | H135: 5,000
B136: Produits exceptionnels sur opérations en capital | C136: 2053 | D136: HB | H136: 20,000
B137: Reprise sur provisions exceptionnelles | C137: 2056 | D137: UK | H137: 5,000
B138: dont reprise sur amortissements dérogatoires | C138: 2056 | D138: TN
B139: Transfert de charges | C139: 2053-56 | D139: HC-UK | H139: 1,000
B140: Charges exceptionnelles sur opérations de gestion | C140: 2053 | D140: HE | H140: 1,000
B141: Charges exceptionnelles sur opérations en capital | C141: 2053 | D141: HF | H141: 15,000
B142: Dotations exceptionnelles aux provisions | C142: 2056 | D142: UJ | H142: 10,000
B143: dont dotation aux amortissements dérogatoires | C143: 2056 | D143: TM
B144: Résultat exceptionnel | C144: 2053 | D144: HI | E144: =IF(ca_1=0," ",E135+E136+E137+E139-E140-E141-E142) ->  | F144: =IF(ca_2=0," ",F135+F136+F137+F139-F140-F141-F142) ->  | G144: =IF(ca_3=0," ",G135+G136+G137+G139-G140-G141-G142) ->  | H144: =IF(ca_4=0," ",H135+H136+H137+H139-H140-H141-H142) ->  | I144: =IF(ca_5=0," ",I135+I136+I137+I139-I140-I141-I142) ->  | K144: =IF(K29=0," ",K135+K136+K137+K139-K140-K141-K142) ->  | L144: =IF(L29=0," ",L135+L136+L137+L139-L140-L141-L142) ->  | M144: =IF(M29=0," ",M135+M136+M137+M139-M140-M141-M142) ->  | N144: =IF(N29=0," ",N135+N136+N137+N139-N140-N141-N142) ->  | O144: =IF(O29=0," ",O135+O136+O137+O139-O140-O141-O142) -> 
B145: Participation des salariés aux résultats | C145: 2053 | D145: HJ
B146: Intéressement | E146: =IF(ca_1=0," ",E90) ->  | F146: =IF(ca_2=0," ",F90) ->  | G146: =IF(ca_3=0," ",G90) ->  | H146: =IF(ca_4=0," ",H90) ->  | I146: =IF(ca_5=0," ",I90) ->  | K146: =IF(K29=0," ",K90) ->  | L146: =IF(L29=0," ",L90) -> 
B147: Abondements/PEE/PERCO | E147: =IF(ca_1=0," ",E92) ->  | F147: =IF(ca_2=0," ",F92) ->  | G147: =IF(ca_3=0," ",G92) ->  | H147: =IF(ca_4=0," ",H92) ->  | I147: =IF(ca_5=0," ",I92) ->  | K147: =IF(K29=0," ",K92) ->  | L147: =IF(L29=0," ",L92) -> 
B148: Intéressement aux résultats total (P + I + A) | E148: =IF(ca_1=0," ",SUM(E145:E147)) ->  | F148: =IF(ca_2=0," ",SUM(F145:F147)) ->  | G148: =IF(ca_3=0," ",SUM(G145:G147)) ->  | H148: =IF(ca_4=0," ",SUM(H145:H147)) ->  | I148: =IF(ca_5=0," ",SUM(I145:I147)) ->  | K148: =IF(ca_5=0," ",SUM(K145:K147)) ->  | L148: =IF(ca_5=0," ",SUM(L145:L147)) ->  | M148: =IF(ca_5=0," ",SUM(M145:M147)) ->  | N148: =IF(ca_5=0," ",SUM(N145:N147)) ->  | O148: =IF(ca_5=0," ",SUM(O145:O147)) -> 
B149: Forfait social sur intéressement-participation-abondement | E149: =IF(ca_1=0," ",E93) ->  | F149: =IF(ca_2=0," ",F93) ->  | G149: =IF(ca_3=0," ",G93) ->  | H149: =IF(ca_4=0," ",H93) ->  | I149: =IF(ca_5=0," ",I93) ->  | K149: =IF(K29=0," ",K93) -> 
B150: Impôts sur les bénéfices | C150: 2053 | D150: HK
B151: Résultat net | C151: Montant | D151: =IF(ISBLANK(u)," ",u) ->  | E151: =IF(ca_1=0," ",E132+E144-E145-E146-E147-E149-E150) ->  | F151: =IF(ca_2=0," ",F132+F144-F145-F146-F147-F149-F150) ->  | G151: =IF(ca_3=0," ",G132+G144-G145-G146-G147-G149-G150) ->  | H151: =IF(ca_4=0," ",H132+H144-H145-H146-H147-H149-H150) ->  | I151: =IF(ca_5=0," ",I132+I144-I145-I146-I147-I149-I150) ->  | K151: =IF(K29=0," ",K132+K144-K145-K146-K147-K149-K150) ->  | L151: =IF(L29=0," ",L132+L144-L145-L146-L147-L149-L150) ->  | M151: =IF(M29=0," ",M132+M144-M145-M146-M147-M149-M150) ->  | N151: =IF(N29=0," ",N132+N144-N145-N146-N147-N149-N150) ->  | O151: =IF(O29=0," ",O132+O144-O145-O146-O147-O149-O150) -> 
C152: % de la production | E152: =IF(ca_1=0," ",IF(r_1=" "," ",r_1/pr_1)) ->  | F152: =IF(ca_2=0," ",IF(r_2=" "," ",r_2/pr_2)) ->  | G152: =IF(ca_3=0," ",IF(r_3=" "," ",r_3/pr_3)) ->  | H152: =IF(ca_4=0," ",IF(r_4=" "," ",r_4/pr_4)) ->  | I152: =IF(ca_5=0," ",IF(r_5=" "," ",r_5/pr_5)) ->  | K152: =IF(K29=0," ",IF(K151=" "," ",K151/K45)) ->  | L152: =IF(L29=0," ",IF(L151=" "," ",L151/L45)) ->  | M152: =IF(M29=0," ",IF(M151=" "," ",M151/M45)) ->  | N152: =IF(N29=0," ",IF(N151=" "," ",N151/N45)) ->  | O152: =IF(O29=0," ",IF(O151=" "," ",O151/O45)) -> 
B153: Capacité d'autofinancement | C153: Montant | D153: =IF(ISBLANK(u)," ",u) ->  | E153: =IF(ca_1=0," ",E151+E110+E101-E85+E123-E119-E136-E137+E141+E142) ->  | F153: =IF(ca_2=0," ",F151+F110+F101-F85+F123-F119-F136-F137+F141+F142) ->  | G153: =IF(ca_3=0," ",G151+G110+G101-G85+G123-G119-G136-G137+G141+G142) ->  | H153: =IF(ca_4=0," ",H151+H110+H101-H85+H123-H119-H136-H137+H141+H142) ->  | I153: =IF(ca_5=0," ",I151+I110+I101-I85+I123-I119-I136-I137+I141+I142) ->  | K153: =IF(K29=0," ",K151+K110+K101-K85+K123-K119-K136-K137+K141+K142) ->  | L153: =IF(L29=0," ",L151+L110+L101-L85+L123-L119-L136-L137+L141+L142) ->  | M153: =IF(M29=0," ",M151+M110+M101-M85+M123-M119-M136-M137+M141+M142) ->  | N153: =IF(N29=0," ",N151+N110+N101-N85+N123-N119-N136-N137+N141+N142) ->  | O153: =IF(O29=0," ",O151+O110+O101-O85+O123-O119-O136-O137+O141+O142) -> 
C154: % de la production | E154: =IF(ca_1=0," ",IF(caf_1=" "," ",caf_1/pr_1)) ->  | F154: =IF(ca_2=0," ",IF(caf_2=" "," ",caf_2/pr_2)) ->  | G154: =IF(ca_3=0," ",IF(caf_3=" "," ",caf_3/pr_3)) ->  | H154: =IF(ca_4=0," ",IF(caf_4=" "," ",caf_4/pr_4)) ->  | I154: =IF(ca_5=0," ",IF(caf_5=" "," ",caf_5/pr_5)) ->  | K154: =IF(K29=0," ",IF(K153=" "," ",K153/K45)) ->  | L154: =IF(L29=0," ",IF(L153=" "," ",L153/L45)) ->  | M154: =IF(M29=0," ",IF(M153=" "," ",M153/M45)) ->  | N154: =IF(N29=0," ",IF(N153=" "," ",N153/N45)) ->  | O154: =IF(O29=0," ",IF(O153=" "," ",O153/O45)) -> 
B155: CAF retraitée du crédit-bail | C155: Montant | D155: =IF(ISBLANK(u)," ",u) ->  | E155: =IF(ca_1=0," ",E153+E111) ->  | F155: =IF(ca_2=0," ",F153+F111) ->  | G155: =IF(ca_3=0," ",G153+G111) ->  | H155: =IF(ca_4=0," ",H153+H111) ->  | I155: =IF(ca_5=0," ",I153+I111) ->  | K155: =IF(K29=0," ",K153+K111) ->  | L155: =IF(L29=0," ",L153+L111) ->  | M155: =IF(M29=0," ",M153+M111) ->  | N155: =IF(N29=0," ",N153+N111) ->  | O155: =IF(O29=0," ",O153+O111) -> 
A157: CF | B157: Charges fixes nettes totales | C157: Montant | D157: € | E157: =SUMIF($A$55:$A$131,"="&A157,E55:E131) -> 0 | F157: =SUMIF($A$55:$A$131,"="&A157,F55:F131) -> 0 | G157: =SUMIF($A$55:$A$131,"="&A157,G55:G131) -> 0 | H157: =SUMIF($A$55:$A$131,"="&A157,H55:H131) -> 0 | I157: =SUMIF($A$55:$A$131,"="&A157,I55:I131) -> 0 | K157: =SUMIF($A$55:$A$131,"="&A157,K55:K131) -> 0 | L157: =SUMIF($A$55:$A$131,"="&A157,L55:L131) -> 0 | M157: =SUMIF($A$55:$A$131,"="&A157,M55:M131) -> 0 | N157: =SUMIF($A$55:$A$131,"="&A157,N55:N131) -> 0 | O157: =SUMIF($A$55:$A$131,"="&A157,O55:O131) -> 0
C158: % de la production | E158: =IF(ISERROR(E157/pr_1)," ",E157/pr_1) ->  | F158: =IF(ISERROR(F157/pr_2)," ",F157/pr_2) ->  | G158: =IF(ISERROR(G157/pr_3)," ",G157/pr_3) ->  | H158: =IF(ISERROR(H157/pr_4)," ",H157/pr_4) ->  | I158: =IF(ISERROR(I157/pr_5)," ",I157/pr_5) ->  | K158: =IF(ISERROR(K157/K45)," ",K157/K45) ->  | L158: =IF(ISERROR(L157/L45)," ",L157/L45) ->  | M158: =IF(ISERROR(M157/M45)," ",M157/M45) ->  | N158: =IF(ISERROR(N157/N45)," ",N157/N45) ->  | O158: =IF(ISERROR(O157/O45)," ",O157/O45) -> 
A159: CV | B159: Charges variables nettes totales | C159: Montant | D159: € | E159: =SUMIF($A$55:$A$131,"="&A159,E55:E131) -> 0 | F159: =SUMIF($A$55:$A$131,"="&A159,F55:F131) -> 0 | G159: =SUMIF($A$55:$A$131,"="&A159,G55:G131) -> 0 | H159: =SUMIF($A$55:$A$131,"="&A159,H55:H131) -> 0 | I159: =SUMIF($A$55:$A$131,"="&A159,I55:I131) -> 0 | K159: =SUMIF($A$55:$A$131,"="&A159,K55:K131) -> 0 | L159: =SUMIF($A$55:$A$131,"="&A159,L55:L131) -> 0 | M159: =SUMIF($A$55:$A$131,"="&A159,M55:M131) -> 0 | N159: =SUMIF($A$55:$A$131,"="&A159,N55:N131) -> 0 | O159: =SUMIF($A$55:$A$131,"="&A159,O55:O131) -> 0
C160: % de la production | E160: =IF(ISERROR(E159/pr_1)," ",E159/pr_1) ->  | F160: =IF(ISERROR(F159/pr_2)," ",F159/pr_2) ->  | G160: =IF(ISERROR(G159/pr_3)," ",G159/pr_3) ->  | H160: =IF(ISERROR(H159/pr_4)," ",H159/pr_4) ->  | I160: =IF(ISERROR(I159/pr_5)," ",I159/pr_5) ->  | K160: =IF(ISERROR(K159/K45)," ",K159/K45) ->  | L160: =IF(ISERROR(L159/L45)," ",L159/L45) ->  | M160: =IF(ISERROR(M159/M45)," ",M159/M45) ->  | N160: =IF(ISERROR(N159/N45)," ",N159/N45) ->  | O160: =IF(ISERROR(O159/O45)," ",O159/O45) -> 
B162: Résultat courant avant impôt (hors subvention) | E162: =pr_1-E157-E159 -> 0 | F162: =pr_2-F157-F159 -> 0 | G162: =pr_3-G157-G159 -> 0 | H162: =pr_4-H157-H159 -> 0 | I162: =pr_5-I157-I159 -> 0 | K162: =K45-K157-K159 -> 0 | L162: =L45-L157-L159 -> 0 | M162: =M45-M157-M159 -> 0 | N162: =N45-N157-N159 -> 0 | O162: =O45-O157-O159 -> 0
B163: Subventions d'exploitation | E163: =E84 -> 0 | F163: =F84 -> 0 | G163: =G84 -> 0 | H163: =H84 -> 0 | I163: =I84 -> 0 | K163: =K84 -> 0 | L163: =L84 -> 0 | M163: =M84 -> 0 | N163: =N84 -> 0 | O163: =O84 -> 0
B164: Résultat courant avant impôts (B) | E164: =SUM(E162:E163) -> 0 | F164: =SUM(F162:F163) -> 0 | G164: =SUM(G162:G163) -> 0 | H164: =SUM(H162:H163) -> 0 | I164: =SUM(I162:I163) -> 0 | K164: =SUM(K162:K163) -> 0 | L164: 0 | M164: =SUM(M162:M163) -> 0 | N164: 0 | O164: 0
C165: Contrôle cohérence (B-A) | E165: =IF(E164=E132,"ok",E164-E132) -> ok | F165: =IF(F164=F132,"ok",F164-F132) -> ok | G165: ok | H165: ok | I165: ok | K165: =IF(K164=K132,"ok",K164-K132) -> ok | L165: ok | M165: ok | N165: ok | O165: ok
B166: Marge sur coûts variables | C166: Montant | D166: € | E166: =pr_1-E159 -> 0 | F166: =pr_2-F159 -> 0 | G166: =pr_3-G159 -> 0 | H166: =pr_4-H159 -> 0 | I166: =pr_5-I159 -> 0 | K166: =K45-K159 -> 0 | L166: =L45-L159 -> 0 | M166: =M45-M159 -> 0 | N166: =N45-N159 -> 0 | O166: =O45-O159 -> 0
C167: % de la production | E167: =IF(ISERROR(E166/pr_1)," ",E166/pr_1) ->  | F167: =IF(ISERROR(F166/pr_2)," ",F166/pr_2) ->  | G167: =IF(ISERROR(G166/pr_3)," ",G166/pr_3) ->  | H167: =IF(ISERROR(H166/pr_4)," ",H166/pr_4) ->  | I167: =IF(ISERROR(I166/pr_5)," ",I166/pr_5) ->  | K167: =IF(ISERROR(K166/K45)," ",K166/K45) ->  | L167: =IF(ISERROR(L166/L45)," ",L166/L45) ->  | M167: =IF(ISERROR(M166/M45)," ",M166/M45) ->  | N167: =IF(ISERROR(N166/N45)," ",N166/N45) ->  | O167: =IF(ISERROR(O166/O45)," ",O166/O45) -> 
B168: Point mort (hors subvention et hors opérations exceptionnelles) | C168: Montant | D168: € | E168: =IF(ca_1=0," ",E157/E167) ->  | F168: =IF(ca_2=0," ",F157/F167) ->  | G168: =IF(ca_3=0," ",G157/G167) ->  | H168: =IF(ca_4=0," ",H157/H167) ->  | I168: =IF(ca_5=0," ",I157/I167) ->  | K168: =IF(K29=0," ",K157/K167) ->  | L168: =IF(L29=0," ",L157/L167) ->  | M168: =IF(M29=0," ",M157/M167) ->  | N168: =IF(N29=0," ",N157/N167) ->  | O168: =IF(O29=0," ",O157/O167) -> 
C169: % de la production | E169: =IF(ISERROR(E168/pr_1)," ",E168/pr_1) ->  | F169: =IF(ISERROR(F168/pr_2)," ",F168/pr_2) ->  | G169: =IF(ISERROR(G168/pr_3)," ",G168/pr_3) ->  | H169: =IF(ISERROR(H168/pr_4)," ",H168/pr_4) ->  | I169: =IF(ISERROR(I168/pr_5)," ",I168/pr_5) ->  | K169: =IF(ISERROR(K168/K45)," ",K168/K45) ->  | L169: =IF(ISERROR(L168/L45)," ",L168/L45) ->  | M169: =IF(ISERROR(M168/M45)," ",M168/M45) ->  | N169: =IF(ISERROR(N168/N45)," ",N168/N45) ->  | O169: =IF(ISERROR(O168/O45)," ",O168/O45) -> 
B170: Point mort d'exploitation (hors subvention) | C170: Montant | D170: € | E170: =IF(ca_1=0," ",(E157-E131)/E167) ->  | F170: =IF(ca_2=0," ",(F157-F131)/F167) ->  | G170: =IF(ca_3=0," ",(G157-G131)/G167) ->  | H170: =IF(ca_4=0," ",(H157-H131)/H167) ->  | I170: =IF(ca_5=0," ",(I157-I131)/I167) ->  | K170: =IF(K29=0," ",(K157-K131)/K167) ->  | L170: =IF(L29=0," ",(L157-L131)/L167) ->  | M170: =IF(M29=0," ",(M157-M131)/M167) ->  | N170: =IF(N29=0," ",(N157-N131)/N167) ->  | O170: =IF(O29=0," ",(O157-O131)/O167) -> 
C171: % de la production | E171: =IF(ISERROR(E170/pr_1)," ",E170/pr_1) ->  | F171: =IF(ISERROR(F170/pr_2)," ",F170/pr_2) ->  | G171: =IF(ISERROR(G170/pr_3)," ",G170/pr_3) ->  | H171: =IF(ISERROR(H170/pr_4)," ",H170/pr_4) ->  | I171: =IF(ISERROR(I170/pr_5)," ",I170/pr_5) ->  | K171: =IF(ISERROR(K170/K45)," ",K170/K45) ->  | L171: =IF(ISERROR(L170/L45)," ",L170/L45) ->  | M171: =IF(ISERROR(M170/M45)," ",M170/M45) ->  | N171: =IF(ISERROR(N170/N45)," ",N170/N45) ->  | O171: =IF(ISERROR(O170/O45)," ",O170/O45) -> 
B173: Retraitement du crédit-bail | C173: Commentaire | E173: =IF(ISBLANK(d_4)," ",d_4) ->  | F173: =IF(ISBLANK(d_3)," ",d_3) ->  | G173: =IF(ISBLANK(d_2)," ",d_2) ->  | H173: =IF(ISBLANK(d_1)," ",d_1) ->  | I173: =IF(ISBLANK(d)," ",d) ->  | K173: =IF(ISBLANK(d)," ",d-1) ->  | L173: =IF(ISBLANK(d)," ",d-2) ->  | M173: =IF(ISBLANK(d)," ",d-3) ->  | N173: =IF(ISBLANK(d)," ",d-4) ->  | O173: =IF(ISBLANK(d)," ",d-5) -> 
B174: I - Calcul du coefficient à appliquer au crédit-bail mobilier
B175: Valeur d'origine - prix d'achat résiduel | C175: se reporter à l'annexe du bilan
B176: Redevances payées
B177: Redevances à payer à 1 an au plus
B178: Redevances à payer à plus d'1 an et 5 ans au plus
B179: Redevances à payer à plus de 5 ans
B180: Total des annuités payées et à payer | E180: =SUM(E176:E179) -> 0 | F180: =SUM(F176:F179) -> 0 | G180: 0 | H180: 0 | I180: 0 | K180: =SUM(K176:K179) -> 0 | L180: 0 | M180: 0 | N180: 0 | O180: 0
C182: Coefficient à retenir | E182: =IF(ISERROR(E175/E180)," ",E175/E180) ->  | F182: =IF(ISERROR(F175/F180)," ",F175/F180) ->  | G182: =IF(ISERROR(G175/G180)," ",G175/G180) ->  | H182: =IF(ISERROR(H175/H180)," ",H175/H180) ->  | I182: =IF(ISERROR(I175/I180)," ",I175/I180) ->  | K182: =IF(ISERROR(K175/K180)," ",K175/K180) -> 
C183: A défaut | E183: 0.75 | F183: 0.75 | G183: 0.75 | H183: 0.75 | I183: 0.75 | K183: 0.75 | L183: 0.75 | M183: 0.75 | N183: 0.75 | O183: 0.75
B184: II - Calcul du coefficient à appliquer au crédit-bail immobilier | E184: =IF(E182=" ",E183,E182) -> 0.75 | F184: =IF(F182=" ",F183,F182) -> 0.75 | G184: =IF(G182=" ",G183,G182) -> 0.75 | H184: =IF(H182=" ",H183,H182) -> 0.75 | I184: =IF(I182=" ",I183,I182) -> 0.75 | K184: =IF(K182=" ",K183,K182) -> 0.75 | L184: 0.75 | M184: 0.75 | N184: 0.75 | O184: 0.75
B185: Valeur d'origine - prix d'achat résiduel | C185: se reporter à l'annexe du bilan
B186: Redevances payées
B187: Redevances à payer à 1 an au plus
B188: Redevances à payer à plus d'1 an et 5 ans au plus
B189: Redevances à payer à plus de 5 ans
B190: Total des annuités payées et à payer | E190: =SUM(E186:E189) -> 0 | F190: 0 | G190: 0 | H190: 0 | I190: =SUM(I186:I189) -> 0 | K190: =SUM(K186:K189) -> 0 | L190: 0 | M190: 0 | N190: 0 | O190: =SUM(O186:O189) -> 0
C192: Coefficient à retenir | E192: =IF(ISERROR(E185/E190)," ",E185/E190) ->  | F192: =IF(ISERROR(F185/F190)," ",F185/F190) ->  | G192: =IF(ISERROR(G185/G190)," ",G185/G190) ->  | H192: =IF(ISERROR(H185/H190)," ",H185/H190) ->  | I192: =IF(ISERROR(I185/I190)," ",I185/I190) ->  | K192: =IF(ISERROR(K185/K190)," ",K185/K190) -> 
C193: A défaut | E193: 0.60 | F193: 0.60 | G193: 0.60 | H193: 0.60 | I193: 0.60 | K193: 0.60 | L193: 0.60 | M193: 0.60 | N193: 0.60 | O193: 0.60
E194: =IF(E192=" ",E193,E192) -> 0.60 | F194: =IF(F192=" ",F193,F192) -> 0.60 | G194: =IF(G192=" ",G193,G192) -> 0.60 | H194: =IF(H192=" ",H193,H192) -> 0.60 | I194: =IF(I192=" ",I193,I192) -> 0.60 | K194: =IF(K192=" ",K193,K192) -> 0.60 | L194: =IF(L192=" ",L193,L192) -> 0.60 | M194: =IF(M192=" ",M193,M192) -> 0.60 | N194: =IF(N192=" ",N193,N192) -> 0.60 | O194: =IF(O192=" ",O193,O192) -> 0.60
B195: Encours de crédit-bail | C195: 2058-C | E195: =IF(ISBLANK(d_4)," ",d_4) ->  | F195: =IF(ISBLANK(d_3)," ",d_3) ->  | G195: =IF(ISBLANK(d_2)," ",d_2) ->  | H195: =IF(ISBLANK(d_1)," ",d_1) ->  | I195: =IF(ISBLANK(d)," ",d) ->  | K195: =IF(ISBLANK(d)," ",d-1) ->  | L195: =IF(ISBLANK(d)," ",d-2) ->  | M195: =IF(ISBLANK(d)," ",d-3) ->  | N195: =IF(ISBLANK(d)," ",d-4) ->  | O195: =IF(ISBLANK(d)," ",d-5) -> 
B196: Redevances de crédit-bail mobilier restant à payer | C196: 2058-C YQ
B197: Redevances de crédit-bail immobilier restant à payer | C197: 2058-C YR
B198: Total des redevances de crédit-bail restant à payer | E198: =SUM(E196:E197) -> 0 | F198: =SUM(F196:F197) -> 0 | G198: 0 | H198: 0 | I198: 0 | K198: =SUM(K196:K197) -> 0 | L198: 0 | M198: 0 | N198: 0 | O198: 0
B199: Capital restant dû sur crédit-bail mobilier | E199: =ROUND(E196*E184,0) -> 0 | F199: =ROUND(F196*F184,0) -> 0 | G199: 0 | H199: 0 | I199: 0 | K199: =ROUND(K196*K184,0) -> 0 | L199: 0 | M199: 0 | N199: 0 | O199: 0
B200: Capital restant dû sur crédit-bail immobilier | E200: =ROUND(E197*E194,0) -> 0 | F200: =ROUND(F197*F194,0) -> 0 | G200: 0 | H200: 0 | I200: 0 | K200: =ROUND(K197*K194,0) -> 0 | L200: 0 | M200: 0 | N200: 0 | O200: 0
B201: Capital restant dû sur les crédit-baux | E201: =SUM(E199:E200) -> 0 | F201: =SUM(F199:F200) -> 0 | G201: 0 | H201: 0 | I201: 0 | K201: =SUM(K199:K200) -> 0 | L201: 0 | M201: 0 | N201: 0 | O201: 0
E203: Retour

Sheet bilan
B2: =IF(ISBLANK(societe)," ",societe) ->  | C2: ANALYSE DU BILAN | P2: Exercices précédents la période d'analyse
B4: Rubriques du bilan | C4: Années : | E4: =IF(ISBLANK(d_4)," ",d_4) ->  | G4: =IF(ISBLANK(d_3)," ",d_3) ->  | I4: =IF(ISBLANK(d_2)," ",d_2) ->  | K4: =IF(ISBLANK(d_1)," ",d_1) ->  | M4: =IF(ISBLANK(d)," ",d) ->  | P4: =IF(ISBLANK(d)," ",d-1) ->  | Q4: =IF(ISBLANK(d)," ",d-1) ->  | R4: =IF(ISBLANK(d)," ",d-2) ->  | S4: =IF(ISBLANK(d)," ",d-1) ->  | T4: =IF(ISBLANK(d)," ",d-3) ->  | U4: =IF(ISBLANK(d)," ",d-1) ->  | V4: =IF(ISBLANK(d)," ",d-4) ->  | W4: =IF(ISBLANK(d)," ",d-1) ->  | X4: =IF(ISBLANK(d)," ",d-5) ->  | Y4: =IF(ISBLANK(d)," ",d-1) -> 
C5: Durée en mois : | E5: =IF(du_1=0," ",du_1) ->  | G5: =IF(du_2=0," ",du_2) ->  | I5: =IF(du_3=0," ",du_3) ->  | K5: =IF(du_4=0," ",du_4) ->  | M5: =IF(du_5=0," ",du_5) ->  | P5: =IF(du_6=0," ",du_6) ->  | R5: =IF(resultat!L9=0," ",resultat!L9) ->  | T5: =IF(resultat!M9=0," ",resultat!M9) ->  | V5: =IF(resultat!N9=0," ",resultat!N9) ->  | X5: =IF(resultat!O9=0," ",resultat!O9) -> 
C6: Cerfa | E6: =IF(ISBLANK(u)," ",u) ->  | F6: % | G6: =IF(ISBLANK(u)," ",u) ->  | H6: % | I6: =IF(ISBLANK(u)," ",u) ->  | J6: % | K6: =IF(ISBLANK(u)," ",u) ->  | L6: % | M6: =IF(ISBLANK(u)," ",u) ->  | N6: % | P6: =IF(ISBLANK(u)," ",u) ->  | Q6: % | R6: =IF(ISBLANK(u)," ",u) ->  | S6: % | T6: =IF(ISBLANK(u)," ",u) ->  | U6: % | V6: =IF(ISBLANK(u)," ",u) ->  | W6: % | X6: =IF(ISBLANK(u)," ",u) ->  | Y6: %
B7: Capital social | C7: 2051 | D7: DA
B8: Capitaux propres | C8: 2051 | D8: DL
B9: Capital souscrit non appelé | C9: 2050 | D9: AA
B10: Autres fonds propres | C10: 2051 | D10: DO
B11: Provisions pour risques et charges | C11: 2051 | D11: DR
B12: Ecart de conversion passif | C12: 2051 | D12: ED
B13: Ecart de conversion actif | C13: 2050 | D13: CN
B14: Frais d'établissement | C14: 2050 | D14: AB - AC
B15: Frais d'émission d'emprunts à étaler | C15: 2050 | D15: CW
B16: Primes de remboursement sur obligations | C16: 2050 | D16: CM
B17: Total des non valeurs | E17: =IF(ca_1=0," ",E12-E13-E14-E15-E16) ->  | G17: =IF(ca_2=0," ",G12-G13-G14-G15-G16) ->  | I17: =IF(ca_3=0," ",I12-I13-I14-I15-I16) ->  | K17: =IF(ca_4=0," ",K12-K13-K14-K15-K16) ->  | M17: =IF(ca_5=0," ",M12-M13-M14-M15-M16) ->  | P17: =P12-P13-P14-P15-P16 -> 0 | R17: =R12-R13-R14-R15-R16 -> 0 | T17: =T12-T13-T14-T15-T16 -> 0 | V17: =V12-V13-V14-V15-V16 -> 0 | X17: =X12-X13-X14-X15-X16 -> 0
B18: Ressources propres | E18: =IF(ca_1=0,0,E8-E9+E10+E11+E17) -> 0 | F18: =IF(ISERROR(rp_1/b_1)," ",rp_1/b_1) ->  | G18: =IF(ca_2=0,0,G8-G9+G10+G11+G17) -> 0 | H18: =IF(ISERROR(rp_2/b_2)," ",rp_2/b_2) ->  | I18: =IF(ca_3=0,0,I8-I9+I10+I11+I17) -> 0 | J18: =IF(ISERROR(rp_3/b_3)," ",rp_3/b_3) ->  | K18: =IF(ca_4=0,0,K8-K9+K10+K11+K17) -> 0 | L18: =IF(ISERROR(rp_4/b_4)," ",rp_4/b_4) ->  | M18: =IF(ca_5=0,0,M8-M9+M10+M11+M17) -> 0 | N18: =IF(ISERROR(rp_5/b_5)," ",rp_5/b_5) ->  | P18: =P8-P9+P10+P11+P17 -> 0 | Q18: =IF(ISERROR(P18/P115)," ",P18/P115) ->  | R18: =R8-R9+R10+R11+R17 -> 0 | S18: =IF(ISERROR(R18/R115)," ",R18/R115) ->  | T18: =T8-T9+T10+T11+T17 -> 0 | U18: =IF(ISERROR(T18/T115)," ",T18/T115) ->  | V18: =V8-V9+V10+V11+V17 -> 0 | W18: =IF(ISERROR(V18/V115)," ",V18/V115) ->  | X18: =X8-X9+X10+X11+X17 -> 0 | Y18: =IF(ISERROR(X18/X115)," ",X18/X115) -> 
B19: Emprunts obligataires convertibles | C19: 2051 | D19: DS
B20: Autres emprunts obligataires | C20: 2051 | D20: DT
B21: Emprunts et dettes bancaires | C21: 2051 | D21: DU
B22: Emprunts et dettes financières divers | C22: 2051 | D22: DV
B23: Total des dettes financières | E23: =SUM(E19:E22) -> 0 | F23: =IF(ISERROR(E23/b_1)," ",E23/b_1) ->  | G23: =SUM(G19:G22) -> 0 | H23: =IF(ISERROR(G23/b_2)," ",G23/b_2) ->  | I23: =SUM(I19:I22) -> 0 | J23: =IF(ISERROR(I23/b_3)," ",I23/b_3) ->  | K23: =SUM(K19:K22) -> 0 | L23: =IF(ISERROR(K23/b_4)," ",K23/b_4) ->  | M23: =SUM(M19:M22) -> 0 | N23: =IF(ISERROR(M23/b_5)," ",M23/b_5) ->  | P23: =SUM(P19:P22) -> 0 | Q23: =IF(ISERROR(P23/P115)," ",P23/P115) ->  | R23: =SUM(R19:R22) -> 0 | S23: =IF(ISERROR(R23/R115)," ",R23/R115) ->  | T23: =SUM(T19:T22) -> 0 | U23: =IF(ISERROR(T23/T115)," ",T23/T115) ->  | V23: =SUM(V19:V22) -> 0 | W23: =IF(ISERROR(V23/V115)," ",V23/V115) ->  | X23: =SUM(X19:X22) -> 0 | Y23: =IF(ISERROR(X23/X115)," ",X23/X115) -> 
B24: Concours bancaires courants | C24: 2051 | D24: EH
B25: Ressources d'emprunt | E25: =E23-E24 -> 0 | F25: =IF(ISERROR(emp_1/b_1)," ",emp_1/b_1) ->  | G25: =G23-G24 -> 0 | H25: =IF(ISERROR(emp_2/b_2)," ",emp_2/b_2) ->  | I25: =I23-I24 -> 0 | J25: =IF(ISERROR(emp_3/b_3)," ",emp_3/b_3) ->  | K25: =K23-K24 -> 0 | L25: =IF(ISERROR(emp_4/b_4)," ",emp_4/b_4) ->  | M25: =M23-M24 -> 0 | N25: =IF(ISERROR(emp_5/b_5)," ",emp_5/b_5) ->  | P25: =P23-P24 -> 0 | Q25: =IF(ISERROR(P25/P115)," ",P25/P115) ->  | R25: =R23-R24 -> 0 | S25: =IF(ISERROR(R25/R115)," ",R25/R115) ->  | T25: =T23-T24 -> 0 | U25: =IF(ISERROR(T25/T115)," ",T25/T115) ->  | V25: =V23-V24 -> 0 | W25: =IF(ISERROR(V25/V115)," ",V25/V115) ->  | X25: =X23-X24 -> 0 | Y25: =IF(ISERROR(X25/X115)," ",X25/X115) -> 
B26: Capitaux permanents | E26: =IF(ca_1=0,0,E18+E25) -> 0 | F26: =IF(ISERROR(cp_1/b_1)," ",cp_1/b_1) ->  | G26: =IF(ca_2=0,0,G18+G25) -> 0 | H26: =IF(ISERROR(cp_2/b_2)," ",cp_2/b_2) ->  | I26: =IF(ca_3=0,0,I18+I25) -> 0 | J26: =IF(ISERROR(cp_3/b_3)," ",cp_3/b_3) ->  | K26: =IF(ca_4=0,0,K18+K25) -> 0 | L26: =IF(ISERROR(cp_4/b_4)," ",cp_4/b_4) ->  | M26: =IF(ca_5=0,0,M18+M25) -> 0 | N26: =IF(ISERROR(cp_5/b_5)," ",cp_5/b_5) ->  | P26: =P18+P25 -> 0 | Q26: =IF(ISERROR(P26/P115)," ",P26/P115) ->  | R26: =R18+R25 -> 0 | S26: =IF(ISERROR(R26/R115)," ",R26/R115) ->  | T26: =T18+T25 -> 0 | U26: =IF(ISERROR(T26/T115)," ",T26/T115) ->  | V26: =V18+V25 -> 0 | W26: =IF(ISERROR(V26/V115)," ",V26/V115) ->  | X26: =X18+X25 -> 0 | Y26: =IF(ISERROR(X26/X115)," ",X26/X115) -> 
B27: Fournisseurs et comptes rattachés | C27: 2051 | D27: DX | F27: =IF(ISERROR(E27/b_1)," ",E27/b_1) ->  | H27: =IF(ISERROR(G27/b_2)," ",G27/b_2) ->  | J27: =IF(ISERROR(I27/b_3)," ",I27/b_3) ->  | L27: =IF(ISERROR(K27/b_4)," ",K27/b_4) ->  | N27: =IF(ISERROR(M27/b_5)," ",M27/b_5) ->  | Q27: =IF(ISERROR(P27/P115)," ",P27/P115) ->  | S27: =IF(ISERROR(R27/R115)," ",R27/R115) ->  | U27: =IF(ISERROR(T27/T115)," ",T27/T115) ->  | W27: =IF(ISERROR(V27/V115)," ",V27/V115) ->  | Y27: =IF(ISERROR(X27/X115)," ",X27/X115) -> 
B28: Dettes fiscales et sociales | C28: 2051 | D28: DY
B29: dont Impôts sur les bénéfices | C29: 2057 | D29: 8E
B30: Dettes fiscales et sociales d'exploitation | E30: =E28-E29 -> 0 | F30: =IF(ISERROR(dfse_1/b_1)," ",dfse_1/b_1) ->  | G30: =G28-G29 -> 0 | H30: =IF(ISERROR(dfse_2/b_2)," ",dfse_2/b_2) ->  | I30: =I28-I29 -> 0 | J30: =IF(ISERROR(dfse_3/b_3)," ",dfse_3/b_3) ->  | K30: =K28-K29 -> 0 | L30: =IF(ISERROR(dfse_4/b_4)," ",dfse_4/b_4) ->  | M30: =M28-M29 -> 0 | N30: =IF(ISERROR(dfse_5/b_5)," ",dfse_5/b_5) ->  | P30: =P28-P29 -> 0 | Q30: =IF(ISERROR(P30/P115)," ",P30/P115) ->  | R30: =R28-R29 -> 0 | S30: =IF(ISERROR(R30/R115)," ",R30/R115) ->  | T30: =T28-T29 -> 0 | U30: =IF(ISERROR(T30/T115)," ",T30/T115) ->  | V30: =V28-V29 -> 0 | W30: =IF(ISERROR(V30/V115)," ",V30/V115) ->  | X30: =X28-X29 -> 0 | Y30: =IF(ISERROR(X30/X115)," ",X30/X115) -> 
B31: Avances et acomptes reçus sur commandes en cours | C31: 2051 | D31: DW
B32: Autres dettes | C32: 2051 | D32: EA
B33: dont Groupe et associés | C33: 2057 | D33: VI
B34: Autres dettes d'exploitation | E34: =E31+E32-E33 -> 0 | F34: =IF(ISERROR(ade_1/b_1)," ",ade_1/b_1) ->  | G34: =G31+G32-G33 -> 0 | H34: =IF(ISERROR(ade_2/b_2)," ",ade_2/b_2) ->  | I34: =I31+I32-I33 -> 0 | J34: =IF(ISERROR(ade_3/b_3)," ",ade_3/b_3) ->  | K34: =K31+K32-K33 -> 0 | L34: =IF(ISERROR(ade_4/b_4)," ",ade_4/b_4) ->  | M34: =M31+M32-M33 -> 0 | N34: =IF(ISERROR(ade_5/b_5)," ",ade_5/b_5) ->  | P34: =P31+P32-P33 -> 0 | Q34: =IF(ISERROR(P34/P115)," ",P34/P115) ->  | R34: =R31+R32-R33 -> 0 | S34: =IF(ISERROR(R34/R115)," ",R34/R115) ->  | T34: =T31+T32-T33 -> 0 | U34: =IF(ISERROR(T34/T115)," ",T34/T115) ->  | V34: =V31+V32-V33 -> 0 | W34: =IF(ISERROR(V34/V115)," ",V34/V115) ->  | X34: =X31+X32-X33 -> 0 | Y34: =IF(ISERROR(X34/X115)," ",X34/X115) -> 
B35: Produits constatés d'avance | C35: 2051 | D35: EB
B36: Dettes d'exploitation nettes | E36: =E27+E30+E34+E35 -> 0 | F36: =IF(ISERROR(E36/b_1)," ",E36/b_1) ->  | G36: =G27+G30+G34+G35 -> 0 | H36: =IF(ISERROR(G36/b_2)," ",G36/b_2) ->  | I36: =I27+I30+I34+I35 -> 0 | J36: =IF(ISERROR(I36/b_3)," ",I36/b_3) ->  | K36: =K27+K30+K34+K35 -> 0 | L36: =IF(ISERROR(K36/b_4)," ",K36/b_4) ->  | M36: =M27+M30+M34+M35 -> 0 | N36: =IF(ISERROR(M36/b_5)," ",M36/b_5) ->  | P36: =P27+P30+P34+P35 -> 0 | Q36: =IF(ISERROR(P36/P115)," ",P36/P115) ->  | R36: =R27+R30+R34+R35 -> 0 | S36: =IF(ISERROR(R36/R115)," ",R36/R115) ->  | T36: =T27+T30+T34+T35 -> 0 | U36: =IF(ISERROR(T36/T115)," ",T36/T115) ->  | V36: =V27+V30+V34+V35 -> 0 | W36: =IF(ISERROR(V36/V115)," ",V36/V115) ->  | X36: =X27+X30+X34+X35 -> 0 | Y36: =IF(ISERROR(X36/X115)," ",X36/X115) -> 
B37: Dettes sur immobilisations | C37: 2051 | D37: DZ
B38: Impôts sur les bénéfices (dette) | C38: 2057 | D38: 8E | E38: =IF(ca_1=0," ",E29) ->  | G38: =IF(ca_2=0," ",G29) ->  | I38: =IF(ca_3=0," ",I29) ->  | K38: =IF(ca_4=0," ",K29) ->  | M38: =IF(ca_5=0," ",M29) ->  | P38: =P29 -> 0 | R38: =R29 -> 0 | T38: =T29 -> 0 | V38: =V29 -> 0 | X38: =X29 -> 0
B39: Groupe et associés (dette) | C39: 2057 | D39: VI | E39: =IF(ca_1= 0," ",E33) ->  | G39: =IF(ca_2= 0," ",G33) ->  | I39: =IF(ca_3= 0," ",I33) ->  | K39: =IF(ca_4= 0," ",K33) ->  | M39: =IF(ca_5= 0," ",M33) ->  | P39: =P33 -> 0 | R39: =R33 -> 0 | T39: =T33 -> 0 | V39: =V33 -> 0 | X39: =X33 -> 0
B40: Autres dettes (si ligne 31 non renseignée) | C40: 2051 | D40: EA
B41: Dettes hors exploitation nettes | E41: =SUM(E37:E40) -> 0 | F41: =IF(ISERROR(E41/b_1)," ",E41/b_1) ->  | G41: =SUM(G37:G40) -> 0 | H41: =IF(ISERROR(G41/b_2)," ",G41/b_2) ->  | I41: =SUM(I37:I40) -> 0 | J41: =IF(ISERROR(I41/b_3)," ",I41/b_3) ->  | K41: =SUM(K37:K40) -> 0 | L41: =IF(ISERROR(K41/b_4)," ",K41/b_4) ->  | M41: =SUM(M37:M40) -> 0 | N41: =IF(ISERROR(M41/b_5)," ",M41/b_5) ->  | P41: =SUM(P37:P40) -> 0 | Q41: =IF(ISERROR(P41/P115)," ",P41/P115) ->  | R41: =SUM(R37:R40) -> 0 | S41: =IF(ISERROR(R41/R115)," ",R41/R115) ->  | T41: =SUM(T37:T40) -> 0 | U41: =IF(ISERROR(T41/T115)," ",T41/T115) ->  | V41: =SUM(V37:V40) -> 0 | W41: =IF(ISERROR(V41/V115)," ",V41/V115) ->  | X41: =SUM(X37:X40) -> 0 | Y41: =IF(ISERROR(X41/X115)," ",X41/X115) -> 
B42: Dettes à court terme | E42: =E36+E41 -> 0 | F42: =IF(ISERROR(E42/b_1)," ",E42/b_1) ->  | G42: =G36+G41 -> 0 | H42: =IF(ISERROR(G42/b_2)," ",G42/b_2) ->  | I42: =I36+I41 -> 0 | J42: =IF(ISERROR(I42/b_3)," ",I42/b_3) ->  | K42: =K36+K41 -> 0 | L42: =IF(ISERROR(K42/b_4)," ",K42/b_4) ->  | M42: =M36+M41 -> 0 | N42: =IF(ISERROR(M42/b_5)," ",M42/b_5) ->  | P42: =P36+P41 -> 0 | Q42: =IF(ISERROR(P42/b_5)," ",P42/b_5) ->  | R42: =R36+R41 -> 0 | S42: =IF(ISERROR(R42/b_5)," ",R42/b_5) ->  | T42: =T36+T41 -> 0 | U42: =IF(ISERROR(T42/b_5)," ",T42/b_5) ->  | V42: =V36+V41 -> 0 | W42: =IF(ISERROR(V42/b_5)," ",V42/b_5) ->  | X42: =X36+X41 -> 0 | Y42: =IF(ISERROR(X42/b_5)," ",X42/b_5) -> 
R43: =R42-DCT_1 -> 0 | T43: =T42-DCT_2 -> 0 | V43: =V42-DCT_3 -> 0 | X43: =X42-DCT_4 -> 0
B44: Frais de recherche et développement | C44: 2054 | D44: DO
B45: Autres Immobilisations incorporelles brutes | C45: 2054 | D45: LW
B46: Immobilisations corporelles brutes | C46: 2054 | D46: NH
B47: Immobilisations financières brutes | C47: 2054 | D47: NK
B48: dont créances rattachées à des participations | C48: 2050-BB | D48: Commentaire
B49: Actif immobilisé brut | E49: =SUM(E44:E47) -> 0 | G49: =SUM(G44:G47) -> 0 | I49: =SUM(I44:I47) -> 0 | K49: =SUM(K44:K47) -> 0 | M49: =SUM(M44:M47) -> 0 | P49: =SUM(P44:P47) -> 0 | R49: =SUM(R44:R47) -> 0 | T49: =SUM(T44:T47) -> 0 | V49: =SUM(V44:V47) -> 0 | X49: =SUM(X44:X47) -> 0
B50: Dépréciation des frais de recherche & développement | C50: 2055 | D50: EN
B51: Taux de dépréciation | E51: =IF(ISERROR(ae_1/do_1)," ",ae_1/do_1) ->  | G51: =IF(ISERROR(ae_2/do_2)," ",ae_2/do_2) ->  | I51: =IF(ISERROR(ae_3/do_3)," ",ae_3/do_3) ->  | K51: =IF(ISERROR(ae_4/do_4)," ",ae_4/do_4) ->  | M51: =IF(ISERROR(ae_5/do_5)," ",ae_5/do_5) ->  | P51: =IF(ISERROR(P50/P44)," ",P50/P44) ->  | R51: =IF(ISERROR(R50/R44)," ",R50/R44) ->  | T51: =IF(ISERROR(T50/T44)," ",T50/T44) ->  | V51: =IF(ISERROR(V50/V44)," ",V50/V44) ->  | X51: =IF(ISERROR(X50/X44)," ",X50/X44) -> 
B52: Dépréciation des autres immobilisations incorporelles | C52: 2055 | D52: PH
B53: Taux de dépréciation | E53: =IF(ISERROR(ph_1/lw_1)," ",ph_1/lw_1) ->  | G53: =IF(ISERROR(ph_2/lw_2)," ",ph_2/lw_2) ->  | I53: =IF(ISERROR(ph_3/lw_3)," ",ph_3/lw_3) ->  | K53: =IF(ISERROR(ph_4/lw_4)," ",ph_4/lw_4) ->  | M53: =IF(ISERROR(ph_5/lw_5)," ",ph_5/lw_5) ->  | P53: =IF(ISERROR(P52/P45)," ",P52/P45) ->  | R53: =IF(ISERROR(R52/R45)," ",R52/R45) ->  | T53: =IF(ISERROR(T52/T45)," ",T52/T45) ->  | V53: =IF(ISERROR(V52/V45)," ",V52/V45) ->  | X53: =IF(ISERROR(X52/X45)," ",X52/X45) -> 
B54: Dépréciation des immobilisations corporelles | C54: 2055 | D54: QX
B55: Taux de dépréciation | E55: =IF(ISERROR(qx_1/nh_1)," ",qx_1/nh_1) ->  | G55: =IF(ISERROR(qx_2/nh_2)," ",qx_2/nh_2) ->  | I55: =IF(ISERROR(qx_3/nh_3)," ",qx_3/nh_3) ->  | K55: =IF(ISERROR(qx_4/nh_4)," ",qx_4/nh_4) ->  | M55: =IF(ISERROR(qx_5/nh_5)," ",qx_5/nh_5) ->  | P55: =IF(ISERROR(P54/P46)," ",P54/P46) ->  | R55: =IF(ISERROR(R54/R46)," ",R54/R46) ->  | T55: =IF(ISERROR(T54/T46)," ",T54/T46) ->  | V55: =IF(ISERROR(V54/V46)," ",V54/V46) ->  | X55: =IF(ISERROR(X54/X46)," ",X54/X46) -> 
B56: Dépréciation des immobilisations financières | C56: 2056 | D56: 05+9X+09
B57: Taux de dépréciation | E57: =IF(ISERROR(x_1/nk_1)," ",x_1/nk_1) ->  | G57: =IF(ISERROR(x_2/nk_2)," ",x_2/nk_2) ->  | I57: =IF(ISERROR(x_3/nk_3)," ",x_3/nk_3) ->  | K57: =IF(ISERROR(x_4/nk_4)," ",x_4/nk_4) ->  | M57: =IF(ISERROR(x_5/nk_5)," ",x_5/nk_5) ->  | P57: =IF(ISERROR(P56/P47)," ",P56/P47) ->  | R57: =IF(ISERROR(R56/R47)," ",R56/R47) ->  | T57: =IF(ISERROR(T56/T47)," ",T56/T47) ->  | V57: =IF(ISERROR(V56/V47)," ",V56/V47) ->  | X57: =IF(ISERROR(X56/X47)," ",X56/X47) -> 
B58: dont provisions/créances rattachées à des participations | C58: 2050 | D58: BC
B59: Taux de dépréciation | E59: =IF(ISERROR(E58/E48)," ",E58/E48) ->  | G59: =IF(ISERROR(G58/G48)," ",G58/G48) ->  | I59: =IF(ISERROR(I58/I48)," ",I58/I48) ->  | K59: =IF(ISERROR(K58/K48)," ",K58/K48) ->  | M59: =IF(ISERROR(M58/M48)," ",M58/M48) ->  | P59: =IF(ISERROR(P58/P48)," ",P58/P48) ->  | R59: =IF(ISERROR(R58/R48)," ",R58/R48) ->  | T59: =IF(ISERROR(T58/T48)," ",T58/T48) ->  | V59: =IF(ISERROR(V58/V48)," ",V58/V48) ->  | X59: =IF(ISERROR(X58/X48)," ",X58/X48) -> 
B60: Dépréciation de l'actif immobilisé | E60: =ae_1+ph_1+qx_1+x_1 -> 0 | G60: =ae_2+ph_2+qx_2+x_2 -> 0 | I60: =ae_3+ph_3+qx_3+x_3 -> 0 | K60: =ae_4+ph_4+qx_4+x_4 -> 0 | M60: =ae_5+ph_5+qx_5+x_5 -> 0 | P60: =P50+P52+P54+P56 -> 0 | R60: =R50+R52+R54+R56 -> 0 | T60: =T50+T52+T54+T56 -> 0 | V60: =V50+V52+V54+V56 -> 0 | X60: =X50+X52+X54+X56 -> 0
B61: Taux de dépréciation | E61: =IF(ISERROR(E60/E49)," ",E60/E49) ->  | G61: =IF(ISERROR(G60/G49)," ",G60/G49) ->  | I61: =IF(ISERROR(I60/I49)," ",I60/I49) ->  | K61: =IF(ISERROR(K60/K49)," ",K60/K49) ->  | M61: =IF(ISERROR(M60/M49)," ",M60/M49) ->  | P61: =IF(ISERROR(P60/P49)," ",P60/P49) ->  | R61: =IF(ISERROR(R60/R49)," ",R60/R49) ->  | T61: =IF(ISERROR(T60/T49)," ",T60/T49) ->  | V61: =IF(ISERROR(V60/V49)," ",V60/V49) ->  | X61: =IF(ISERROR(X60/X49)," ",X60/X49) -> 
B62: Actif immobilisé net | E62: =IF(ISERROR(E49-E60)," ",E49-E60) -> 0 | F62: =IF(ISERROR(bj_1/b_1)," ",bj_1/b_1) ->  | G62: =IF(ISERROR(G49-G60)," ",G49-G60) -> 0 | H62: =IF(ISERROR(bj_2/b_2)," ",bj_2/b_2) ->  | I62: =IF(ISERROR(I49-I60)," ",I49-I60) -> 0 | J62: =IF(ISERROR(bj_3/b_3)," ",bj_3/b_3) ->  | K62: =IF(ISERROR(K49-K60)," ",K49-K60) -> 0 | L62: =IF(ISERROR(bj_4/b_4)," ",bj_4/b_4) ->  | M62: =IF(ISERROR(M49-M60)," ",M49-M60) -> 0 | N62: =IF(ISERROR(bj_5/b_5)," ",bj_5/b_5) ->  | P62: =IF(ISERROR(P49-P60)," ",P49-P60) -> 0 | Q62: =IF(ISERROR(P62/P115)," ",P62/P115) ->  | R62: =IF(ISERROR(R49-R60)," ",R49-R60) -> 0 | S62: =IF(ISERROR(R62/R115)," ",R62/R115) ->  | T62: =IF(ISERROR(T49-T60)," ",T49-T60) -> 0 | U62: =IF(ISERROR(T62/T115)," ",T62/T115) ->  | V62: =IF(ISERROR(V49-V60)," ",V49-V60) -> 0 | W62: =IF(ISERROR(V62/V115)," ",V62/V115) ->  | X62: =IF(ISERROR(X49-X60)," ",X49-X60) -> 0 | Y62: =IF(ISERROR(X62/X115)," ",X62/X115) -> 
B63: Matières premières, approvisionnements | C63: 2050 | D63: BL
B64: Encours de production de biens | C64: 2050 | D64: BN
B65: Encours de production de services | C65: 2050 | D65: BP
B66: Produits intermédiaires et finis | C66: 2050 | D66: BR
B67: Marchandises | C67: 2050 | D67: BT
B68: Total des stocks bruts | E68: =SUM(E63:E67) -> 0 | G68: =SUM(G63:G67) -> 0 | I68: =SUM(I63:I67) -> 0 | K68: =SUM(K63:K67) -> 0 | M68: =SUM(M63:M67) -> 0 | P68: =SUM(P63:P67) -> 0 | R68: =SUM(R63:R67) -> 0 | T68: =SUM(T63:T67) -> 0 | V68: =SUM(V63:V67) -> 0 | X68: =SUM(X63:X67) -> 0
E69: =IF(st_1=0," ",st_1/ca_1) ->  | G69: =IF(st_2=0," ",st_2/ca_2) ->  | I69: =IF(st_3=0," ",st_3/ca_3) ->  | K69: =IF(st_4=0," ",st_4/ca_4) ->  | M69: =IF(st_5=0," ",st_5/ca_5) ->  | P69: =IF(P68=0," ",P68/resultat!K29) ->  | R69: =IF(R68=0," ",R68/resultat!L29) ->  | T69: =IF(T68=0," ",T68/resultat!M29) ->  | V69: =IF(V68=0," ",V68/resultat!N29) ->  | X69: =IF(X68=0," ",X68/resultat!O29) -> 
B70: Dépréciation des matières & approvisionnements | C70: 2050 | D70: BM
B71: Taux de dépréciation | E71: =IF(ISERROR(bm_1/bl_1)," ",bm_1/bl_1) ->  | G71: =IF(ISERROR(bm_2/bl_2)," ",bm_2/bl_2) ->  | I71: =IF(ISERROR(bm_3/bl_3)," ",bm_3/bl_3) ->  | K71: =IF(ISERROR(bm_4/bl_4)," ",bm_4/bl_4) ->  | M71: =IF(ISERROR(bm_5/bl_5)," ",bm_5/bl_5) ->  | P71: =IF(ISERROR(P70/P63)," ",P70/P63) ->  | R71: =IF(ISERROR(R70/R63)," ",R70/R63) ->  | T71: =IF(ISERROR(T70/T63)," ",T70/T63) ->  | V71: =IF(ISERROR(V70/V63)," ",V70/V63) ->  | X71: =IF(ISERROR(X70/X63)," ",X70/X63) -> 
B72: Dépréciation des encours de biens | C72: 2050 | D72: BO
B73: Taux de dépréciation | E73: =IF(ISERROR(bo_1/bn_1)," ",bo_1/bn_1) ->  | G73: =IF(ISERROR(bo_2/bn_2)," ",bo_2/bn_2) ->  | I73: =IF(ISERROR(bo_3/bn_3)," ",bo_3/bn_3) ->  | K73: =IF(ISERROR(bo_4/bn_4)," ",bo_4/bn_4) ->  | M73: =IF(ISERROR(bo_51/bn_5)," ",bo_5/bn_5) ->  | P73: =IF(ISERROR(P72/P64)," ",P72/P64) ->  | R73: =IF(ISERROR(R72/R64)," ",R72/R64) ->  | T73: =IF(ISERROR(T72/T64)," ",T72/T64) ->  | V73: =IF(ISERROR(V72/V64)," ",V72/V64) ->  | X73: =IF(ISERROR(X72/X64)," ",X72/X64) -> 
B74: Dépréciation des encours de service | C74: 2050 | D74: BQ
B75: Taux de dépréciation | E75: =IF(ISERROR(bq_1/bp_1)," ",bq_1/bp_1) ->  | G75: =IF(ISERROR(bq_2/bp_2)," ",bq_2/bp_2) ->  | I75: =IF(ISERROR(bq_3/bp_3)," ",bq_3/bp_3) ->  | K75: =IF(ISERROR(bq_4/bp_4)," ",bq_4/bp_4) ->  | M75: =IF(ISERROR(bq_5/bp_5)," ",bq_5/bp_5) ->  | P75: =IF(ISERROR(P74/P65)," ",P74/P65) ->  | R75: =IF(ISERROR(R74/R65)," ",R74/R65) ->  | T75: =IF(ISERROR(T74/T65)," ",T74/T65) ->  | V75: =IF(ISERROR(V74/V65)," ",V74/V65) ->  | X75: =IF(ISERROR(X74/X65)," ",X74/X65) -> 
B76: Dépréciation des produits | C76: 2050 | D76: BS
B77: Taux de dépréciation | E77: =IF(ISERROR(bs_1/br_1)," ",bs_1/br_1) ->  | G77: =IF(ISERROR(bs_2/br_2)," ",bs_2/br_2) ->  | I77: =IF(ISERROR(bs_3/br_3)," ",bs_3/br_3) ->  | K77: =IF(ISERROR(bs_4/br_4)," ",bs_4/br_4) ->  | M77: =IF(ISERROR(bs_5/br_5)," ",bs_5/br_5) ->  | P77: =IF(ISERROR(P76/P66)," ",P76/P66) ->  | R77: =IF(ISERROR(R76/R66)," ",R76/R66) ->  | T77: =IF(ISERROR(T76/T66)," ",T76/T66) ->  | V77: =IF(ISERROR(V76/V66)," ",V76/V66) ->  | X77: =IF(ISERROR(X76/X66)," ",X76/X66) -> 
B78: Dépréciation des marchandises | C78: 2050 | D78: BU
B79: Taux de dépréciation | E79: =IF(ISERROR(bu_1/bt_1)," ",bu_1/bt_1) ->  | G79: =IF(ISERROR(bu_2/bt_2)," ",bu_2/bt_2) ->  | I79: =IF(ISERROR(bu_3/bt_3)," ",bu_3/bt_3) ->  | K79: =IF(ISERROR(bu_4/bt_4)," ",bu_4/bt_4) ->  | M79: =IF(ISERROR(bu_5/bt_5)," ",bu_5/bt_5) ->  | P79: =IF(ISERROR(P78/P67)," ",P78/P67) ->  | R79: =IF(ISERROR(R78/R67)," ",R78/R67) ->  | T79: =IF(ISERROR(T78/T67)," ",T78/T67) ->  | V79: =IF(ISERROR(V78/V67)," ",V78/V67) ->  | X79: =IF(ISERROR(X78/X67)," ",X78/X67) -> 
B80: Total des dépréciations des stocks | E80: =bm_1+bo_1+bq_1+bs_1+bu_1 -> 0 | G80: =bm_2+bo_2+bq_2+bs_2+bu_2 -> 0 | I80: =bm_3+bo_3+bq_3+bs_3+bu_3 -> 0 | K80: =bm_4+bo_4+bq_4+bs_4+bu_4 -> 0 | M80: =bm_5+bo_5+bq_5+bs_5+bu_5 -> 0 | P80: =P70+P72+P74+P76+P78 -> 0 | R80: =R70+R72+R74+R76+R78 -> 0 | T80: =T70+T72+T74+T76+T78 -> 0 | V80: =V70+V72+V74+V76+V78 -> 0 | X80: =X70+X72+X74+X76+X78 -> 0
B81: Taux de dépréciation | E81: =IF(ISERROR(E80/E68)," ",E80/E68) ->  | G81: =IF(ISERROR(G80/G68)," ",G80/G68) ->  | I81: =IF(ISERROR(I80/I68)," ",I80/I68) ->  | K81: =IF(ISERROR(K80/K68)," ",K80/K68) ->  | M81: =IF(ISERROR(M80/M68)," ",M80/M68) ->  | P81: =IF(ISERROR(P80/P68)," ",P80/P68) ->  | R81: =IF(ISERROR(R80/R68)," ",R80/R68) ->  | T81: =IF(ISERROR(T80/T68)," ",T80/T68) ->  | V81: =IF(ISERROR(V80/V68)," ",V80/V68) ->  | X81: =IF(ISERROR(X80/X68)," ",X80/X68) -> 
B82: Total des stocks nets | E82: =E68-E80 -> 0 | F82: =IF(ISERROR(stn_1/b_1)," ",stn_1/b_1) ->  | G82: =G68-G80 -> 0 | H82: =IF(ISERROR(stn_2/b_2)," ",stn_2/b_2) ->  | I82: =I68-I80 -> 0 | J82: =IF(ISERROR(stn_3/b_3)," ",stn_3/b_3) ->  | K82: =K68-K80 -> 0 | L82: =IF(ISERROR(stn_4/b_4)," ",stn_4/b_4) ->  | M82: =M68-M80 -> 0 | N82: =IF(ISERROR(stn_5/b_5)," ",stn_5/b_5) ->  | P82: =P68-P80 -> 0 | Q82: =IF(ISERROR(P82/P115)," ",P82/P115) ->  | R82: =R68-R80 -> 0 | S82: =IF(ISERROR(R82/R115)," ",R82/R115) ->  | T82: =T68-T80 -> 0 | U82: =IF(ISERROR(T82/T115)," ",T82/T115) ->  | V82: =V68-V80 -> 0 | W82: =IF(ISERROR(V82/V115)," ",V82/V115) ->  | X82: =X68-X80 -> 0 | Y82: =IF(ISERROR(X82/X115)," ",X82/X115) -> 
B83: Clients et compte rattachés | C83: 2050 | D83: BX
B84: Effets escomptés non échus | C84: 2058-C | D84: YS
B85: Effets remis à l'encaissement non échus | C85: Détail | D85: Commentaire
B86: Encours factor | C86: Annexe | D86: Commentaire | E86: =factor_1A+factor_1B+factor_1C -> 0 | G86: =factor_2A+factor_2B+factor_2C -> 0 | I86: =factor_3A+factor_3B+factor_3C -> 0 | K86: =factor_4A+factor_4B+factor_4C -> 0 | M86: =factor_5A+factor_5B+factor_5C -> 0 | P86: =P99+P119+P122 -> 0 | R86: =R99+R119+R122 -> 0 | T86: =T99+T119+T122 -> 0 | V86: =V99+V119+V122 -> 0 | X86: =X99+X119+X122 -> 0
B87: Taux de mobilisation des créances clients | E87: =IF(ISERROR((E84+E86)/clt_brut_1)," ",(E84+E86)/clt_brut_1) ->  | G87: =IF(ISERROR((G84+G86)/clt_brut_2)," ",(G84+G86)/clt_brut_2) ->  | I87: =IF(ISERROR((I84+I86)/clt_brut_3)," ",(I84+I86)/clt_brut_3) ->  | K87: =IF(ISERROR((K84+K86)/clt_brut_4)," ",(K84+K86)/clt_brut_4) ->  | M87: =IF(ISERROR((M84+M86)/clt_brut_5)," ",(M84+M86)/clt_brut_5) ->  | P87: =IF(ISERROR((P84+P86)/P88)," ",(P84+P86)/P88) ->  | R87: =IF(ISERROR((R84+R86)/R88)," ",(R84+R86)/R88) ->  | T87: =IF(ISERROR((T84+T86)/T88)," ",(T84+T86)/T88) ->  | V87: =IF(ISERROR((V84+V86)/V88)," ",(V84+V86)/V88) ->  | X87: =IF(ISERROR((X84+X86)/X88)," ",(X84+X86)/X88) -> 
B88: Total des créances clients brutes | E88: =SUM(E83:E86) -> 0 | G88: =SUM(G83:G86) -> 0 | I88: =SUM(I83:I86) -> 0 | K88: =SUM(K83:K86) -> 0 | M88: =SUM(M83:M86) -> 0 | P88: =P83+P84+P85+P86 -> 0 | R88: =R83+R84+R85+R86 -> 0 | T88: =T83+T84+T85+T86 -> 0 | V88: =V83+V84+V85+V86 -> 0 | X88: =X83+X84+X85+X86 -> 0
E89: =IF(clt_brut_1=0," ",clt_brut_1/ca_1) ->  | G89: =IF(clt_brut_2=0," ",clt_brut_2/ca_2) ->  | I89: =IF(clt_brut_3=0," ",clt_brut_3/ca_3) ->  | K89: =IF(clt_brut_4=0," ",clt_brut_4/ca_4) ->  | M89: =IF(clt_brut_5=0," ",clt_brut_5/ca_5) ->  | P89: =IF(P88=0," ",P88/resultat!K29) ->  | R89: =IF(R88=0," ",R88/resultat!L29) ->  | T89: =IF(T88=0," ",T88/resultat!M29) ->  | V89: =IF(V88=0," ",V88/resultat!N29) ->  | X89: =IF(X88=0," ",X88/resultat!O29) -> 
B90: Dépréciation des créances clients | C90: 2050 | D90: BY
B91: Taux de dépréciation | E91: =IF(ISERROR(by_1/E88)," ",by_1/E88) ->  | G91: =IF(ISERROR(by_2/G88)," ",by_2/G88) ->  | I91: =IF(ISERROR(by_3/I88)," ",by_3/I88) ->  | K91: =IF(ISERROR(by_4/K88)," ",by_4/K88) ->  | M91: =IF(ISERROR(by_5/M88)," ",by_5/M88) ->  | P91: =IF(ISERROR(P90/P88)," ",P90/P88) ->  | R91: =IF(ISERROR(R90/R88)," ",R90/R88) ->  | T91: =IF(ISERROR(T90/T88)," ",T90/T88) ->  | V91: =IF(ISERROR(V90/V88)," ",V90/V88) ->  | X91: =IF(ISERROR(X90/X88)," ",X90/X88) -> 
B92: Total des créances clients nettes | E92: =E88-E90 -> 0 | F92: =IF(ISERROR(E92/b_1)," ",E92/b_1) ->  | G92: =G88-G90 -> 0 | H92: =IF(ISERROR(G92/b_2)," ",G92/b_2) ->  | I92: =I88-I90 -> 0 | J92: =IF(ISERROR(I92/b_3)," ",I92/b_3) ->  | K92: =K88-K90 -> 0 | L92: =IF(ISERROR(K92/b_4)," ",K92/b_4) ->  | M92: =M88-M90 -> 0 | N92: =IF(ISERROR(M92/b_5)," ",M92/b_5) ->  | P92: =P88-P90 -> 0 | Q92: =IF(ISERROR(P92/P115)," ",P92/P115) ->  | R92: =R88-R90 -> 0 | S92: =IF(ISERROR(R92/R115)," ",R92/R115) ->  | T92: =T88-T90 -> 0 | U92: =IF(ISERROR(T92/T115)," ",T92/T115) ->  | V92: =V88-V90 -> 0 | W92: =IF(ISERROR(V92/V115)," ",V92/V115) ->  | X92: =X88-X90 -> 0 | Y92: =IF(ISERROR(X92/X115)," ",X92/X115) -> 
E93: =IF(E92=0," ",E92/ca_1) ->  | G93: =IF(G92=0," ",G92/ca_2) ->  | I93: =IF(I92=0," ",I92/ca_3) ->  | K93: =IF(K92=0," ",K92/ca_4) ->  | M93: =IF(M92=0," ",M92/ca_5) ->  | P93: =IF(P92=0," ",P92/resultat!K29) ->  | R93: =IF(R92=0," ",R92/resultat!L29) ->  | T93: =IF(T92=0," ",T92/resultat!M29) ->  | V93: =IF(V92=0," ",V92/resultat!N29) ->  | X93: =IF(X92=0," ",X92/resultat!O29) -> 
B94: Avances et acomptes versés sur commandes | C94: 2050 | D94: BV
B95: Autres créances | C95: 2050 | D95: BZ
B96: dont Impôts sur les bénéfices | C96: 2057 | D96: VM
B97: dont Groupe et associés | C97: 2057 | D97: VC
B98: dont débiteurs divers | C98: 2057 | D98: VR
B99: dont clients affacturage | C99: Bilan actif détaillé
B100: Autres créances d'exploitation brutes | E100: =E94+E95-E96-E97-E98-E99 -> 0 | G100: =G94+G95-G96-G97-G98-G99 -> 0 | I100: =I94+I95-I96-I97-I98-I99 -> 0 | K100: =K94+K95-K96-K97-K98-K99 -> 0 | M100: =M94+M95-M96-M97-M98-M99 -> 0 | P100: =P94+P95-P96-P97-P98-P99 -> 0 | R100: =R94+R95-R96-R97-R98-R99 -> 0 | T100: =T94+T95-T96-T97-T98-T99 -> 0 | V100: =V94+V95-V96-V97-V98-V99 -> 0 | X100: =X94+X95-X96-X97-X98-X99 -> 0
B101: Dépréciation des acomptes versés sur commandes | C101: 2050 | D101: BW
B102: Dépréciation des autres créances d'exploitation | C102: 2050 | D102: CA
B103: Taux de dépréciation | E103: =IF(ISERROR((E101+dbz_1)/acre_1)," ",(E101+E102)/acre_1) ->  | G103: =IF(ISERROR((G101+dbz_2)/acre_2)," ",(G101+G102)/acre_2) ->  | I103: =IF(ISERROR((I101+dbz_3)/acre_3)," ",(I101+I102)/acre_3) ->  | K103: =IF(ISERROR((K101+dbz_4)/acre_4)," ",(K101+K102)/acre_4) ->  | M103: =IF(ISERROR((M101+dbz_5)/acre_5)," ",(M101+M102)/acre_5) -> 
B104: Autres créances d'exploitation nettes | E104: =E100-E101-E102 -> 0 | F104: =IF(ISERROR(E104/b_1)," ",E104/b_1) ->  | G104: =G100-G101-G102 -> 0 | H104: =IF(ISERROR(G104/b_2)," ",G104/b_2) ->  | I104: =I100-I101-I102 -> 0 | J104: =IF(ISERROR(I104/b_3)," ",I104/b_3) ->  | K104: =K100-K101-K102 -> 0 | L104: =IF(ISERROR(K104/b_4)," ",K104/b_4) ->  | M104: =M100-M101-M102 -> 0 | N104: =IF(ISERROR(M104/b_5)," ",M104/b_5) ->  | P104: =P100-P101-P102 -> 0 | Q104: =IF(ISERROR(P104/P115)," ",P104/P115) ->  | R104: =R100-R101-R102 -> 0 | S104: =IF(ISERROR(R104/R115)," ",R104/R115) ->  | T104: =T100-T101-T102 -> 0 | U104: =IF(ISERROR(T104/T115)," ",T104/T115) ->  | V104: =V100-V101-V102 -> 0 | W104: =IF(ISERROR(V104/V115)," ",V104/V115) ->  | X104: =X100-X101-X102 -> 0 | Y104: =IF(ISERROR(X104/X115)," ",X104/X115) -> 
B105: Charges constatées d'avance | C105: 2050 | D105: CH-CI
B106: Créances d'exploitation nettes | E106: =E92+E104+E105 -> 0 | F106: =IF(ISERROR(E106/b_1)," ",E106/b_1) ->  | G106: =G92+G104+G105 -> 0 | H106: =IF(ISERROR(G106/b_2)," ",G106/b_2) ->  | I106: =I92+I104+I105 -> 0 | J106: =IF(ISERROR(I106/b_3)," ",I106/b_3) ->  | K106: =K92+K104+K105 -> 0 | L106: =IF(ISERROR(K106/b_4)," ",K106/b_4) ->  | M106: =M92+M104+M105 -> 0 | N106: =IF(ISERROR(M106/b_5)," ",M106/b_5) ->  | P106: =P92+P104+P105 -> 0 | Q106: =IF(ISERROR(P106/P115)," ",P106/P115) ->  | R106: =R92+R104+R105 -> 0 | S106: =IF(ISERROR(R106/R115)," ",R106/R115) ->  | T106: =T92+T104+T105 -> 0 | U106: =IF(ISERROR(T106/T115)," ",T106/T115) ->  | V106: =V92+V104+V105 -> 0 | W106: =IF(ISERROR(V106/V115)," ",V106/V115) ->  | X106: =X92+X104+X105 -> 0 | Y106: =IF(ISERROR(X106/X115)," ",X106/X115) -> 
B107: Besoins d'exploitation | E107: =E82+E106 -> 0 | F107: =IF(ISERROR(E107/b_1)," ",E107/b_1) ->  | G107: =G82+G106 -> 0 | H107: =IF(ISERROR(G107/b_2)," ",G107/b_2) ->  | I107: =I82+I106 -> 0 | J107: =IF(ISERROR(I107/b_3)," ",I107/b_3) ->  | K107: =K82+K106 -> 0 | L107: =IF(ISERROR(K107/b_4)," ",K107/b_4) ->  | M107: =M82+M106 -> 0 | N107: =IF(ISERROR(M107/b_5)," ",M107/b_5) ->  | P107: =P82+P106 -> 0 | Q107: =IF(ISERROR(P107/P115)," ",P107/P115) ->  | R107: =R82+R106 -> 0 | S107: =IF(ISERROR(R107/R115)," ",R107/R115) ->  | T107: =T82+T106 -> 0 | U107: =IF(ISERROR(T107/T115)," ",T107/T115) ->  | V107: =V82+V106 -> 0 | W107: =IF(ISERROR(V107/V115)," ",V107/V115) ->  | X107: =X82+X106 -> 0 | Y107: =IF(ISERROR(X107/X115)," ",X107/X115) -> 
B108: Capital souscrit et appelé, non versé | C108: 2050 | D108: CB-CC
B109: Impôts sur les bénéfices (créance) | C109: 2057 | D109: VM | E109: =IF(ca_1=0," ",E96) ->  | G109: =IF(ca_2=0," ",G96) ->  | I109: =IF(ca_3=0," ",I96) ->  | K109: =IF(ca_4=0," ",K96) ->  | M109: =IF(ca_5=0," ",M96) ->  | P109: =P96 -> 0 | R109: =R96 -> 0 | T109: =T96 -> 0 | V109: =V96 -> 0 | X109: =X96 -> 0
B110: Groupe et associés (créance) | C110: 2057 | D110: VC | E110: =IF(ca_1= 0," ",E97) ->  | G110: =IF(ca_2= 0," ",G97) ->  | I110: =IF(ca_3= 0," ",I97) ->  | K110: =IF(ca_4= 0," ",K97) ->  | M110: =IF(ca_5= 0," ",M97) ->  | P110: =P97 -> 0 | R110: =R97 -> 0 | T110: =T97 -> 0 | V110: =V97 -> 0 | X110: =X97 -> 0
B111: Débiteurs divers | C111: 2057 | D111: VR | E111: =IF(ca_1= 0," ",E98) ->  | G111: =IF(ca_2= 0," ",G98) ->  | I111: =IF(ca_3= 0," ",I98) ->  | K111: =IF(ca_4= 0," ",K98) ->  | M111: =IF(ca_5= 0," ",M98) ->  | P111: =P98 -> 0 | R111: =R98 -> 0 | T111: =T98 -> 0 | V111: =V98 -> 0 | X111: =X98 -> 0
B112: Créances hors exploitation nettes | E112: =SUM(E108:E111) -> 0 | F112: =IF(ISERROR(E112/b_1)," ",E112/b_1) ->  | G112: =SUM(G108:G111) -> 0 | H112: =IF(ISERROR(G112/b_2)," ",G112/b_2) ->  | I112: =SUM(I108:I111) -> 0 | J112: =IF(ISERROR(I112/b_3)," ",I112/b_3) ->  | K112: =SUM(K108:K111) -> 0 | L112: =IF(ISERROR(K112/b_4)," ",K112/b_4) ->  | M112: =SUM(M108:M111) -> 0 | N112: =IF(ISERROR(M112/b_5)," ",M112/b_5) ->  | P112: =SUM(P108:P111) -> 0 | Q112: =IF(ISERROR(P112/P115)," ",P112/P115) ->  | R112: =SUM(R108:R111) -> 0 | S112: =IF(ISERROR(R112/R115)," ",R112/R115) ->  | T112: =SUM(T108:T111) -> 0 | U112: =IF(ISERROR(T112/T115)," ",T112/T115) ->  | V112: =SUM(V108:V111) -> 0 | W112: =IF(ISERROR(V112/V115)," ",V112/V115) ->  | X112: =SUM(X108:X111) -> 0 | Y112: =IF(ISERROR(X112/X115)," ",X112/X115) -> 
B113: Trésorerie nette | E113: =E26+E42-E62-E107-E112 -> 0 | G113: =G26+G42-G62-G107-G112 -> 0 | I113: =I26+I42-I62-I107-I112 -> 0 | K113: =K26+K42-K62-K107-K112 -> 0 | M113: =M26+M42-M62-M107-M112 -> 0 | P113: =P26+P42-P62-P107-P112 -> 0 | R113: =R26+R42-R62-R107-R112 -> 0 | T113: =T26+T42-T62-T107-T112 -> 0 | V113: =V26+V42-V62-V107-V112 -> 0 | X113: =X26+X42-X62-X107-X112 -> 0
C115: Total bilan | E115: =IF(ca_1=0," ",eh_1+cp_1+E13+E36+E41) ->  | F115: =IF(E115=" "," ",100%) ->  | G115: =IF(ca_2=0," ",eh_2+cp_2+G13+G36+G41) ->  | H115: =IF(G115=" "," ",100%) ->  | I115: =IF(ca_3=0," ",eh_3+cp_3+I13+I36+I41) ->  | J115: =IF(I115=" "," ",100%) ->  | K115: =IF(ca_4=0," ",eh_4+cp_4+K13+K36+K41) ->  | L115: =IF(K115=" "," ",100%) ->  | M115: =IF(ca_5=0," ",eh_5+cp_5+M13+M36+M41) ->  | N115: =IF(M115=" "," ",100%) ->  | P115: =P13+P24+P26+P36+P41 -> 0 | Q115: =IF(P115=0," ",100%) ->  | R115: =R13+R24+R26+R36+R41 -> 0 | S115: =IF(R115=0," ",100%) ->  | T115: =T13+T24+T26+T36+T41 -> 0 | U115: =IF(T115=0," ",100%) ->  | V115: =V13+V24+V26+V36+V41 -> 0 | W115: =IF(V115=0," ",100%) ->  | X115: =X13+X24+X26+X36+X41 -> 0 | Y115: =IF(X115=0," ",100%) -> 
B116: Contrôle trésorerie
B117: Valeurs mobilières de placement | C117: 2050 | D117: CD-CE
B118: Disponibilités | C118: 2050 | D118: CF-CG
B119: dont Factor - compte courant | C119: Bilan actif détaillé
B120: Effets escomptés non échus | E120: =ys_1 -> 0 | G120: =ys_2 -> 0 | I120: =ys_3 -> 0 | K120: =ys_4 -> 0 | M120: =ys_5 -> 0 | P120: =P84 -> 0 | R120: =-R84 -> 0 | T120: =-T84 -> 0 | V120: =-V84 -> 0 | X120: =-X84 -> 0
B121: Effets remis à l'encaissement et non échus | E121: =E85 -> 0 | G121: =G85 -> 0 | I121: =I85 -> 0 | K121: =K85 -> 0 | M121: =M85 -> 0 | P121: =P85 -> 0 | R121: =-R85 -> 0 | T121: =-T85 -> 0 | V121: =-V85 -> 0 | X121: =-X85 -> 0
B122: Avance court terme du factor (à renseigner) | C122: Annexe des comptes
B123: Concours bancaires à court terme | C123: 2051 | D123: EH | E123: =eh_1 -> 0 | G123: =eh_2 -> 0 | I123: =eh_3 -> 0 | K123: =eh_4 -> 0 | M123: =eh_5 -> 0 | P123: =P24 -> 0 | R123: =-R24 -> 0 | T123: =-T24 -> 0 | V123: =-V24 -> 0 | X123: =-X24 -> 0
B124: Solde net de trésorerie | E124: =IF(b_1=" ",0,E117+E118-E119-E120-E121-E122-E123) -> 0 | G124: =IF(b_2=" ",0,G117+G118-G119-G120-G121-G122-G123) -> 0 | I124: =IF(b_3=" ",0,I117+I118-I119-I120-I121-I122-I123) -> 0 | K124: =IF(b_4=" ",0,K117+K118-K119-K120-K121-K122-K123) -> 0 | M124: =IF(b_5=" ",0,M117+M118-M119-M120-M121-M122-M123) -> 0 | P124: =P117+P118-P119-P120-P121-P122-P123 -> 0 | R124: =R117+R118-R119-R120-R121-R122-R123 -> 0 | T124: =T117+T118-T119-T120-T121-T122-T123 -> 0 | V124: =V117+V118-V119-V120-V121-V122-V123 -> 0 | X124: =X117+X118-X119-X120-X121-X122-X123 -> 0
C126: Contrôle écart | E126: =IF(ca_1=0," ",tr_1-E124) ->  | G126: =IF(ca_2=0," ",tr_2-G124) ->  | I126: =IF(ca_3=0," ",tr_3-I124) ->  | K126: =IF(ca_4=0," ",tr_4-K124) ->  | M126: =IF(ca_5=0," ",tr_5-M124) ->  | P126: =P113-P124 -> 0 | R126: =R113-R124 -> 0 | T126: =T113-T124 -> 0 | V126: =V113-V124 -> 0 | X126: =X113-X124 -> 0

Sheet Infos complémentaires
B2: =IF(ISBLANK(societe)," ",societe) ->  | D2: INFORMATIONS COMPLEMENTAIRES
F4: =IF(ISBLANK(d_4)," ",d_4) ->  | H4: =IF(ISBLANK(d_3)," ",d_3) ->  | J4: =IF(ISBLANK(d_2)," ",d_2) ->  | L4: =IF(ISBLANK(d_1)," ",d_1) ->  | N4: =IF(ISBLANK(d)," ",d) -> 
B6: Acquisitions, créations, apports d'immobilisations
B7: 1- frais d'établissement et de développement | D7: 2054 | E7: D9
D8: 2054 | E8: IN
E9: Montant net | F9: =F7-F8 -> 0 | H9: =H7-H8 -> 0 | J9: =J7-J8 -> 0 | L9: =L7-L8 -> 0 | N9: =N7-N8 -> 0
E11: Taux de renouvellement | F11: =IF(ISERROR(F9/do_1),0,F9/do_1) -> 0.0% | H11: =IF(ISERROR(H9/do_2),0,H9/do_2) -> 0.0% | J11: =IF(ISERROR(J9/do_3),0,J9/do_3) -> 0.0% | L11: =IF(ISERROR(L9/do_4),0,L9/do_4) -> 0.0% | N11: =IF(ISERROR(N9/do_5),0,N9/do_5) -> 0.0%
B13: 2 - autres immobilisations incorporelles | D13: 2054 | E13: KF
D14: 2054 | E14: IO
E15: Montant net | F15: =F13-F14 -> 0 | H15: =H13-H14 -> 0 | J15: =J13-J14 -> 0 | L15: =L13-L14 -> 0 | N15: =N13-N14 -> 0
E17: Taux de renouvellement | F17: =IF(ISERROR(F15/lw_1),0,F15/lw_1) -> 0.0% | H17: =IF(ISERROR(H15/lw_2),0,H15/lw_2) -> 0.0% | J17: =IF(ISERROR(J15/lw_3),0,J15/lw_3) -> 0.0% | L17: =IF(ISERROR(L15/lw_4),0,L15/lw_4) -> 0.0% | N17: =IF(ISERROR(N15/lw_5),0,N15/lw_5) -> 0.0%
B19: 3 - immobilisations corporelles | D19: 2054 | E19: LP
D20: 2054 | E20: IY
E21: Montant net | F21: =F19-F20 -> 0 | H21: =H19-H20 -> 0 | J21: =J19-J20 -> 0 | L21: =L19-L20 -> 0 | N21: =N19-N20 -> 0
E23: Taux de renouvellement | F23: =IF(ISERROR(F21/nh_1),0,F21/nh_1) -> 0.0% | H23: =IF(ISERROR(H21/nh_2),0,H21/nh_2) -> 0.0% | J23: =IF(ISERROR(J21/nh_3),0,J21/nh_3) -> 0.0% | L23: =IF(ISERROR(L21/nh_4),0,L21/nh_4) -> 0.0% | N23: =IF(ISERROR(N21/nh_5),0,N21/nh_5) -> 0.0%
E25: Taux de renouvellement des immobilisations d'exploitation | F25: =IF(ISERROR((immo_1-immo_fi_1)/(do_1+lw_1+nh_1))," ",(immo_1-immo_fi_1)/(do_1+lw_1+nh_1)) ->  | H25: =IF(ISERROR((immo_2-immo_fi_2)/(do_2+lw_2+nh_2))," ",(immo_2-immo_fi_2)/(do_2+lw_2+nh_2)) ->  | J25: =IF(ISERROR((immo_3-immo_fi_3)/(do_3+lw_3+nh_3))," ",(immo_3-immo_fi_3)/(do_3+lw_3+nh_3)) ->  | L25: =IF(ISERROR((immo_4-immo_fi_4)/(do_4+lw_4+nh_4))," ",(immo_4-immo_fi_4)/(do_4+lw_4+nh_4)) ->  | N25: =IF(ISERROR((immo_5-immo_fi_5)/(do_5+lw_5+nh_5))," ",(immo_5-immo_fi_5)/(do_5+lw_5+nh_5)) -> 
B27: 4 - immobilisations financières | D27: 2054 | E27: LS
D28: 2054 | E28: I3
E29: Montant net | F29: =F27-F28 -> 0 | H29: =H27-H28 -> 0 | J29: =J27-J28 -> 0 | L29: =L27-L28 -> 0 | N29: =N27-N28 -> 0
B31: Acquisitions totales d'immobilisations | F31: =F9+F15+F21+F29 -> 0 | H31: =H9+H15+H21+H29 -> 0 | J31: =J9+J15+J21+J29 -> 0 | L31: =L9+L15+L21+L29 -> 0 | N31: =N9+N15+N21+N29 -> 0
B33: Cessions - réductions - remboursements d'immobilisations
B34: Prix de cession des immobilisations | D34: 2059-A | E34: S 9
B35: Réduction des autres participations | D35: 2054 | E35: 0X
B36: Réduction des autres titres immobilisés | D36: 2054 | E36: 2B
B37: Remboursement de prêts et autres immob. financières | D37: 2054 | E37: 2E
B38: Cessions ou réductions totales d'immobilisations | F38: =SUM(F34:F37) -> 0 | H38: =SUM(H34:H37) -> 0 | J38: =SUM(J34:J37) -> 0 | L38: =SUM(L34:L37) -> 0 | N38: =SUM(N34:N37) -> 0
B40: Mouvement des capitaux propres
B41: Augmentation du capital social | D41: Annexe
B42: Augmentation des primes d'émission | D42: Annexe
B43: Réduction du capital social (-) | D43: Annexe
B44: Réduction des primes d'émission (-) | D44: Annexe
B45: Réduction des réserves (-) | D45: Annexe
B46: Réduction du report à nouveau (-) | D46: Annexe
D47: Annexe
B48: Augmentation ou réductions des capitaux propres | F48: =SUM(F41:F47) -> 0 | H48: =SUM(H41:H47) -> 0 | J48: =SUM(J41:J47) -> 0 | L48: =SUM(L41:L47) -> 0 | N48: =SUM(N41:N47) -> 0
B50: Autre fonds propres
B51: Produit des émissions de titres participatifs
B52: Augmentations des avances conditionnées
B53: Réduction des titres participatifs (-)
B54: Réduction des avancec conditionnées (-)
B56: Augmentation ou réductions des autres fonds propres | F56: =SUM(F51:F55) -> 0 | H56: =SUM(H51:H55) -> 0 | J56: =SUM(J51:J55) -> 0 | L56: =SUM(L51:L55) -> 0 | N56: =SUM(N51:N55) -> 0
B58: Endettement financier à terme
B59: Emprunts souscrits en cours d'exercice | D59: 2057 | E59: VJ
B60: Emprunts et dettes contractées auprès des associés | D60: 2057 | E60: VI-VL
B61: Emprunts remboursés en cours d'exercice | D61: 2057 | E61: VK
B62: Dettes remboursées aux associés en cours d'exercice | D62: 2057 | E62: VK
B63: Augmentation ou réductions de l'endettement financier à terme | F63: =F59+F60-F61-F62 -> 0 | H63: =H59+H60-H61-H62 -> 0 | J63: =J59+J60-J61-J62 -> 0 | L63: =L59+L60-L61-L62 -> 0 | N63: =N59+N60-N61-N62 -> 0
E65: Contrôle de cohérence avec D des ressources d'emprunt du bilan | F65: =IF(ca_1=0," ",(emp_1-emp_2)-F63) ->  | H65: =IF(ca_2=0," ",(emp_2-emp_3)-H63) ->  | J65: =IF(ca_3=0," ",(emp_3-emp_4)-J63) ->  | L65: =IF(ca_4=0," ",(emp_4-emp_5)-L63) ->  | N65: =IF(ca_5=0," ",(emp_5-emp_6)-N63) -> 
B67: Emprunts obligataires convertibles | C67: 2057 7Y | F67: =bilan!E19 -> 0 | G67: =IF(F67=0," ",100%) ->  | H67: =bilan!G19 -> 0 | I67: =IF(H67=0," ",100%) ->  | J67: =bilan!I19 -> 0 | K67: =IF(J67=0," ",100%) ->  | L67: =bilan!K19 -> 0 | M67: =IF(L67=0," ",100%) ->  | N67: =bilan!M19 -> 0 | O67: =IF(N67=0," ",100%) -> 
B68: < à 1 an | C68: Annexe | G68: =IF(ISBLANK(F68)," ",F68/F67) ->  | I68: =IF(ISBLANK(H68)," ",H68/H67) ->  | K68: =IF(ISBLANK(J68)," ",J68/J67) ->  | M68: =IF(ISBLANK(L68)," ",L68/L67) ->  | O68: =IF(ISBLANK(N68)," ",N68/N67) -> 
B69: > à 1 an et <= à 5 ans | C69: Annexe | G69: =IF(ISBLANK(F69)," ",F69/F67) ->  | I69: =IF(ISBLANK(H69)," ",H69/H67) ->  | K69: =IF(ISBLANK(J69)," ",J69/J67) ->  | M69: =IF(ISBLANK(L69)," ",L69/L67) ->  | O69: =IF(ISBLANK(N69)," ",N69/N67) -> 
B70: > à 5 ans | C70: Annexe | F70: =F67-F68-F69 -> 0 | G70: =IF(F70=0," ",F70/F67) ->  | H70: =H67-H68-H69 -> 0 | I70: =IF(H70=0," ",H70/H67) ->  | J70: =J67-J68-J69 -> 0 | K70: =IF(J70=0," ",J70/J67) ->  | L70: =L67-L68-L69 -> 0 | M70: =IF(L70=0," ",L70/L67) ->  | N70: =N67-N68-N69 -> 0 | O70: =IF(N70=0," ",N70/N67) -> 
B72: Autres emprunts obligataires | C72: 2057 7Z | F72: =bilan!E20 -> 0 | G72: =IF(F72=0," ",100%) ->  | H72: =bilan!G20 -> 0 | I72: =IF(H72=0," ",100%) ->  | J72: =bilan!I20 -> 0 | K72: =IF(J72=0," ",100%) ->  | L72: =bilan!K20 -> 0 | M72: =IF(L72=0," ",100%) ->  | N72: =bilan!M20 -> 0 | O72: =IF(N72=0," ",100%) -> 
B73: < à 1 an | C73: Annexe | G73: =IF(ISBLANK(F73)," ",F73/F72) ->  | I73: =IF(ISBLANK(H73)," ",H73/H72) ->  | K73: =IF(ISBLANK(J73)," ",J73/J72) ->  | M73: =IF(ISBLANK(L73)," ",L73/L72) ->  | O73: =IF(ISBLANK(N73)," ",N73/N72) -> 
B74: > à 1 an et <= à 5 ans | C74: Annexe | G74: =IF(ISBLANK(F74)," ",F74/F72) ->  | I74: =IF(ISBLANK(H74)," ",H74/H72) ->  | K74: =IF(ISBLANK(J74)," ",J74/J72) ->  | M74: =IF(ISBLANK(L74)," ",L74/L72) ->  | O74: =IF(ISBLANK(N74)," ",N74/N72) -> 
B75: > à 5 ans | C75: Annexe | F75: =F72-F73-F74 -> 0 | G75: =IF(F75=0," ",F75/F72) ->  | H75: =H72-H73-H74 -> 0 | I75: =IF(H75=0," ",H75/H72) ->  | J75: =J72-J73-J74 -> 0 | K75: =IF(J75=0," ",J75/J72) ->  | L75: =L72-L73-L74 -> 0 | M75: =IF(L75=0," ",L75/L72) ->  | N75: =N72-N73-N74 -> 0 | O75: =IF(N75=0," ",N75/N72) -> 
B77: Emprunts et dettes bancaires (hors concours bancaires à court terme) | C77: 2057 VH | F77: =bilan!E21-bilan!E24 -> 0 | G77: =IF(F77=0," ",100%) ->  | H77: =bilan!G21-bilan!G24 -> 0 | I77: =IF(H77=0," ",100%) ->  | J77: =bilan!I21-bilan!I24 -> 0 | K77: =IF(J77=0," ",100%) ->  | L77: =bilan!K21-bilan!K24 -> 0 | M77: =IF(L77=0," ",100%) ->  | N77: =bilan!M21-bilan!M24 -> 0 | O77: =IF(N77=0," ",100%) -> 
B78: < à 1 an | C78: Annexe | G78: =IF(ISBLANK(F78)," ",F78/F77) ->  | I78: =IF(ISBLANK(H78)," ",H78/H77) ->  | K78: =IF(ISBLANK(J78)," ",J78/J77) ->  | M78: =IF(ISBLANK(L78)," ",L78/L77) ->  | O78: =IF(ISBLANK(N78)," ",N78/N77) -> 
B79: > à 1 an et <= à 5 ans | C79: Annexe | G79: =IF(ISBLANK(F79)," ",F79/F77) ->  | I79: =IF(ISBLANK(H79)," ",H79/H77) ->  | K79: =IF(ISBLANK(J79)," ",J79/J77) ->  | M79: =IF(ISBLANK(L79)," ",L79/L77) ->  | O79: =IF(ISBLANK(N79)," ",N79/N77) -> 
B80: > à 5 ans | C80: Annexe | F80: =F77-F78-F79 -> 0 | G80: =IF(F80=0," ",F80/F77) ->  | H80: =H77-H78-H79 -> 0 | I80: =IF(H80=0," ",H80/H77) ->  | J80: =J77-J78-J79 -> 0 | K80: =IF(J80=0," ",J80/J77) ->  | L80: =L77-L78-L79 -> 0 | M80: =IF(L80=0," ",L80/L77) ->  | N80: =N77-N78-N79 -> 0 | O80: =IF(N80=0," ",N80/N77) -> 
B82: Emprunts et dettes financières divers | C82: 2057 8A | F82: =bilan!E22 -> 0 | G82: =IF(F82=0," ",100%) ->  | H82: =bilan!G22 -> 0 | I82: =IF(H82=0," ",100%) ->  | J82: =bilan!I22 -> 0 | K82: =IF(J82=0," ",100%) ->  | L82: =bilan!K22 -> 0 | M82: =IF(L82=0," ",100%) ->  | N82: =bilan!M22 -> 0 | O82: =IF(N82=0," ",100%) -> 
B83: < à 1 an | C83: Annexe | G83: =IF(ISBLANK(F83)," ",F83/F82) ->  | I83: =IF(ISBLANK(H83)," ",H83/H82) ->  | K83: =IF(ISBLANK(J83)," ",J83/J82) ->  | M83: =IF(ISBLANK(L83)," ",L83/L82) ->  | O83: =IF(ISBLANK(N83)," ",N83/N82) -> 
B84: > à 1 an et <= à 5 ans | C84: Annexe | G84: =IF(ISBLANK(F84)," ",F84/F82) ->  | I84: =IF(ISBLANK(H84)," ",H84/H82) ->  | K84: =IF(ISBLANK(J84)," ",J84/J82) ->  | M84: =IF(ISBLANK(L84)," ",L84/L82) ->  | O84: =IF(ISBLANK(N84)," ",N84/N82) -> 
B85: > à 5 ans | C85: Annexe | F85: =F82-F83-F84 -> 0 | G85: =IF(F85=0," ",F85/F82) ->  | H85: =H82-H83-H84 -> 0 | I85: =IF(H85=0," ",H85/H82) ->  | J85: =J82-J83-J84 -> 0 | K85: =IF(J85=0," ",J85/J82) ->  | L85: =L82-L83-L84 -> 0 | M85: =IF(L85=0," ",L85/L82) ->  | N85: =N82-N83-N84 -> 0 | O85: =IF(N85=0," ",N85/N82) -> 
B87: Endettement financier hors crédit-bail | C87: < à 1 an | F87: =F68+F73+F78+F83 -> 0 | G87: =IF(ISERROR(F87/F90)," ",F87/F90) ->  | H87: =H68+H73+H78+H83 -> 0 | I87: =IF(ISERROR(H87/H90)," ",H87/H90) ->  | J87: =J68+J73+J78+J83 -> 0 | K87: =IF(ISERROR(J87/J90)," ",J87/J90) ->  | L87: =L68+L73+L78+L83 -> 0 | M87: =IF(ISERROR(L87/L90)," ",L87/L90) ->  | N87: =N68+N73+N78+N83 -> 0 | O87: =IF(ISERROR(N87/N90)," ",N87/N90) -> 
C88: > à 1 an et <= à 5 ans | F88: =F69+F74+F79+F84 -> 0 | G88: =IF(ISERROR(F88/F90)," ",F88/F90) ->  | H88: =H69+H74+H79+H84 -> 0 | I88: =IF(ISERROR(H88/H90)," ",H88/H90) ->  | J88: =J69+J74+J79+J84 -> 0 | K88: =IF(ISERROR(J88/J90)," ",J88/J90) ->  | L88: =L69+L74+L79+L84 -> 0 | M88: =IF(ISERROR(L88/L90)," ",L88/L90) ->  | N88: =N69+N74+N79+N84 -> 0 | O88: =IF(ISERROR(N88/N90)," ",N88/N90) -> 
C89: > à 5 ans | F89: =F70+F75+F80+F85 -> 0 | G89: =IF(ISERROR(F89/F90)," ",F89/F90) ->  | H89: =H70+H75+H80+H85 -> 0 | I89: =IF(ISERROR(H89/H90)," ",H89/H90) ->  | J89: =J70+J75+J80+J85 -> 0 | K89: =IF(ISERROR(J89/J90)," ",J89/J90) ->  | L89: =L70+L75+L80+L85 -> 0 | M89: =IF(ISERROR(L89/L90)," ",L89/L90) ->  | N89: =N70+N75+N80+N85 -> 0 | O89: =IF(ISERROR(N89/N90)," ",N89/N90) -> 
C90: Total | F90: =SUM(F87:F89) -> 0 | G90: =IF(F90=0," ",100%) ->  | H90: =SUM(H87:H89) -> 0 | I90: =IF(H90=0," ",100%) ->  | J90: =SUM(J87:J89) -> 0 | K90: =IF(J90=0," ",100%) ->  | L90: =SUM(L87:L89) -> 0 | M90: =IF(L90=0," ",100%) ->  | N90: =SUM(N87:N89) -> 0 | O90: =IF(N90=0," ",100%) -> 
B92: Endettement par crédit-bail mobilier | F92: =resultat!E199 -> 0 | G92: =IF(F92=0," ",100%) ->  | H92: =resultat!F199 -> 0 | I92: =IF(H92=0," ",100%) ->  | J92: =resultat!G199 -> 0 | K92: =IF(J92=0," ",100%) ->  | L92: =resultat!H199 -> 0 | M92: =IF(L92=0," ",100%) ->  | N92: =resultat!I199 -> 0 | O92: =IF(N92=0," ",100%) -> 
B93: < à 1 an | C93: Annexe | F93: =ROUND(resultat!E177*resultat!E184,0) -> 0 | G93: =IF(ISERROR(F93/F92)," ",F93/F92) ->  | H93: =ROUND(resultat!F177*resultat!F184,0) -> 0 | I93: =IF(ISERROR(H93/H92)," ",H93/H92) ->  | J93: =ROUND(resultat!G177*resultat!G184,0) -> 0 | K93: =IF(ISERROR(J93/J92)," ",J93/J92) ->  | L93: =ROUND(resultat!H177*resultat!H184,0) -> 0 | M93: =IF(ISERROR(L93/L92)," ",L93/L92) ->  | N93: =ROUND(resultat!I177*resultat!I184,0) -> 0 | O93: =IF(ISERROR(N93/N92)," ",N93/N92) -> 
B94: > à 1 an et <= à 5 ans | C94: Annexe | F94: =ROUND(resultat!E178*resultat!E184,0) -> 0 | G94: =IF(ISERROR(F94/F92)," ",F94/F92) ->  | H94: =ROUND(resultat!F178*resultat!F184,0) -> 0 | I94: =IF(ISERROR(H94/H92)," ",H94/H92) ->  | J94: =ROUND(resultat!G178*resultat!G184,0) -> 0 | K94: =IF(ISERROR(J94/J92)," ",J94/J92) ->  | L94: =ROUND(resultat!H178*resultat!H184,0) -> 0 | M94: =IF(ISERROR(L94/L92)," ",L94/L92) ->  | N94: =ROUND(resultat!I178*resultat!I184,0) -> 0 | O94: =IF(ISERROR(N94/N92)," ",N94/N92) -> 
B95: > à 5 ans | C95: Annexe | F95: =F92-F93-F94 -> 0 | G95: =IF(ISERROR(F95/F92)," ",F95/F92) ->  | H95: =H92-H93-H94 -> 0 | I95: =IF(ISERROR(H95/H92)," ",H95/H92) ->  | J95: =J92-J93-J94 -> 0 | K95: =IF(ISERROR(J95/J92)," ",J95/J92) ->  | L95: =L92-L93-L94 -> 0 | M95: =IF(ISERROR(L95/L92)," ",L95/L92) ->  | N95: =N92-N93-N94 -> 0 | O95: =IF(ISERROR(N95/N92)," ",N95/N92) -> 
B96: Endettement par crédit-bail immobilier | F96: =resultat!E200 -> 0 | G96: =IF(F96=0," ",100%) ->  | H96: =resultat!F200 -> 0 | I96: =IF(H96=0," ",100%) ->  | J96: =resultat!G200 -> 0 | K96: =IF(J96=0," ",100%) ->  | L96: =resultat!H200 -> 0 | M96: =IF(L96=0," ",100%) ->  | N96: =resultat!I200 -> 0 | O96: =IF(N96=0," ",100%) -> 
B97: < à 1 an | C97: Annexe | F97: =ROUND(resultat!E187*resultat!E194,0) -> 0 | G97: =IF(ISERROR(F97/F96)," ",F97/F96) ->  | H97: =ROUND(resultat!F187*resultat!F194,0) -> 0 | I97: =IF(ISERROR(H97/H96)," ",H97/H96) ->  | J97: =ROUND(resultat!G187*resultat!G194,0) -> 0 | K97: =IF(ISERROR(J97/J96)," ",J97/J96) ->  | L97: =ROUND(resultat!H187*resultat!H194,0) -> 0 | M97: =IF(ISERROR(L97/L96)," ",L97/L96) ->  | N97: =ROUND(resultat!I187*resultat!I194,0) -> 0 | O97: =IF(ISERROR(N97/N96)," ",N97/N96) -> 
B98: > à 1 an et <= à 5 ans | C98: Annexe | F98: =ROUND(resultat!E188*resultat!E194,0) -> 0 | G98: =IF(ISERROR(F98/F96)," ",F98/F96) ->  | H98: =ROUND(resultat!F188*resultat!F194,0) -> 0 | I98: =IF(ISERROR(H98/H96)," ",H98/H96) ->  | J98: =ROUND(resultat!G188*resultat!G194,0) -> 0 | K98: =IF(ISERROR(J98/J96)," ",J98/J96) ->  | L98: =ROUND(resultat!H188*resultat!H194,0) -> 0 | M98: =IF(ISERROR(L98/L96)," ",L98/L96) ->  | N98: =ROUND(resultat!I188*resultat!I194,0) -> 0 | O98: =IF(ISERROR(N98/N96)," ",N98/N96) -> 
B99: > à 5 ans | C99: Annexe | F99: =F96-F97-F98 -> 0 | G99: =IF(ISERROR(F99/F96)," ",F99/F96) ->  | H99: =H96-H97-H98 -> 0 | I99: =IF(ISERROR(H99/H96)," ",H99/H96) ->  | J99: =J96-J97-J98 -> 0 | K99: =IF(ISERROR(J99/J96)," ",J99/J96) ->  | L99: =L96-L97-L98 -> 0 | M99: =IF(ISERROR(L99/L96)," ",L99/L96) ->  | N99: =N96-N97-N98 -> 0 | O99: =IF(ISERROR(N99/N96)," ",N99/N96) -> 
B100: Endettement financier par crédit-bail | C100: < à 1 an | F100: =F93+F97 -> 0 | G100: =IF(ISERROR(F100/F103)," ",F100/F103) ->  | H100: =H93+H97 -> 0 | I100: =IF(ISERROR(H100/H103)," ",H100/H103) ->  | J100: =J93+J97 -> 0 | K100: =IF(ISERROR(J100/J103)," ",J100/J103) ->  | L100: =L93+L97 -> 0 | M100: =IF(ISERROR(L100/L103)," ",L100/L103) ->  | N100: =N93+N97 -> 0 | O100: =IF(ISERROR(N100/N103)," ",N100/N103) -> 
C101: > à 1 an et <= à 5 ans | F101: =F94+F98 -> 0 | G101: =IF(ISERROR(F101/F103)," ",F101/F103) ->  | H101: =H94+H98 -> 0 | I101: =IF(ISERROR(H101/H103)," ",H101/H103) ->  | J101: =J94+J98 -> 0 | K101: =IF(ISERROR(J101/J103)," ",J101/J103) ->  | L101: =L94+L98 -> 0 | M101: =IF(ISERROR(L101/L103)," ",L101/L103) ->  | N101: =N94+N98 -> 0 | O101: =IF(ISERROR(N101/N103)," ",N101/N103) -> 
C102: > à 5 ans | F102: =F95+F99 -> 0 | G102: =IF(ISERROR(F102/F103)," ",F102/F103) ->  | H102: =H95+H99 -> 0 | I102: =IF(ISERROR(H102/H103)," ",H102/H103) ->  | J102: =J95+J99 -> 0 | K102: =IF(ISERROR(J102/J103)," ",J102/J103) ->  | L102: =L95+L99 -> 0 | M102: =IF(ISERROR(L102/L103)," ",L102/L103) ->  | N102: =N95+N99 -> 0 | O102: =IF(ISERROR(N102/N103)," ",N102/N103) -> 
C103: Total | F103: =F100+F101+F102 -> 0 | G103: =IF(F103=0," ",100%) ->  | H103: =H100+H101+H102 -> 0 | I103: =IF(H103=0," ",100%) ->  | J103: =J100+J101+J102 -> 0 | K103: =IF(J103=0," ",100%) ->  | L103: =L100+L101+L102 -> 0 | M103: =IF(L103=0," ",100%) ->  | N103: =N100+N101+N102 -> 0 | O103: =IF(N103=0," ",100%) -> 
B105: Crédits à courterme | F105: =SUM(F106:F108) -> 0 | H105: =SUM(H106:H108) -> 0 | J105: =SUM(J106:J108) -> 0 | L105: =SUM(L106:L108) -> 0 | N105: =SUM(N106:N108) -> 0
B106: Concours bancaires courants | C106: 2051 EH | F106: =eh_1 -> 0 | H106: =eh_2 -> 0 | J106: =eh_3 -> 0 | L106: =eh_4 -> 0 | N106: =eh_5 -> 0
B107: Autres concours bancaires à court terme | C107: 2058-C YS | F107: =ys_1 -> 0 | H107: =ys_2 -> 0 | J107: =ys_3 -> 0 | L107: =ys_4 -> 0 | N107: =ys_5 -> 0
B108: Avance court terme du factor | C108: Annexe | F108: =factor_1C -> 0 | H108: =factor_2C -> 0 | J108: =factor_3C -> 0 | L108: =factor_4C -> 0 | N108: =factor_5C -> 0
B110: Endettement financier total | C110: < à 1 an | F110: =F87+F100+F105 -> 0 | G110: =IF(F110=0," ",F110/F113) ->  | H110: =H87+H100+H105 -> 0 | I110: =IF(H110=0," ",H110/H113) ->  | J110: =J87+J100+J105 -> 0 | K110: =IF(J110=0," ",J110/J113) ->  | L110: =L87+L100+L105 -> 0 | M110: =IF(L110=0," ",L110/L113) ->  | N110: =N87+N100+N105 -> 0 | O110: =IF(N110=0," ",N110/N113) -> 
C111: > à 1 an et <= à 5 ans | F111: =F88+F101 -> 0 | G111: =IF(F111=0," ",F111/F113) ->  | H111: =H88+H101 -> 0 | I111: =IF(H111=0," ",H111/H113) ->  | J111: =J88+J101 -> 0 | K111: =IF(J111=0," ",J111/J113) ->  | L111: =L88+L101 -> 0 | M111: =IF(L111=0," ",L111/L113) ->  | N111: =N88+N101 -> 0 | O111: =IF(N111=0," ",N111/N113) -> 
C112: > à 5 ans | F112: 0 | G112: =IF(F112=0," ",F112/F113) ->  | H112: 0 | I112: =IF(H112=0," ",H112/H113) ->  | J112: 0 | K112: =IF(J112=0," ",J112/J113) ->  | L112: 0 | M112: =IF(L112=0," ",L112/L113) ->  | N112: 0 | O112: =IF(N112=0," ",N112/N113) -> 
C113: Total | F113: =SUM(F110:F112) -> 0 | G113: =IF(F113=0," ",100%) ->  | H113: =SUM(H110:H112) -> 0 | I113: =IF(H113=0," ",100%) ->  | J113: =SUM(J110:J112) -> 0 | K113: =IF(J113=0," ",100%) ->  | L113: =SUM(L110:L112) -> 0 | M113: =IF(L113=0," ",100%) ->  | N113: =SUM(N110:N112) -> 0 | O113: =IF(N113=0," ",100%) -> 
B114: Renseignements divers
B115: Dividendes distribués | D115: 2058-C | E115: ZE
B116: Taux de distribution (dividende/bénéfice net) | F116: =IF(ISBLANK(ze_1)," ",ze_1/r_2) ->  | H116: =IF(ISBLANK(ze_2)," ",ze_2/r_3) ->  | J116: =IF(ISBLANK(ze_3)," ",ze_3/r_4) ->  | L116: =IF(ISBLANK(ze_4)," ",ze_4/r_5) ->  | N116: =IF(ISBLANK(ze_5)," ",ze_5/resultat!K151) -> 
B117: TVA collectée | D117: 2058-C | E117: YY
B118: ou chiffre d'affaires France x taux de tva (renseigner le taux de tva ->) | D118: 20.0% | F118: =ROUND(IF(tvac_1=0,(ca_1-export_1)*'Infos complémentaires'!$D$118,0),0) -> 0 | H118: =ROUND(IF(tvac_2=0,(ca_2-export_2)*'Infos complémentaires'!$D$118,0),0) -> 0 | J118: =ROUND(IF(tvac_3=0,(ca_3-export_3)*'Infos complémentaires'!$D$118,0),0) -> 0 | L118: =ROUND(IF(tvac_4=0,(ca_4-export_4)*'Infos complémentaires'!$D$118,0),0) -> 0 | N118: =ROUND(IF(tvac_5=0,(ca_5-export_5)*'Infos complémentaires'!$D$118,0),0) -> 0
B119: TVA déductible (hors TVA intracommunautaire) | D119: 2058-C | E119: YZ
B120: ou consommations x taux de tva (renseigner le taux de tva ->) | D120: 20.0% | F120: =ROUND(IF(tvad_1=0,(fs_1+fu_1+fw_1-hp_1-hq_1)*$D$120,0),0) -> 0 | H120: =ROUND(IF(tvad_2=0,(fs_2+fu_2+fw_2-hp_2-hq_2)*$D$120,0),0) -> 0 | J120: =ROUND(IF(tvad_3=0,(fs_3+fu_3+fw_3-hp_3-hq_3)*$D$120,0),0) -> 0 | L120: =ROUND(IF(tvad_4=0,(fs_4+fu_4+fw_4-hp_3-hq_3)*$D$120,0),0) -> 0 | N120: =ROUND(IF(tvad_5=0,(fs_5+fu_5+fw_5-hp_5-hq_5)*$D$120,0),0) -> 0
B121: Effectif moyen salarié | D121: 2058-C | E121: YP
B122: Coût total du personnel extérieur à l'entreprise | F122: =yu_1 -> 0 | H122: =yu_2 -> 0 | J122: =yu_3 -> 0 | L122: =yu_4 -> 0 | N122: =yu_5 -> 0
B123: Coût annuel moyen par intérimaire
B124: Effectif moyen personnel extérieur | F124: =IF(ISERROR(F122/F123),0,F122/F123) -> 0.0 | H124: =IF(ISERROR(H122/H123),0,H122/H123) -> 0.0 | J124: =IF(ISERROR(J122/J123),0,J122/J123) -> 0.0 | L124: =IF(ISERROR(L122/L123),0,L122/L123) -> 0.0 | N124: =IF(ISERROR(N122/N123),0,N122/N123) -> 0.0
B125: Effectif moyen total employé par l'entreprise | F125: =F121+F124 -> 0.0 | H125: =H121+H124 -> 0.0 | J125: =J121+J124 -> 0.0 | L125: =L121+L124 -> 0.0 | N125: =N121+N124 -> 0.0

Sheet Structure financière
B2: =IF(ISBLANK(societe)," ",societe) ->  | D2: ANALYSE DE LA STUCTURE FINANCIERE
D4: =IF(ISBLANK(d_4)," ",d_4) ->  | F4: =IF(ISBLANK(d_3)," ",d_3) ->  | H4: =IF(ISBLANK(d_2)," ",d_2) ->  | J4: =IF(ISBLANK(d_1)," ",d_1) ->  | L4: =IF(ISBLANK(d)," ",d) -> 
D5: =IF(du_2=0," ",du_2) ->  | F5: =IF(du_2=0," ",du_2) ->  | H5: =IF(du_3=0," ",du_3) ->  | J5: =IF(du_4=0," ",du_4) ->  | L5: =IF(du_5=0," ",du_5) -> 
D7: Evolution annuelle du chiffre d'affaires | E7: =IF(ISERROR(IF(ca_1=0," ",(ca_1/ca_2)-1))," ",IF(ca_1=0," ",(ca_1/ca_2)-1)) ->  | G7: =IF(ISERROR(IF(ca_2=0," ",(ca_2/ca_3)-1))," ",IF(ca_2=0," ",(ca_2/ca_3)-1)) ->  | I7: =IF(ISERROR(IF(ca_3=0," ",(ca_3/ca_4)-1))," ",IF(ca_3=0," ",(ca_3/ca_4)-1)) ->  | K7: =IF(ISERROR(IF(ca_4=0," ",(ca_4/ca_5)-1))," ",IF(ca_4=0," ",(ca_4/ca_5)-1)) -> 
B10: I - Bilan fonctionnel | D10: =IF(ISBLANK(u)," ",u) ->  | E10: D % | F10: =IF(ISBLANK(u)," ",u) ->  | G10: D % | H10: =IF(ISBLANK(u)," ",u) ->  | I10: D % | J10: =IF(ISBLANK(u)," ",u) ->  | K10: D % | L10: =IF(ISBLANK(u)," ",u) ->  | M10: D %
B11: Ressources propres | D11: =IF(ca_1=0," ",rp_1) ->  | E11: =IF(ISERROR((D11/F11)-1)," ",(D11/F11)-1) ->  | F11: =IF(ca_2=0," ",rp_2) ->  | G11: =IF(ISERROR((F11/H11)-1)," ",(F11/H11)-1) ->  | H11: =IF(ca_3=0," ",rp_3) ->  | I11: =IF(ISERROR((H11/J11)-1)," ",(H11/J11)-1) ->  | J11: =IF(ca_4=0," ",rp_4) ->  | K11: =IF(ISERROR((J11/L11)-1)," ",(J11/L11)-1) ->  | L11: =IF(ca_5=0," ",rp_5) -> 
B12: Ressources d'emprunt | D12: =IF(ca_1=0," ",emp_1) ->  | F12: =IF(ca_2=0," ",emp_2) ->  | H12: =IF(ca_3=0," ",emp_3) ->  | J12: =IF(ca_4=0," ",emp_4) ->  | L12: =IF(ca_5=0," ",emp_5) -> 
B13: Capitaux permanents | D13: =IF(ca_1=0," ",cp_1) ->  | F13: =IF(ca_2=0," ",cp_2) ->  | H13: =IF(ca_3=0," ",cp_3) ->  | J13: =IF(ca_4=0," ",cp_4) ->  | L13: =IF(ca_5=0," ",cp_5) -> 
B14: Actif immobilisé net | D14: =IF(ca_1=0," ",bj_1) ->  | F14: =IF(ca_2=0," ",bj_2) ->  | H14: =IF(ca_3=0," ",bj_3) ->  | J14: =IF(ca_4=0," ",bj_4) ->  | L14: =IF(ca_5=0," ",bj_5) -> 
B15: Fonds de roulement net | D15: =IF(ca_1=0," ",cp_1-bj_1) ->  | F15: =IF(ca_2=0," ",cp_2-bj_2) ->  | H15: =IF(ca_3=0," ",cp_3-bj_3) ->  | J15: =IF(ca_4=0," ",cp_4-bj_4) ->  | L15: =IF(ca_5=0," ",cp_5-bj_5) -> 
B16: Stocks et encours | D16: =stn_1 -> 0 | F16: =stn_2 -> 0 | H16: =stn_3 -> 0 | J16: =stn_4 -> 0 | L16: =stn_5 -> 0
B17: Créances clients | D17: =clt_net_1 -> 0 | F17: =clt_net_2 -> 0 | H17: =clt_net_3 -> 0 | J17: =clt_net_4 -> 0 | L17: =clt_net_5 -> 0
B18: Autres créances d'exploitation | D18: =acren_1 -> 0 | F18: =acren_2 -> 0 | H18: =acren_3 -> 0 | J18: =acren_4 -> 0 | L18: =acren_5 -> 0
B19: Charges constatées d'avance | D19: =IF(ca_1=0," ",cca_1) ->  | F19: =IF(ca_2=0," ",cca_2) ->  | H19: =IF(ca_3=0," ",cca_3) ->  | J19: =IF(ca_4=0," ",cca_4) ->  | L19: =IF(ca_5=0," ",cca_5) -> 
B20: Total des besoins d'exploitation | D20: =IF(ca_1=0," ",SUM(D16:D19)) ->  | F20: =IF(ca_2=0," ",SUM(F16:F19)) ->  | H20: =IF(ca_3=0," ",SUM(H16:H19)) ->  | J20: =IF(ca_4=0," ",SUM(J16:J19)) ->  | L20: =IF(ca_5=0," ",SUM(L16:L19)) -> 
B21: Dettes fournisseurs | D21: =IF(ISBLANK(dx_1)," ",dx_1) ->  | F21: =IF(ISBLANK(dx_2)," ",dx_2) ->  | H21: =IF(ISBLANK(dx_3)," ",dx_3) ->  | J21: =IF(ISBLANK(dx_4)," ",dx_4) ->  | L21: =IF(ISBLANK(dx_5)," ",dx_5) -> 
B22: Dettes fiscales et sociales d'exploitation | D22: =dfse_1 -> 0 | F22: =dfse_2 -> 0 | H22: =dfse_3 -> 0 | J22: =dfse_4 -> 0 | L22: =dfse_5 -> 0
B23: Autres dettes d'exploitation | D23: =ade_1 -> 0 | F23: =ade_2 -> 0 | H23: =ade_3 -> 0 | J23: =ade_4 -> 0 | L23: =ade_5 -> 0
B24: Produits constatés d'avance | D24: =IF(ca_1=0," ",pca_1) ->  | F24: =IF(ca_2=0," ",pca_2) ->  | H24: =IF(ca_3=0," ",pca_3) ->  | J24: =IF(ca_4=0," ",pca_4) ->  | L24: =IF(ca_5=0," ",pca_5) -> 
B25: Total des ressources d'exploitation | D25: =bilan!E36 -> 0 | F25: =bilan!G36 -> 0 | H25: =bilan!I36 -> 0 | J25: =bilan!K36 -> 0 | L25: =bilan!M36 -> 0
B26: Besoin en fonds de roulement d'exploitation | D26: =IF(ca_1=0," ",D20-D25) ->  | F26: =IF(ca_2=0," ",F20-F25) ->  | H26: =IF(ca_3=0," ",H20-H25) ->  | J26: =IF(ca_4=0," ",J20-J25) ->  | L26: =IF(ca_5=0," ",L20-L25) -> 
B27: Créances hors exploitation | D27: =bilan!E112 -> 0 | F27: =bilan!G112 -> 0 | H27: =bilan!I112 -> 0 | J27: =bilan!K112 -> 0 | L27: =bilan!M112 -> 0
B28: Dettes hors exploitation | D28: =bilan!E41 -> 0 | F28: =bilan!G41 -> 0 | H28: =bilan!I41 -> 0 | J28: =bilan!K41 -> 0 | L28: =bilan!M41 -> 0
B29: Besoin en fonds de roulement hors exploitation | D29: =IF(ca_1=0," ",D27-D28) ->  | E29: =IF(ISERROR((D29/F29)-1)," ",(D29/F29)-1) ->  | F29: =IF(ca_2=0," ",F27-F28) ->  | G29: =IF(ISERROR((F29/H29)-1)," ",(F29/H29)-1) ->  | H29: =IF(ca_3=0," ",H27-H28) ->  | I29: =IF(ISERROR((H29/J29)-1)," ",(H29/J29)-1) ->  | J29: =IF(ca_4=0," ",J27-J28) ->  | K29: =IF(ISERROR((J29/L29)-1)," ",(J29/L29)-1) ->  | L29: =IF(ca_5=0," ",L27-L28) -> 
B30: Besoin en fonds de roulement global | D30: =IF(ca_1=0," ",bfre_1+D29) ->  | E30: =IF(ISERROR((D30/F30)-1)," ",(D30/F30)-1) ->  | F30: =IF(ca_2=0," ",bfre_2+F29) ->  | G30: =IF(ISERROR((F30/H30)-1)," ",(F30/H30)-1) ->  | H30: =IF(ca_3=0," ",bfre_3+H29) ->  | I30: =IF(ISERROR((H30/J30)-1)," ",(H30/J30)-1) ->  | J30: =IF(ca_4=0," ",bfre_4+J29) ->  | K30: =IF(ISERROR((J30/L30)-1)," ",(J30/L30)-1) ->  | L30: =IF(ca_5=0," ",bfre_5+L29) -> 
B31: Excédent ou besoin de trésorerie | D31: =IF(ca_1=0," ",fr_1-bfr_1) ->  | E31: =IF(ISERROR((D31/F31)-1)," ",(D31/F31)-1) ->  | F31: =IF(ca_2=0," ",fr_2-bfr_2) ->  | G31: =IF(ISERROR((F31/H31)-1)," ",(F31/H31)-1) ->  | H31: =IF(ca_3=0," ",fr_3-bfr_3) ->  | I31: =IF(ISERROR((H31/J31)-1)," ",(H31/J31)-1) ->  | J31: =IF(ca_4=0," ",fr_4-bfr_4) ->  | K31: =IF(ISERROR((J31/L31)-1)," ",(J31/L31)-1) ->  | L31: =IF(ca_5=0," ",fr_5-bfr_5) -> 
B34: Variation annuelle de la trésorerie | D34: =IF(b_1=" "," ",tr_1-tr_2) ->  | F34: =IF(b_2=" "," ",tr_2-tr_3) ->  | H34: =IF(b_3=" "," ",tr_3-tr_4) ->  | J34: =IF(b_4=" "," ",tr_4-tr_5) -> 
B36: Variation cumulée de la trésorerie | D36: =IF(b_1=" "," ",tr_1-tr_5) ->  | F36: =IF(b_2=" "," ",tr_2-tr_5) ->  | H36: =IF(b_3=" "," ",tr_3-tr_5) -> 
B39: Endettement financier net hors crédit-bail | D39: =IF(ca_1=0," ",D12-tr_1) ->  | E39: =IF(ISERROR((D39/F39)-1)," ",(D39/F39)-1) ->  | F39: =IF(ca_2=0," ",F12-tr_2) ->  | G39: =IF(ISERROR((F39/H39)-1)," ",(F39/H39)-1) ->  | H39: =IF(ca_3=0," ",H12-tr_3) ->  | I39: =IF(ISERROR((H39/J39)-1)," ",(H39/J39)-1) ->  | J39: =IF(ca_4=0," ",J12-tr_4) ->  | K39: =IF(ISERROR((J39/L39)-1)," ",(J39/L39)-1) ->  | L39: =IF(ca_5=0," ",L12-tr_5) -> 
B40: Endettement financier net avec crédit-bail | D40: =IF(ca_1=0," ",D39+encoursCB_1) ->  | F40: =IF(ca_2=0," ",F39+encoursCB_2) ->  | H40: =IF(ca_3=0," ",H39+encoursCB_3) ->  | J40: =IF(ca_4=0," ",J39+encoursCB_4) ->  | L40: =IF(ca_5=0," ",L39+encoursCB_5) -> 
B42: Evaluation de l'endettement moyen | C42: Taux | D42: =IF(ISBLANK(d_4)," ",d_4) ->  | F42: =IF(ISBLANK(d_3)," ",d_3) ->  | H42: =IF(ISBLANK(d_2)," ",d_2) ->  | J42: =IF(ISBLANK(d_1)," ",d_1) ->  | L42: =IF(ISBLANK(d)," ",d) -> 
B43: Montant des charges financières | C43: 2052-GR | D43: =gr_1 -> 0 | F43: =gr_2 -> 0 | H43: =gr_3 -> 0 | J43: =gr_4 -> 0 | L43: =gr_5 -> 0
B44: Evaluation pour un taux moyen de : | D44: =IF(ISERROR($D$43/C44)," ",$D$43/C44) ->  | F44: =IF(ISERROR($F$43/C44)," ",$F$43/C44) ->  | H44: =IF(ISERROR($H$43/C44)," ",$H$43/C44) ->  | J44: =IF(ISERROR($J$43/C44)," ",$J$43/C44) ->  | L44: =IF(ISERROR($L$43/C44)," ",$L$43/C44) -> 
B45: Evaluation pour un taux moyen de : | D45: =IF(ISERROR($D$43/C45)," ",$D$43/C45) ->  | F45: =IF(ISERROR($F$43/C45)," ",$F$43/C45) ->  | H45: =IF(ISERROR($H$43/C45)," ",$H$43/C45) ->  | J45: =IF(ISERROR($J$43/C45)," ",$J$43/C45) ->  | L45: =IF(ISERROR($L$43/C45)," ",$L$43/C45) -> 
B46: Evaluation pour un taux moyen de : | D46: =IF(ISERROR($D$43/C46)," ",$D$43/C46) ->  | F46: =IF(ISERROR($F$43/C46)," ",$F$43/C46) ->  | H46: =IF(ISERROR($H$43/C46)," ",$H$43/C46) ->  | J46: =IF(ISERROR($J$43/C46)," ",$J$43/C46) ->  | L46: =IF(ISERROR($L$43/C46)," ",$L$43/C46) -> 
B47: Evaluation pour un taux moyen de : | D47: =IF(ISERROR($D$43/C47)," ",$D$43/C47) ->  | F47: =IF(ISERROR($F$43/C47)," ",$F$43/C47) ->  | H47: =IF(ISERROR($H$43/C47)," ",$H$43/C47) ->  | J47: =IF(ISERROR($J$43/C47)," ",$J$43/C47) ->  | L47: =IF(ISERROR($L$43/C47)," ",$L$43/C47) -> 
B48: Evaluation pour un taux moyen de : | D48: =IF(ISERROR($D$43/C48)," ",$D$43/C48) ->  | F48: =IF(ISERROR($F$43/C48)," ",$F$43/C48) ->  | H48: =IF(ISERROR($H$43/C48)," ",$H$43/C48) ->  | J48: =IF(ISERROR($J$43/C48)," ",$J$43/C48) ->  | L48: =IF(ISERROR($L$43/C48)," ",$L$43/C48) -> 
B50: II - Bilan économique | D50: =IF(ISBLANK(d_4)," ",d_4) ->  | E50: =IF(ISBLANK(d_4)," ",d_4) ->  | F50: =IF(ISBLANK(d_3)," ",d_3) ->  | H50: =IF(ISBLANK(d_2)," ",d_2) ->  | J50: =IF(ISBLANK(d_1)," ",d_1) ->  | L50: =IF(ISBLANK(d)," ",d) -> 
D51: =IF(ISBLANK(u)," ",u) ->  | E51: % | F51: =IF(ISBLANK(u)," ",u) ->  | G51: % | H51: =IF(ISBLANK(u)," ",u) ->  | I51: % | J51: =IF(ISBLANK(u)," ",u) ->  | K51: % | L51: =IF(ISBLANK(u)," ",u) ->  | M51: %
B52: Capitaux propres | D52: =rp_1 -> 0 | E52: =IF(ISERROR(D52/D54)," ",D52/D54) ->  | F52: =rp_2 -> 0 | G52: =IF(ISERROR(F52/F54)," ",F52/F54) ->  | H52: =rp_3 -> 0 | I52: =IF(ISERROR(H52/H54)," ",H52/H54) ->  | J52: =rp_4 -> 0 | K52: =IF(ISERROR(J52/J54)," ",J52/J54) ->  | L52: =rp_5 -> 0 | M52: =IF(ISERROR(L52/L54)," ",L52/L54) -> 
B53: Dettes financières nettes | D53: =IF(ISERROR(emp_1-tr_1)," ",emp_1-tr_1) ->  | E53: =IF(ISERROR(D53/D54)," ",D53/D54) ->  | F53: =IF(ISERROR(emp_2-tr_2)," ",emp_2-tr_2) ->  | G53: =IF(ISERROR(F53/F54)," ",F53/F54) ->  | H53: =IF(ISERROR(emp_3-tr_3)," ",emp_3-tr_3) ->  | I53: =IF(ISERROR(H53/H54)," ",H53/H54) ->  | J53: =IF(ISERROR(emp_4-tr_4)," ",emp_4-tr_4) ->  | K53: =IF(ISERROR(J53/J54)," ",J53/J54) ->  | L53: =IF(ISERROR(emp_5-tr_5)," ",emp_5-tr_5) ->  | M53: =IF(ISERROR(L53/L54)," ",L53/L54) -> 
B54: Total des capitaux employés | D54: =SUM(D52:D53) -> 0 | E54: =IF(b_1=" "," ",100%) ->  | F54: =SUM(F52:F53) -> 0 | G54: =IF(b_2=" "," ",100%) ->  | H54: =SUM(H52:H53) -> 0 | I54: =IF(b_3=" "," ",100%) ->  | J54: =SUM(J52:J53) -> 0 | K54: =IF(b_4=" "," ",100%) ->  | L54: =SUM(L52:L53) -> 0 | M54: =IF(b_5=" "," ",100%) -> 
B55: Immobilisations incorporelles | D55: =bilan!E14+do_1-ae_1+lw_1-ph_1 -> 0 | E55: =IF(ISERROR(D55/D60)," ",D55/D60) ->  | F55: =bilan!G14+do_2-ae_2+lw_2-ph_2 -> 0 | G55: =IF(ISERROR(F55/F60)," ",F55/F60) ->  | H55: =bilan!I14+do_3-ae_3+lw_3-ph_3 -> 0 | I55: =IF(ISERROR(H55/H60)," ",H55/H60) ->  | J55: =bilan!K2+do_4-ae_4+lw_4-ph_4 -> 0 | K55: =IF(ISERROR(J55/J60)," ",J55/J60) ->  | L55: =bilan!M14+do_5-ae_5+lw_5-ph_5 -> 0 | M55: =IF(ISERROR(L55/L60)," ",L55/L60) -> 
B56: Immobilisations corporelles | D56: =nh_1-qx_1 -> 0 | E56: =IF(ISERROR(D56/D60)," ",D56/D60) ->  | F56: =nh_2-qx_2 -> 0 | G56: =IF(ISERROR(F56/F60)," ",F56/F60) ->  | H56: =nh_3-qx_3 -> 0 | I56: =IF(ISERROR(H56/H60)," ",H56/H60) ->  | J56: =nh_4-qx_4 -> 0 | K56: =IF(ISERROR(J56/J60)," ",J56/J60) ->  | L56: =nh_5-qx_5 -> 0 | M56: =IF(ISERROR(L56/L60)," ",L56/L60) -> 
B57: Immobilisations financières | D57: =nk_1-x_1 -> 0 | E57: =IF(ISERROR(D57/D60)," ",D57/D60) ->  | F57: =nk_2-x_2 -> 0 | G57: =IF(ISERROR(F57/F60)," ",F57/F60) ->  | H57: =nk_3-x_3 -> 0 | I57: =IF(ISERROR(H57/H60)," ",H57/H60) ->  | J57: =nk_4-x_4 -> 0 | K57: =IF(ISERROR(J57/J60)," ",J57/J60) ->  | L57: =nk_5-x_5 -> 0 | M57: =IF(ISERROR(L57/L60)," ",L57/L60) -> 
B58: Immobilisations totales | D58: =SUM(D55:D57) -> 0 | E58: =IF(ISERROR(D58/D60)," ",D58/D60) ->  | F58: =SUM(F55:F57) -> 0 | G58: =IF(ISERROR(F58/F60)," ",F58/F60) ->  | H58: =SUM(H55:H57) -> 0 | I58: =IF(ISERROR(H58/H60)," ",H58/H60) ->  | J58: =SUM(J55:J57) -> 0 | K58: =IF(ISERROR(J58/J60)," ",J58/J60) ->  | L58: =SUM(L55:L57) -> 0 | M58: =IF(ISERROR(L58/L60)," ",L58/L60) -> 
B59: Besoin en fonds de roulement | D59: =bfr_1 ->  | E59: =IF(ISERROR(D59/D60)," ",D59/D60) ->  | F59: =bfr_2 ->  | G59: =IF(ISERROR(F59/F60)," ",F59/F60) ->  | H59: =bfr_3 ->  | I59: =IF(ISERROR(H59/H60)," ",H59/H60) ->  | J59: =bfr_4 ->  | K59: =IF(ISERROR(J59/J60)," ",J59/J60) ->  | L59: =bfr_5 ->  | M59: =IF(ISERROR(L59/L60)," ",L59/L60) -> 
B60: Total des emplois à financer | D60: =SUM(D58:D59) -> 0 | E60: =IF(b_1=" "," ",100%) ->  | F60: =SUM(F58:F59) -> 0 | G60: =IF(b_2=" "," ",100%) ->  | H60: =SUM(H58:H59) -> 0 | I60: =IF(b_3=" "," ",100%) ->  | J60: =SUM(J58:J59) -> 0 | K60: =IF(b_4=" "," ",100%) ->  | L60: =SUM(L58:L59) -> 0 | M60: =IF(b_5=" "," ",100%) -> 

Sheet tableau de financement
B2: =IF(ISBLANK(societe)," ",societe) ->  | F2: TABLEAU DE FINANCEMENT
B4: Unité monétaire : | E4: =IF(ISBLANK(u)," ",u) ->  | G4: =IF(ISBLANK(d_4)," ",d_4) ->  | J4: =IF(ISBLANK(d_3)," ",d_3) ->  | M4: =IF(ISBLANK(d_2)," ",d_2) ->  | P4: =IF(ISBLANK(d_1)," ",d_1) -> 
B6: Emplois stables | G6: Emploi | H6: Ressource | J6: Emploi | K6: Ressource | M6: Emploi | N6: Ressource | P6: Emploi | Q6: Ressource
C7: Distributions mises en paiement au cours de l'exercice | G7: =IF(b_1=" "," ",ze_1) ->  | J7: =IF(b_2=" "," ",ze_2) ->  | M7: =IF(b_3=" "," ",ze_3) ->  | P7: =IF(b_4=" "," ",ze_4) -> 
C8: Acquisitions totales d'immobilisations | G8: =IF(b_1=" "," ",immo_1) ->  | J8: =IF(b_2=" "," ",immo_2) ->  | M8: =IF(b_3=" "," ",immo_3) ->  | P8: =IF(b_4=" "," ",immo_4) -> 
C9: Accroissement des non valeurs | G9: =IF(b_1=" "," ",IF(nv_1<nv_2,nv_2-nv_1,0)) ->  | J9: =IF(b_2=" "," ",IF(nv_2<nv_3,nv_3-nv_2,0)) ->  | M9: =IF(b_3=" "," ",IF(nv_3<nv_4,nv_4-nv_3,0)) ->  | P9: =IF(b_4=" "," ",IF(nv_4<nv_5,nv_5-nv_4,0)) -> 
C10: Réduction des capitaux propres | G10: =IF(b_1=" "," ",IF(cap_propres_1<0,cap_propres_1/-1,0)) ->  | J10: =IF(b_2=" "," ",IF(cap_propres_2<0,cap_propres_2/-1,0)) ->  | M10: =IF(b_3=" "," ",IF(cap_propres_3<0,cap_propres_3/-1,0)) ->  | P10: =IF(b_4=" "," ",IF(cap_propres_4<0,cap_propres_4/-1,0)) -> 
C11: Réduction des autres fonds propres propres | G11: =IF(b_1=" "," ",IF(FP_1<0,FP_1/-1,0)) ->  | J11: =IF(b_2=" "," ",IF(FP_2<0,FP_2/-1,0)) ->  | M11: =IF(b_3=" "," ",IF(FP_3<0,FP_3/-1,0)) ->  | P11: =IF(b_4=" "," ",IF(FP_4<0,FP_4/-1,0)) -> 
C12: Remboursements des dettes financières | G12: =IF(b_1=" "," ",'Infos complémentaires'!F61+'Infos complémentaires'!F62) ->  | J12: =IF(b_2=" "," ",'Infos complémentaires'!H61+'Infos complémentaires'!H62) ->  | M12: =IF(b_3=" "," ",'Infos complémentaires'!J61+'Infos complémentaires'!J62) ->  | P12: =IF(b_4=" "," ",'Infos complémentaires'!L61+'Infos complémentaires'!L62) -> 
C13: Capital souscrit non appelé
B14: Total Emplois | G14: =IF(b_1=" "," ",SUM(G7:G13)) ->  | J14: =IF(b_2=" "," ",SUM(J7:J13)) ->  | M14: =IF(b_3=" "," ",SUM(M7:M13)) ->  | P14: =IF(b_4=" "," ",SUM(P7:P13)) -> 
B16: Ressources stables | G16: Emploi | H16: Ressource | J16: Emploi | K16: Ressource | M16: Emploi | N16: Ressource | P16: Emploi | Q16: Ressource
C17: Capacité d'autofinancement | H17: =IF(ca_1=0," ",caf_1) ->  | K17: =IF(ca_2=0," ",caf_2) ->  | N17: =IF(ca_3=0," ",caf_3) ->  | Q17: =IF(ca_4=0," ",caf_4) -> 
C18: Cessions ou réductions totales d'immobilisations | H18: =IF(b_1=" "," ",cession_1) ->  | K18: =IF(b_2=" "," ",cession_2) ->  | N18: =IF(b_3=" "," ",cession_3) ->  | Q18: =IF(b_4=" "," ",cession_4) -> 
C19: Augmentation des capitaux propres | H19: =IF(b_1=" "," ",IF(cap_propres_1>0,cap_propres_1,0)) ->  | K19: =IF(b_2=" "," ",IF(cap_propres_2>0,cap_propres_2,0)) ->  | N19: =IF(b_3=" "," ",IF(cap_propres_3>0,cap_propres_3,0)) ->  | Q19: =IF(b_4=" "," ",IF(cap_propres_4>0,cap_propres_4,0)) -> 
C20: Augmentation des autres fonds propres | H20: =IF(b_1=" "," ",IF(FP_1>0,FP_1,0)) ->  | K20: =IF(b_2=" "," ",IF(FP_2>0,FP_2,0)) ->  | N20: =IF(b_3=" "," ",IF(FP_3>0,FP_3,0)) ->  | Q20: =IF(b_4=" "," ",IF(FP_4>0,FP_4,0)) -> 
C21: Augmentation des dettes financières | H21: =IF(b_1=" "," ",'Infos complémentaires'!F59+'Infos complémentaires'!F60) ->  | K21: =IF(b_2=" "," ",'Infos complémentaires'!H59+'Infos complémentaires'!H60) ->  | N21: =IF(b_3=" "," ",'Infos complémentaires'!J59+'Infos complémentaires'!J60) ->  | Q21: =IF(b_4=" "," ",'Infos complémentaires'!L59+'Infos complémentaires'!L60) -> 
C22: Diminution des non valeurs | H22: =IF(b_1=" "," ",IF(nv_1>nv_2,nv_1-nv_2,0)) ->  | K22: =IF(b_2=" "," ",IF(nv_2>nv_3,nv_2-nv_3,0)) ->  | N22: =IF(b_3=" "," ",IF(nv_3>nv_4,nv_3-nv_4,0)) ->  | Q22: =IF(b_4=" "," ",IF(nv_4>nv_5,nv_4-nv_5,0)) -> 
B23: Total Ressources | H23: =IF(b_1=" "," ",SUM(H17:H22)) ->  | K23: =IF(b_2=" "," ",SUM(K17:K22)) ->  | N23: =IF(b_3=" "," ",SUM(N17:N22)) ->  | Q23: =IF(b_4=" "," ",SUM(Q17:Q22)) -> 
C25: Le fonds de roulement a augmenté de | H25: =IF(b_1=" "," ",IF(H23<G14,0,H23-G14)) ->  | K25: =IF(b_2=" "," ",IF(K23<J14,0,K23-J14)) ->  | N25: =IF(b_3=" "," ",IF(N23<M14,0,N23-M14)) ->  | Q25: =IF(b_4=" "," ",IF(Q23<P14,0,Q23-P14)) -> 
C27: Le fonds de roulement a diminué de | G27: =IF(b_1=" "," ",IF(H23>G14,0,G14-H23)) ->  | J27: =IF(b_2=" "," ",IF(K23>J14,0,J14-K23)) ->  | M27: =IF(b_3=" "," ",IF(N23>M14,0,M14-N23)) ->  | P27: =IF(b_4=" "," ",IF(Q23>P14,0,P14-Q23)) -> 
B29: Variation des actifs d'exploitation | G29: Emploi | H29: Ressource | J29: Emploi | K29: Ressource | M29: Emploi | N29: Ressource | P29: Emploi | Q29: Ressource
C30: Stocks et en-cours | G30: =IF(b_1=" ","",IF(st_1<st_2,0,st_1-st_2)) ->  | H30: =IF(b_1=" ","",IF(st_1>st_2,0,st_2-st_1)) ->  | J30: =IF(b_2=" ","",IF(st_2<st_3,0,st_2-st_3)) ->  | K30: =IF(b_2=" ","",IF(st_2>st_3,0,st_3-st_2)) ->  | M30: =IF(b_3=" ","",IF(st_3<st_4,0,st_3-st_4)) ->  | N30: =IF(b_3=" ","",IF(st_3>st_4,0,st_4-st_3)) ->  | P30: =IF(b_4=" ","",IF(st_4<st_5,0,st_4-st_5)) ->  | Q30: =IF(b_4=" ","",IF(st_4>st_5,0,st_5-st_4)) -> 
C31: Créances clients | G31: =IF(b_1=" ","",IF(clt_brut_1<clt_brut_2,0,clt_brut_1-clt_brut_2)) ->  | H31: =IF(b_1=" ","",IF(clt_brut_1>clt_brut_2,0,clt_brut_2-clt_brut_1)) ->  | J31: =IF(b_2=" ","",IF(clt_brut_2<clt_brut_3,0,clt_brut_2-clt_brut_3)) ->  | K31: =IF(b_2=" ","",IF(clt_brut_2>clt_brut_3,0,clt_brut_3-clt_brut_2)) ->  | M31: =IF(b_3=" ","",IF(clt_brut_3<clt_brut_4,0,clt_brut_3-clt_brut_4)) ->  | N31: =IF(b_3=" ","",IF(clt_brut_3>clt_brut_4,0,clt_brut_4-clt_brut_3)) ->  | P31: =IF(b_4=" ","",IF(clt_brut_4<clt_brut_5,0,clt_brut_4-clt_brut_5)) ->  | Q31: =IF(b_4=" ","",IF(clt_brut_4>clt_brut_5,0,clt_brut_5-clt_brut_4)) -> 
C32: Autres créances | G32: =IF(b_1=" ","",IF(acre_1<acre_2,0,acre_1-acre_2)) ->  | H32: =IF(b_1=" ","",IF(acre_1>acre_2,0,acre_2-acre_1)) ->  | J32: =IF(b_2=" ","",IF(acre_2<acre_3,0,acre_2-acre_3)) ->  | K32: =IF(b_2=" ","",IF(acre_2>acre_3,0,acre_3-acre_2)) ->  | M32: =IF(b_3=" ","",IF(acre_3<acre_4,0,acre_3-acre_4)) ->  | N32: =IF(b_3=" ","",IF(acre_3>acre_4,0,acre_4-acre_3)) ->  | P32: =IF(b_4=" ","",IF(acre_4<acre_5,0,acre_4-acre_5)) ->  | Q32: =IF(b_4=" ","",IF(acre_4>acre_5,0,acre_5-acre_4)) -> 
C33: Charges constatées d'avance | G33: =IF(b_1=" ","",IF(cca_1<cca_2,0,cca_1-cca_2)) ->  | H33: =IF(b_1=" ","",IF(cca_1>cca_2,0,cca_2-cca_1)) ->  | J33: =IF(b_2=" ","",IF(cca_2<cca_3,0,cca_2-cca_3)) ->  | K33: =IF(b_2=" ","",IF(cca_2>cca_3,0,cca_3-cca_2)) ->  | M33: =IF(b_3=" ","",IF(cca_3<cca_4,0,cca_3-cca_4)) ->  | N33: =IF(b_3=" ","",IF(cca_3>cca_4,0,cca_4-cca_3)) ->  | P33: =IF(b_4=" ","",IF(cca_4<cca_5,0,cca_4-cca_5)) ->  | Q33: =IF(b_4=" ","",IF(cca_4>cca_5,0,cca_5-cca_4)) -> 
B34: Variation des dettes d'exploitation | G34: Emploi | H34: Ressource | J34: Emploi | K34: Ressource | M34: Emploi | N34: Ressource | P34: Emploi | Q34: Ressource
C35: Dettes fournisseurs | G35: =IF(b_1=" ","",IF(dx_1>dx_2,0,dx_2-dx_1)) ->  | H35: =IF(b_1=" ","",IF(dx_1<dx_2,0,dx_1-dx_2)) ->  | J35: =IF(b_2=" ","",IF(dx_2>dx_3,0,dx_3-dx_2)) ->  | K35: =IF(b_2=" ","",IF(dx_2<dx_3,0,dx_2-dx_3)) ->  | M35: =IF(b_3=" ","",IF(dx_3>dx_4,0,dx_4-dx_3)) ->  | N35: =IF(b_3=" ","",IF(dx_3<dx_4,0,dx_3-dx_4)) ->  | P35: =IF(b_4=" ","",IF(dx_4>dx_5,0,dx_5-dx_4)) ->  | Q35: =IF(b_4=" ","",IF(dx_4<dx_5,0,dx_4-dx_5)) -> 
C36: Dettes fiscales et sociales | G36: =IF(b_1=" ","",IF(dfse_1>dfse_2,0,dfse_2-dfse_1)) ->  | H36: =IF(b_1=" ","",IF(dfse_1<dfse_2,0,dfse_1-dfse_2)) ->  | J36: =IF(b_2=" ","",IF(dfse_2>dfse_3,0,dfse_3-dfse_2)) ->  | K36: =IF(b_2=" ","",IF(dfse_2<dfse_3,0,dfse_2-dfse_3)) ->  | M36: =IF(b_3=" ","",IF(dfse_3>dfse_4,0,dfse_4-dfse_3)) ->  | N36: =IF(b_3=" ","",IF(dfse_3<dfse_4,0,dfse_3-dfse_4)) ->  | P36: =IF(b_4=" ","",IF(dfse_4>dfse_5,0,dfse_5-dfse_4)) ->  | Q36: =IF(b_4=" ","",IF(dfse_4<dfse_5,0,dfse_4-dfse_5)) -> 
C37: Autres dettes | G37: =IF(b_1=" ","",IF(ade_1>=ade_2,0,ade_2-ade_1)) ->  | H37: =IF(b_1=" ","",IF(ade_1<=ade_2,0,ade_1-ade_2)) ->  | J37: =IF(b_2=" ","",IF(ade_2>=ade_3,0,ade_3-ade_2)) ->  | K37: =IF(b_2=" ","",IF(ade_2<=ade_3,0,ade_2-ade_3)) ->  | M37: =IF(b_3=" ","",IF(ade_3>=ade_4,0,ade_4-ade_3)) ->  | N37: =IF(b_3=" ","",IF(ade_3<=ade_4,0,ade_3-ade_4)) ->  | P37: =IF(b_4=" ","",IF(ade_4>=ade_5,0,ade_5-ade_4)) ->  | Q37: =IF(b_4=" ","",IF(ade_4<=ade_5,0,ade_4-ade_5)) -> 
C38: Produits constatés d'avance | G38: =IF(b_1=" ","",IF(pca_1>pca_2,0,pca_2-pca_1)) ->  | H38: =IF(b_1=" ","",IF(pca_1<pca_2,0,pca_1-pca_2)) ->  | J38: =IF(b_2=" ","",IF(pca_2>pca_3,0,pca_3-pca_2)) ->  | K38: =IF(b_2=" ","",IF(pca_2<pca_3,0,pca_2-pca_3)) ->  | M38: =IF(b_3=" ","",IF(pca_3>pca_4,0,pca_4-pca_3)) ->  | N38: =IF(b_3=" ","",IF(pca_3<pca_4,0,pca_3-pca_4)) ->  | P38: =IF(b_4=" ","",IF(pca_4>pca_5,0,pca_5-pca_4)) ->  | Q38: =IF(b_4=" ","",IF(pca_4<pca_5,0,pca_4-pca_5)) -> 
G40: =IF(b_1=" "," ",SUM(G30:G38)) ->  | H40: =IF(b_1=" "," ",SUM(H30:H38)) ->  | J40: =IF(b_2=" "," ",SUM(J30:J38)) ->  | K40: =IF(b_2=" "," ",SUM(K30:K38)) ->  | M40: =IF(b_3=" "," ",SUM(M30:M38)) ->  | N40: =IF(b_3=" "," ",SUM(N30:N38)) ->  | P40: =IF(b_4=" "," ",SUM(P30:P38)) ->  | Q40: =IF(b_4=" "," ",SUM(Q30:Q38)) -> 
B42: Le besoin en fonds de roulement d'exploitation a diminué de | H42: =IF(b_1=" "," ",IF(G40>H40,0,H40-G40)) ->  | K42: =IF(b_2=" "," ",IF(J40>K40,0,K40-J40)) ->  | N42: =IF(b_3=" "," ",IF(M40>N40,0,N40-M40)) ->  | Q42: =IF(b_4=" "," ",IF(P40>Q40,0,Q40-P40)) -> 
B44: Le besoin en fonds de roulement d'exploitation a augmenté de | G44: =IF(b_1=" "," ",IF(G40<H40,0,G40-H40)) ->  | J44: =IF(b_2=" "," ",IF(J40<K40,0,J40-K40)) ->  | M44: =IF(b_3=" "," ",IF(M40<N40,0,M40-N40)) ->  | P44: =IF(b_4=" "," ",IF(P40<Q40,0,P40-Q40)) -> 
B46: Variation hors exploitation | G46: Emploi | H46: Ressource | J46: Emploi | K46: Ressource | M46: Emploi | N46: Ressource | P46: Emploi | Q46: Ressource
C47: Impôts sur les bénéfices (créance) | G47: =IF(b_1=" "," ",IF(vm_1<vm_2,0,vm_1-vm_2)) ->  | H47: =IF(b_1=" "," ",IF(vm_1>vm_2,0,vm_2-vm_1)) ->  | J47: =IF(b_2=" "," ",IF(vm_2<vm_3,0,vm_2-vm_3)) ->  | K47: =IF(b_2=" "," ",IF(vm_2>vm_3,0,vm_3-vm_2)) ->  | M47: =IF(b_3=" "," ",IF(vm_3<vm_4,0,vm_3-vm_4)) ->  | N47: =IF(b_3=" "," ",IF(vm_3>vm_4,0,vm_4-vm_3)) ->  | P47: =IF(b_4=" "," ",IF(vm_4<vm_5,0,vm_4-vm_5)) ->  | Q47: =IF(b_4=" "," ",IF(vm_4>vm_5,0,vm_5-vm_4)) -> 
C48: Groupe et associés (créance) | G48: =IF(b_1=" "," ",IF(vc_1<vc_2,0,vc_1-vc_2)) ->  | H48: =IF(b_1=" "," ",IF(vc_1>vc_2,0,vc_2-vc_1)) ->  | J48: =IF(b_2=" "," ",IF(vc_2<vc_3,0,vc_2-vc_3)) ->  | K48: =IF(b_2=" "," ",IF(vc_2>vc_3,0,vc_3-vc_2)) ->  | M48: =IF(b_3=" "," ",IF(vc_3<vc_4,0,vc_3-vc_4)) ->  | N48: =IF(b_3=" "," ",IF(vc_3>vc_4,0,vc_4-vc_3)) ->  | P48: =IF(b_4=" "," ",IF(vc_4<vc_5,0,vc_4-vc_5)) ->  | Q48: =IF(b_4=" "," ",IF(vc_4>vc_5,0,vc_5-vc_4)) -> 
C49: Capital souscrit et appelé, non versé | G49: =IF(b_1=" "," ",IF(cb_1<cb_2,0,cb_1-cb_2)) ->  | H49: =IF(b_1=" "," ",IF(cb_1>cb_2,0,cb_2-cb_1)) ->  | J49: =IF(b_2=" "," ",IF(cb_2<cb_3,0,cb_2-cb_3)) ->  | K49: =IF(b_2=" "," ",IF(cb_2>cb_3,0,cb_3-cb_2)) ->  | M49: =IF(b_3=" "," ",IF(cb_3<cb_4,0,cb_3-cb_4)) ->  | N49: =IF(b_3=" "," ",IF(cb_3>cb_4,0,cb_4-cb_3)) ->  | P49: =IF(b_4=" "," ",IF(cb_4<cb_5,0,cb_4-cb_5)) ->  | Q49: =IF(b_4=" "," ",IF(cb_4>cb_5,0,cb_5-cb_4)) -> 
C50: Impôts sur les bénéfices (dette) | G50: =IF(b_1=" "," ",IF(is_1>is_2,0,is_2-is_1)) ->  | H50: =IF(b_1=" "," ",IF(is_1<is_2,0,is_1-is_2)) ->  | J50: =IF(b_2=" "," ",IF(is_2>is_3,0,is_3-is_2)) ->  | K50: =IF(b_2=" "," ",IF(is_2<is_3,0,is_2-is_3)) ->  | M50: =IF(b_3=" "," ",IF(is_3>is_4,0,is_4-is_3)) ->  | N50: =IF(b_3=" "," ",IF(is_3<is_4,0,is_3-is_4)) ->  | P50: =IF(b_4=" "," ",IF(is_4>is_5,0,is_5-is_4)) ->  | Q50: =IF(b_4=" "," ",IF(is_4<is_5,0,is_4-is_5)) -> 
C51: Dettes sur immobilisations | G51: =IF(b_1=" "," ",IF(dz_1>dz_2,0,dz_2-dz_1)) ->  | H51: =IF(b_1=" "," ",IF(dz_1<dz_2,0,dz_1-dz_2)) ->  | J51: =IF(b_2=" "," ",IF(dz_2>dz_3,0,dz_3-dz_2)) ->  | K51: =IF(b_2=" "," ",IF(dz_2<dz_3,0,dz_2-dz_3)) ->  | M51: =IF(b_3=" "," ",IF(dz_3>dz_4,0,dz_4-dz_3)) ->  | N51: =IF(b_3=" "," ",IF(dz_3<dz_4,0,dz_3-dz_4)) ->  | P51: =IF(b_4=" "," ",IF(dz_4>dz_5,0,dz_5-dz_4)) ->  | Q51: =IF(b_4=" "," ",IF(dz_4<dz_5,0,dz_4-dz_5)) -> 
C52: Groupe et associés (dette) | G52: =IF(b_1=" "," ",IF(vi_1>vi_2,0,vi_2-vi_1)) ->  | H52: =IF(b_1=" "," ",IF(vi_1<vi_2,0,vi_1-vi_2)) ->  | J52: =IF(b_2=" "," ",IF(vi_2>vi_3,0,vi_3-vi_2)) ->  | K52: =IF(b_2=" "," ",IF(vi_2<vi_3,0,vi_2-vi_3)) ->  | M52: =IF(b_3=" "," ",IF(vi_3>vi_4,0,vi_4-vi_3)) ->  | N52: =IF(b_3=" "," ",IF(vi_3<vi_4,0,vi_3-vi_4)) ->  | P52: =IF(b_4=" "," ",IF(vi_4>vi_5,0,vi_5-vi_4)) ->  | Q52: =IF(b_4=" "," ",IF(vi_4<vi_5,0,vi_4-vi_5)) -> 
C53: Autres dettes | G53: =IF(b_1=" "," ",IF(ea_1>ea_2,0,ea_2-ea_1)) ->  | H53: =IF(b_1=" "," ",IF(ea_1<ea_2,0,ea_1-ea_2)) ->  | J53: =IF(b_2=" "," ",IF(ea_2>ea_3,0,ea_3-ea_2)) ->  | K53: =IF(b_2=" "," ",IF(ea_2<ea_3,0,ea_2-ea_3)) ->  | M53: =IF(b_3=" "," ",IF(ea_3>ea_4,0,ea_4-ea_3)) ->  | N53: =IF(b_3=" "," ",IF(ea_3<ea_4,0,ea_3-ea_4)) ->  | P53: =IF(b_4=" "," ",IF(ea_4>ea_5,0,ea_5-ea_4)) ->  | Q53: =IF(b_4=" "," ",IF(ea_4<ea_5,0,ea_4-ea_5)) -> 
B54: Variation nette hors exploitation | G54: =IF(b_1=" "," ",IF((G47+G48+G49+G50+G51+G52+G53)<(H47+H48+H49+H50+H51+H52+H53),0,G47+G48+G49+G50+G51+G52+G53-H47-H48-H49-H50-H51-H52-H53)) ->  | H54: =IF(b_1=" "," ",IF((H47+H48+H49+H50+H51+H52+H53)<(G47+G48+G49+G50+G51+G52+G53),0,H47+H48+H49+H50+H51+H52+H53-G47-G48-G49-G50-G51-G52-G53)) ->  | J54: =IF(b_2=" "," ",IF((J47+J48+J49+J50+J51+J52+J53)<(K47+K48+K49+K50+K51+K52+K53),0,J47+J48+J49+J50+J51+J52+J53-K47-K48-K49-K50-K51-K52-K53)) ->  | K54: =IF(b_2=" "," ",IF((K47+K48+K49+K50+K51+K52+K53)<(J47+J48+J49+J50+J51+J52+J53),0,K47+K48+K49+K50+K51+K52+K53-J47-J48-J49-J50-J51-J52-J53)) ->  | M54: =IF(b_3=" "," ",IF((M47+M48+M49+M50+M51+M52+M53)<(N47+N48+N49+N50+N51+N52+N53),0,M47+M48+M49+M50+M51+M52+M53-N47-N48-N49-N50-N51-N52-N53)) ->  | N54: =IF(b_3=" "," ",IF((N47+N48+N49+N50+N51+N52+N53)<(M47+M48+M49+M50+M51+M52+M53),0,N47+N48+N49+N50+N51+N52+N53-M47-M48-M49-M50-M51-M52-M53)) ->  | P54: =IF(b_4=" "," ",IF((P47+P48+P49+P50+P51+P52+P53)<(Q47+Q48+Q49+Q50+Q51+Q52+Q53),0,P47+P48+P49+P50+P51+P52+P53-Q47-Q48-Q49-Q50-Q51-Q52-Q53)) ->  | Q54: =IF(b_4=" "," ",IF((Q47+Q48+Q49+Q50+Q51+Q52+Q53)<(P47+P48+P49+P50+P51+P52+P53),0,Q47+Q48+Q49+Q50+Q51+Q52+Q53-P47-P48-P49-P50-P51-P52-P53)) -> 
B56: Le besoin en fonds de roulement global a diminué de | H56: =IF(b_1=" "," ",IF(H42-G44+H54-G54<0,0,H42-G44+H54-G54)) ->  | K56: =IF(b_2=" "," ",IF(K42-J44+K54-J54<0,0,K42-J44+K54-J54)) ->  | N56: =IF(b_3=" "," ",IF(N42-M44+N54-M54<0,0,N42-M44+N54-M54)) ->  | Q56: =IF(b_4=" "," ",IF(Q42-P44+Q54-P54<0,0,Q42-P44+Q54-P54)) -> 
B58: Le besoin en fonds de roulement global a augmenté de | G58: =IF(b_1=" "," ",IF((G44-H42+G54-H54)<0,0,G44-H42+G54-H54)) ->  | J58: =IF(b_2=" "," ",IF((J44-K42+J54-K54)<0,0,J44-K42+J54-K54)) ->  | M58: =IF(b_3=" "," ",IF((M44-N42+M54-N54)<0,0,M44-N42+M54-N54)) ->  | P58: =IF(b_4=" "," ",IF((P44-Q42+P54-Q54)<0,0,P44-Q42+P54-Q54)) -> 
B61: La trésorerie a augmenté de | H61: =IF(b_1=" "," ",IF((H25-G27+H56-G58)<=0,0,H25-G27+H56-G58)) ->  | K61: =IF(b_2=" "," ",IF((K25-J27+K56-J58)<=0,0,K25-J27+K56-J58)) ->  | N61: =IF(b_3=" "," ",IF((N25-M27+N56-M58)<=0,0,N25-M27+N56-M58)) ->  | Q61: =IF(b_4=" "," ",IF((Q25-P27+Q56-P58)<=0,0,Q25-P27+Q56-P58)) -> 
B63: La trésorerie a diminué de | G63: =IF(b_1=" "," ",IF((H25-G27+H56-G58)>=0,0,G27-H25+G58-H56)) ->  | J63: =IF(b_2=" "," ",IF((K25-J27+K56-J58)>=0,0,J27-K25+J58-K56)) ->  | M63: =IF(b_3=" "," ",IF((N25-M27+N56-M58)>=0,0,M27-N25+M58-N56)) ->  | P63: =IF(b_4=" "," ",IF((Q25-P27+Q56-P58)>=0,0,P27-Q25+P58-Q56)) -> 
E66: Contrôle de cohérence de la variation de trésorerie | G66: =IF(b_1=" "," ",IF(vtr_1>0," ",(G63/-1)-vtr_1)) ->  | H66: =IF(b_1=" "," ",IF(vtr_1<0," ",H61-vtr_1)) ->  | J66: =IF(b_2=" "," ",IF(vtr_2>0," ",(J63/-1)-vtr_2)) ->  | K66: =IF(b_2=" "," ",IF(vtr_2<0," ",K61-vtr_2)) ->  | M66: =IF(b_3=" "," ",IF(vtr_3>0," ",(M63/-1)-vtr_3)) ->  | N66: =IF(b_3=" "," ",IF(vtr_3<0," ",N61-vtr_3)) ->  | P66: =IF(b_4=" "," ",IF(vtr_4>0," ",(P63/-1)-vtr_4)) -> 

Sheet Ratios
B2: =IF(ISBLANK(societe)," ",societe) ->  | F2: =IF(ISBLANK(d)," ",d+4) ->  | H2: =IF(ISBLANK(d)," ",d+3) ->  | J2: =IF(ISBLANK(d)," ",d+2) ->  | L2: =IF(ISBLANK(d)," ",d+1) ->  | N2: =IF(ISBLANK(d)," ",d) -> 
F3: =IF(ISBLANK(du_1)," ",du_1) ->  | H3: =IF(ISBLANK(du_2)," ",du_2) ->  | J3: =IF(ISBLANK(du_3)," ",du_3) ->  | L3: =IF(ISBLANK(du_4)," ",du_4) ->  | N3: =IF(ISBLANK(du_5)," ",du_5) -> 
B4: Score3, bilan, conseil entreprise et scoring gratuit | F4: bilans gratuits
B5: A - Activité et profitabilité | C5: Commentaire
B6: Chiffre d'affaires | C6: Montant | D6: =IF(ISBLANK(u)," ",u) ->  | F6: =IF(ca_1=0," ",ca_1) ->  | H6: =IF(ca_2=0," ",ca_2) ->  | J6: =IF(ca_3=0," ",ca_3) ->  | L6: =IF(ca_4=0," ",ca_4) ->  | N6: =IF(ca_5=0," ",ca_5) -> 
C7: D apparente | D7: % | F7: =IF(ISERROR(IF(ca_1=0," ",(ca_1/ca_2)-1))," ",IF(ca_1=0," ",(ca_1/ca_2)-1)) ->  | H7: =IF(ISERROR(IF(ca_2=0," ",(ca_2/ca_3)-1))," ",IF(ca_2=0," ",(ca_2/ca_3)-1)) ->  | J7: =IF(ISERROR(IF(ca_3=0," ",(ca_3/ca_4)-1))," ",IF(ca_3=0," ",(ca_3/ca_4)-1)) ->  | L7: =IF(ISERROR(IF(ca_4=0," ",(ca_4/ca_5)-1))," ",IF(ca_4=0," ",(ca_4/ca_5)-1)) ->  | N7: =IF(ISERROR(IF(ca_5=0," ",(ca_5/ca_6)-1))," ",IF(ca_5=0," ",(ca_5/ca_6)-1)) -> 
C9: Evolution annuelle du chiffre d'affaires | F9: =IF(ISERROR(IF(ca_1=0," ",((ca_1*12/du_1)/(ca_2*12/du_2))-1))," ",IF(ca_1=0," ",((ca_1*12/du_1)/(ca_2*12/du_2))-1)) ->  | H9: =IF(ISERROR(IF(ca_2=0," ",((ca_2*12/du_2)/(ca_3*12/du_3))-1))," ",IF(ca_2=0," ",((ca_2*12/du_2)/(ca_3*12/du_3))-1)) ->  | J9: =IF(ISERROR(IF(ca_3=0," ",((ca_3*12/du_3)/(ca_4*12/du_4))-1))," ",IF(ca_3=0," ",((ca_3*12/du_3)/(ca_4*12/du_4))-1)) ->  | L9: =IF(ISERROR(IF(ca_4=0," ",((ca_4*12/du_4)/(ca_5*12/du_5))-1))," ",IF(ca_4=0," ",((ca_4*12/du_4)/(ca_5*12/du_5))-1)) ->  | N9: =IF(ISERROR(IF(OR(ca_5=0,ca_6=0)," ",((ca_5*12/du_5)/(ca_5*12/du_5))-1))," ",IF(OR(ca_5=0,ca_6=0)," ",((ca_5*12/du_5)/(ca_6*12/du_6))-1)) -> 
F11: =IF(F9=" "," ",IF(F9<-1%,"Baisse du chiffre d'affaires",IF(F9<1%,"Stagnation du chiffre d'affaires","Chiffre d'affaires en progression"))) ->  | H11: =IF(H9=" "," ",IF(H9<-1%,"Baisse du chiffre d'affaires",IF(H9<1%,"Stagnation du chiffre d'affaires","Chiffre d'affaires en progression"))) ->  | J11: =IF(J9=" "," ",IF(J9<-1%,"Baisse du chiffre d'affaires",IF(J9<1%,"Stagnation du chiffre d'affaires","Chiffre d'affaires en progression"))) ->  | L11: =IF(L9=" "," ",IF(L9<-1%,"Baisse du chiffre d'affaires",IF(L9<1%,"Stagnation du chiffre d'affaires","Chiffre d'affaires en progression"))) ->  | N11: =IF(ca_6=0," ",IF(ISBLANK(N9)," ",IF(N9<-1%,"Baisse du chiffre d'affaires",IF(N9<1%,"Stagnation du chiffre d'affaires","Chiffre d'affaires en progression")))) -> 
C13: Part du chiffre d'affaires à l'exportation | F13: =IF(ISERROR(IF(ca_1=0," ",resultat!E39))," ",IF(ca_1=0," ",resultat!E39)) ->  | H13: =IF(ISERROR(IF(ca_2=0," ",resultat!F39))," ",IF(ca_2=0," ",resultat!F39)) ->  | J13: =IF(ISERROR(IF(ca_3=0," ",resultat!G39))," ",IF(ca_3=0," ",resultat!G39)) ->  | L13: =IF(ISERROR(IF(ca_4=0," ",resultat!H39))," ",IF(ca_4=0," ",resultat!H39)) ->  | N13: =IF(ISERROR(IF(ca_5=0," ",resultat!I39))," ",IF(ca_5=0," ",resultat!I39)) -> 
C15: =IF(resultat!H4="PB","Part du chiffre d'affaires produit"," ") ->  | F15: =IF(ISERROR(IF(ca_1=0," ",IF(activité="PB",resultat!E20," ")))," ",IF(ca_1=0," ",IF(activité="PB",resultat!E20," "))) ->  | H15: =IF(ISERROR(IF(ca_2=0," ",IF(activité="PB",resultat!F20," ")))," ",IF(ca_2=0," ",IF(activité="PB",resultat!F20," "))) ->  | J15: =IF(ISERROR(IF(ca_3=0," ",IF(activité="PB",resultat!G20," ")))," ",IF(ca_3=0," ",IF(activité="PB",resultat!G20," "))) ->  | L15: =IF(ISERROR(IF(ca_4=0," ",IF(activité="PB",resultat!H20," ")))," ",IF(ca_4=0," ",IF(activité="PB",resultat!H20," "))) ->  | N15: =IF(ISERROR(IF(ca_5=0," ",IF(activité="PB",resultat!I20," ")))," ",IF(ca_5=0," ",IF(activité="PB",resultat!I20," "))) -> 
C17: Effectif moyen salarié | F17: =IF(ca_1=0," ",IF(yp_1=0," ",yp_1)) ->  | H17: =IF(ca_2=0," ",IF(yp_2=0," ",yp_2)) ->  | J17: =IF(ca_3=0," ",IF(yp_3=0," ",yp_3)) ->  | L17: =IF(ca_4=0," ",IF(yp_4=0," ",yp_4)) ->  | N17: =IF(ca_5=0," ",IF(yp_5=0," ",yp_5)) -> 
C18: Effectif moyen personnel extérieur | F18: =IF(ca_1=0," ",IF(interim_1=0," ",interim_1)) ->  | H18: =IF(ca_2=0," ",IF(interim_2=0," ",interim_2)) ->  | J18: =IF(ca_3=0," ",IF(interim_3=0," ",interim_3)) ->  | L18: =IF(ca_4=0," ",IF(interim_4=0," ",interim_4)) ->  | N18: =IF(ca_5=0," ",IF(interim_5=0," ",interim_5)) -> 
C19: Effectif moyen total | F19: =IF(ca_1=0," ",IF(e_1=0," ",e_1)) ->  | H19: =IF(ca_2=0," ",IF(e_2=0," ",e_2)) ->  | J19: =IF(ca_3=0," ",IF(e_3=0," ",e_3)) ->  | L19: =IF(ca_4=0," ",IF(e_4=0," ",e_4)) ->  | N19: =IF(ca_5=0," ",IF(e_5=0," ",e_5)) -> 
F20: =IF(ca_1=0," ",IF(e_1=0," ",(ca_1*12/du_1)/e_1)) ->  | H20: =IF(ca_2=0," ",IF(e_2=0," ",(ca_2*12/du_2)/e_2)) ->  | J20: =IF(ca_3=0," ",IF(e_3=0," ",(ca_3*12/du_3)/e_3)) ->  | L20: =IF(ca_4=0," ",IF(e_4=0," ",(ca_4*12/du_4)/e_4)) ->  | N20: =IF(ca_5=0," ",IF(e_5=0," ",(ca_5*12/du_5)/e_5)) -> 
C21: Taux de recours à du personnel extérieur | F21: =IF(ISERROR(IF(ca_1=0," ",F18/F17))," ",IF(ca_1=0," ",F18/F17)) ->  | H21: =IF(ISERROR(IF(ca_2=0," ",H18/H17))," ",IF(ca_2=0," ",H18/H17)) ->  | J21: =IF(ISERROR(IF(ca_3=0," ",J18/J17))," ",IF(ca_3=0," ",J18/J17)) ->  | L21: =IF(ISERROR(IF(ca_4=0," ",L18/L17))," ",IF(ca_4=0," ",L18/L17)) ->  | N21: =IF(ISERROR(IF(ca_5=0," ",N18/N17))," ",IF(ca_5=0," ",N18/N17)) -> 
C23: Chiffre d'affaires annuel par salarié | F23: =IF(F20=" "," ",IF(u="K€",F20,IF(u="€",F20/1000))) ->  | H23: =IF(H20=" "," ",IF(u="K€",H20,IF(u="€",H20/1000))) ->  | J23: =IF(J20=" "," ",IF(u="K€",J20,IF(u="€",J20/1000))) ->  | L23: =IF(L20=" "," ",IF(u="K€",L20,IF(u="€",L20/1000))) ->  | N23: =IF(N20=" "," ",IF(u="K€",N20,IF(u="€",N20/1000))) -> 
F25: =IF(F23=" "," ",IF(F23>(H23*1.01),"Gain de productivité",IF(F23<(H23/1.01),"Perte de productivité"," "))) ->  | H25: =IF(H23=" "," ",IF(H23>(J23*1.01),"Gain de productivité",IF(H23<(J23/1.01),"Perte de productivité"," "))) ->  | J25: =IF(J23=" "," ",IF(J23>(L23*1.01),"Gain de productivité",IF(J23<(L23/1.01),"Perte de productivité"," "))) ->  | L25: =IF(L23=" "," ",IF(L23>(N23*1.01),"Gain de productivité",IF(L23<(N23/1.01),"Perte de productivité"," "))) -> 
C26: Commentaire
B27: Production | C27: Montant | D27: =IF(ISBLANK(u)," ",u) ->  | F27: =IF(pr_1=0," ",pr_1) ->  | H27: =IF(pr_2=0," ",pr_2) ->  | J27: =IF(pr_3=0," ",pr_3) ->  | L27: =IF(pr_4=0," ",pr_4) ->  | N27: =IF(pr_5=0," ",pr_5) -> 
C28: Evolution | D28: % | F28: =IF(ISERROR(IF(ca_1=0," ",(pr_1/pr_2)-1))," ",IF(ca_1=0," ",(pr_1/pr_2)-1)) ->  | H28: =IF(ISERROR(IF(ca_2=0," ",(pr_2/pr_3)-1))," ",IF(ca_2=0," ",(pr_2/pr_3)-1)) ->  | J28: =IF(ISERROR(IF(ca_3=0," ",(pr_3/pr_4)-1))," ",IF(ca_3=0," ",(pr_3/pr_4)-1)) ->  | L28: =IF(ISERROR(IF(ca_4=0," ",(pr_4/pr_5)-1))," ",IF(ca_4=0," ",(pr_4/pr_5)-1)) ->  | N28: =IF(ISERROR(IF(ca_5=0," ",(pr_5/pr_6)-1))," ",IF(ca_5=0," ",(pr_5/pr_6)-1)) -> 
C29: Commentaire
B30: Marge commerciale | C30: Montant | D30: =IF(ISBLANK(u)," ",u) ->  | F30: =IF(mc_1=0," ",mc_1) ->  | H30: =IF(mc_2=0," ",mc_2) ->  | J30: =IF(mc_3=0," ",mc_3) ->  | L30: =IF(mc_4=0," ",mc_4) ->  | N30: =IF(mc_5=0," ",mc_5) -> 
C31: Taux de marge commerciale | F31: =IF(ca_1=0," ",IF(mc_1=" "," ",mc_1/fc_1)) ->  | H31: =IF(ca_2=0," ",IF(mc_2=" "," ",mc_2/fc_2)) ->  | J31: =IF(ca_3=0," ",IF(mc_3=" "," ",mc_3/fc_3)) ->  | L31: =IF(ca_4=0," ",IF(mc_4=" "," ",mc_4/fc_4)) ->  | N31: =IF(ca_5=0," ",IF(mc_5=" "," ",mc_5/fc_5)) -> 
F33: =IF(F31=" "," ",IF((F31-H31)>0.1%,"Gain de marge",IF((F31-H31)<-0.1%,"Perte de marge"," "))) ->  | H33: =IF(H31=" "," ",IF((H31-J31)>0.1%,"Gain de marge",IF((H31-J31)<-0.1%,"Perte de marge"," "))) ->  | J33: =IF(J31=" "," ",IF((J31-L31)>0.1%,"Gain de marge",IF((J31-L31)<-0.1%,"Perte de marge"," "))) ->  | L33: =IF(L31=" "," ",IF((L31-N31)>0.1%,"Gain de marge",IF((L31-N31)<-0.1%,"Perte de marge"," "))) -> 
D35: Taux de marge moyen du secteur
D37: Ecart | F37: =IF(ISBLANK(F35)," ",IF(F31<(0.99*F35),"Défavorable",IF(F31>(F35*1.01),"Favorable","Correct "))) ->  | H37: =IF(ISBLANK(H35)," ",IF(H31<(0.99*H35),"Défavorable",IF(H31>(H35*1.01),"Favorable","Correct "))) ->  | J37: =IF(ISBLANK(J35)," ",IF(J31<(0.99*J35),"Défavorable",IF(J31>(J35*1.01),"Favorable","Correct "))) ->  | L37: =IF(ISBLANK(L35)," ",IF(L31<(0.99*L35),"Défavorable",IF(L31>(L35*1.01),"Favorable","Correct "))) ->  | N37: =IF(ISBLANK(N35)," ",IF(N31<(0.99*N35),"Défavorable",IF(N31>(N35*1.01),"Favorable","Correct "))) -> 
B39: Marge brute sur production de biens ou de services | C39: Montant | D39: =IF(ISBLANK(u)," ",u) ->  | F39: =IF(mb_1=0," ",mb_1) ->  | H39: =IF(mb_2=0," ",mb_2) ->  | J39: =IF(mb_3=0," ",mb_3) ->  | L39: =IF(mb_4=0," ",mb_4) ->  | N39: =IF(mb_5=0," ",mb_5) -> 
C40: Taux de marge brute sur PB ou PS | F40: =IF(ca_1=0," ",IF(mb_1=0," ",IF(mb_1=" "," ",IF(resultat!$H$4="PB",mb_1/ff_1,IF(resultat!$H$4="PS",mb_1/fi_1," "))))) ->  | H40: =IF(ca_2=0," ",IF(mb_2=0," ",IF(mb_2=" "," ",IF(resultat!$H$4="PB",mb_2/ff_2,IF(resultat!$H$4="PS",mb_2/fi_2," "))))) ->  | J40: =IF(ca_3=0," ",IF(mb_3=0," ",IF(mb_3=" "," ",IF(resultat!$H$4="PB",mb_3/ff_3,IF(resultat!$H$4="PS",mb_3/fi_3," "))))) ->  | L40: =IF(ca_4=0," ",IF(mb_4=0," ",IF(mb_4=" "," ",IF(resultat!$H$4="PB",mb_4/ff_4,IF(resultat!$H$4="PS",mb_4/fi_4," "))))) ->  | N40: =IF(ca_5=0," ",IF(mb_5=0," ",IF(mb_5=" "," ",IF(resultat!$H$4="PB",mb_5/ff_5,IF(resultat!$H$4="PS",mb_5/fi_5," "))))) -> 
F42: =IF(F40=" "," ",IF((F40-H40)>0.1%,"Gain de marge",IF((F40-H40)<-0.1%,"Perte de marge"," "))) ->  | H42: =IF(H40=" "," ",IF((H40-J40)>0.1%,"Gain de marge",IF((H40-J40)<-0.1%,"Perte de marge"," "))) ->  | J42: =IF(J40=" "," ",IF((J40-L40)>0.1%,"Gain de marge",IF((J40-L40)<-0.1%,"Perte de marge"," "))) ->  | L42: =IF(L40=" "," ",IF((L40-N40)>0.1%,"Gain de marge",IF((L40-N40)<-0.1%,"Perte de marge"," "))) -> 
B44: Marge brute totale | C44: Montant | D44: =IF(ISBLANK(u)," ",u) ->  | F44: =IF(ca_1=0," ",pr_1-mse_1-mat_1) ->  | H44: =IF(ca_2=0," ",pr_2-mse_2-mat_2) ->  | J44: =IF(ca_3=0," ",pr_3-mse_3-mat_3) ->  | L44: =IF(ca_4=0," ",pr_4-mse_4-mat_4) ->  | N44: =IF(ca_5=0," ",pr_5-mse_5-mat_5) -> 
C45: Taux de marge brute totale | F45: =IF(ca_1=0," ",F44/pr_1) ->  | H45: =IF(ca_2=0," ",H44/pr_2) ->  | J45: =IF(ca_3=0," ",J44/pr_3) ->  | L45: =IF(ca_4=0," ",L44/pr_4) ->  | N45: =IF(ca_5=0," ",N44/pr_5) -> 
F47: =IF(F45=" "," ",IF((F45-H45)>0.1%,"Gain de marge",IF((F45-H45)<-0.1%,"Perte de marge"," "))) ->  | H47: =IF(H45=" "," ",IF((H45-J45)>0.1%,"Gain de marge",IF((H45-J45)<-0.1%,"Perte de marge"," "))) ->  | J47: =IF(J45=" "," ",IF((J45-L45)>0.1%,"Gain de marge",IF((J45-L45)<-0.1%,"Perte de marge"," "))) ->  | L47: =IF(L45=" "," ",IF((L45-N45)>0.1%,"Gain de marge",IF((L45-N45)<-0.1%,"Perte de marge"," "))) -> 
C48: Commentaire
B49: Valeur ajoutée | C49: Montant | D49: =IF(ISBLANK(u)," ",u) ->  | F49: =IF(va_1=" "," ",va_1) ->  | H49: =IF(va_2=" "," ",va_2) ->  | J49: =IF(va_3=" "," ",va_3) ->  | L49: =IF(va_4=" "," ",va_4) ->  | N49: =IF(va_5=" "," ",va_5) -> 
C50: Taux de valeur ajoutée | F50: =IF(ca_1=0," ",IF(va_1=0," ",va_1/pr_1)) ->  | H50: =IF(ca_2=0," ",IF(va_2=0," ",va_2/pr_2)) ->  | J50: =IF(ca_3=0," ",IF(va_3=0," ",va_3/pr_3)) ->  | L50: =IF(ca_4=0," ",IF(va_4=0," ",va_4/pr_4)) ->  | N50: =IF(ca_5=0," ",IF(va_5=0," ",va_5/pr_5)) -> 
F51: =IF(ca_1=0," ",IF(e_1=0," ",(va_1*12/du_1)/e_1)) ->  | H51: =IF(ca_2=0," ",IF(e_2=0," ",(va_2*12/du_2)/e_2)) ->  | J51: =IF(ca_3=0," ",IF(e_3=0," ",(va_3*12/du_3)/e_3)) ->  | L51: =IF(ca_4=0," ",IF(e_4=0," ",(va_4*12/du_4)/e_4)) ->  | N51: =IF(ca_5=0," ",IF(e_5=0," ",(va_5*12/du_5)/e_5)) -> 
C52: Valeur ajoutée produite par salarié | F52: =IF(F51=" "," ",IF(u="K€",F51,IF(u="€",F51/1000))) ->  | H52: =IF(H51=" "," ",IF(u="K€",H51,IF(u="€",H51/1000))) ->  | J52: =IF(J51=" "," ",IF(u="K€",J51,IF(u="€",J51/1000))) ->  | L52: =IF(L51=" "," ",IF(u="K€",L51,IF(u="€",L51/1000))) ->  | N52: =IF(N51=" "," ",IF(u="K€",N51,IF(u="€",N51/1000))) -> 
F54: =IF(F52=" "," ",IF(F52>(H52*1.01),"Gain de productivité",IF(F52<(H52/1.01),"Perte de productivité"," "))) ->  | H54: =IF(H52=" "," ",IF(H52>(J52*1.01),"Gain de productivité",IF(H52<(J52/1.01),"Perte de productivité"," "))) ->  | J54: =IF(J52=" "," ",IF(J52>(L52*1.01),"Gain de productivité",IF(J52<(L52/1.01),"Perte de productivité"," "))) ->  | L54: =IF(L52=" "," ",IF(L52>(N52*1.01),"Gain de productivité",IF(L52<(N52/1.01),"Perte de productivité"," "))) -> 
C55: Commentaire
C56: Productivité du personnel (Ch. P./VA) | F56: =IF(ca_1=0,0,IF(p_1=0,0,p_1/va_1)) -> 0.0% | H56: =IF(ca_2=0,0,IF(p_2=0,0,p_2/va_2)) -> 0.0% | J56: =IF(ca_3=0,0,IF(p_3=0,0,p_3/va_3)) -> 0.0% | L56: =IF(ca_4=0,0,IF(p_4=0,0,p_4/va_4)) -> 0.0% | N56: =IF(ca_5=0,0,IF(p_5=0,0,p_5/va_5)) -> 0.0%
F58: =IF(F56=" "," ",IF(F56<=75%," ",IF(F56<80%,"Mauvais","Très mauvais"))) ->  | H58: =IF(H56=" "," ",IF(H56<=75%," ",IF(H56<80%,"Mauvais","Très mauvais"))) ->  | J58: =IF(J56=" "," ",IF(J56<=75%," ",IF(J56<80%,"Mauvais","Très mauvais"))) ->  | L58: =IF(L56=" "," ",IF(L56<=75%," ",IF(L56<80%,"Mauvais","Très mauvais"))) ->  | N58: =IF(N56=" "," ",IF(N56<=75%," ",IF(N56<80%,"Mauvais","Très mauvais"))) -> 
C60: Salaire annuel moyen par salarié | F60: =IF(ca_1=0," ",IF(ISBLANK(yp_1)," ",IF(fy_1=0," ",IF(u="K€",(fy_1*12/du_1)/yp_1,IF(u="€",(fy_1*12/du_1)/(yp_1*1000)))))) ->  | H60: =IF(ca_2=0," ",IF(ISBLANK(yp_2)," ",IF(fy_2=0," ",IF(u="K€",(fy_2*12/du_2)/yp_2,IF(u="€",(fy_2*12/du_2)/(yp_2*1000)))))) ->  | J60: =IF(ca_3=0," ",IF(ISBLANK(yp_3)," ",IF(fy_3=0," ",IF(u="K€",(fy_3*12/du_3)/yp_3,IF(u="€",(fy_3*12/du_3)/(yp_3*1000)))))) ->  | L60: =IF(ca_4=0," ",IF(ISBLANK(yp_4)," ",IF(fy_4=0," ",IF(u="K€",(fy_4*12/du_4)/yp_4,IF(u="€",(fy_4*12/du_4)/(yp_4*1000)))))) ->  | N60: =IF(ca_5=0," ",IF(ISBLANK(yp_5)," ",IF(fy_5=0," ",IF(u="K€",(fy_5*12/du_5)/yp_5,IF(u="€",(fy_5*12/du_5)/(yp_5*1000)))))) -> 
C61: Commentaire
B62: Excédent brut d'exploitation | C62: Montant | D62: =IF(ISBLANK(u)," ",u) ->  | F62: =IF(ebe_1=" "," ",ebe_1) -> 0 | H62: =IF(ebe_2=" "," ",ebe_2) -> 0 | J62: =IF(ebe_3=" "," ",ebe_3) -> 0 | L62: =IF(ebe_4=" "," ",ebe_4) -> 0 | N62: =IF(ebe_5=" "," ",ebe_5) -> 0
C63: Taux de marge brute d'exploitation | F63: =IF(ca_1=0," ",IF(ebe_1=" "," ",ebe_1/pr_1)) ->  | H63: =IF(ca_2=0," ",IF(ebe_2=" "," ",ebe_2/pr_2)) ->  | J63: =IF(ca_3=0," ",IF(ebe_3=" "," ",ebe_3/pr_3)) ->  | L63: =IF(ca_4=0," ",IF(ebe_4=" "," ",ebe_4/pr_4)) ->  | N63: =IF(ca_5=0," ",IF(ebe_5=" "," ",ebe_5/pr_5)) -> 
F65: =IF(F63=" "," ",IF(F63<-0.5%,"Très mauvais",IF(F63<=1.5%,"Mauvais",IF(F63<7%,"Médiocre",IF(F63<15%,"Moyen",IF(F63<35%,"Bon","Excellent")))))) ->  | H65: =IF(H63=" "," ",IF(H63<-0.5%,"Très mauvais",IF(H63<=1.5%,"Mauvais",IF(H63<7%,"Médiocre",IF(H63<15%,"Moyen",IF(H63<35%,"Bon","Excellent")))))) ->  | J65: =IF(J63=" "," ",IF(J63<-0.5%,"Très mauvais",IF(J63<=1.5%,"Mauvais",IF(J63<7%,"Médiocre",IF(J63<15%,"Moyen",IF(J63<35%,"Bon","Excellent")))))) ->  | L65: =IF(L63=" "," ",IF(L63<-0.5%,"Très mauvais",IF(L63<=1.5%,"Mauvais",IF(L63<7%,"Médiocre",IF(L63<15%,"Moyen",IF(L63<35%,"Bon","Excellent")))))) ->  | N65: =IF(N63=" "," ",IF(N63<-0.5%,"Très mauvais",IF(N63<=1.5%,"Mauvais",IF(N63<7%,"Médiocre",IF(N63<15%,"Moyen",IF(N63<35%,"Bon","Excellent")))))) -> 
C67: EBE / VA | F67: =IF(ca_1=0,0,IF(p_1=0,0,ebe_1/va_1)) -> 0.0% | H67: =IF(ca_2=0,0,IF(p_2=0,0,ebe_2/va_2)) -> 0.0% | J67: =IF(ca_3=0,0,IF(p_3=0,0,ebe_3/va_3)) -> 0.0% | L67: =IF(ca_4=0,0,IF(p_4=0,0,ebe_4/va_4)) -> 0.0% | N67: =IF(ca_5=0,0,IF(p_5=0,0,ebe_5/va_5)) -> 0.0%
C69: Frais financiers / EBE | F69: =IF(ISERROR(IF(I_1=0,0,IF(ebe_1<0,"EBE négatif",I_1/ebe_1))),0,IF(I_1=0,0,IF(ebe_1<0,"EBE négatif",I_1/ebe_1))) -> 0.0% | H69: =IF(ISERROR(IF(I_2=0,0,IF(ebe_2<0,"EBE négatif",I_2/ebe_2))),0,IF(I_2=0,0,IF(ebe_2<0,"EBE négatif",I_2/ebe_2))) -> 0.0% | J69: =IF(ISERROR(IF(I_3=0,0,IF(ebe_3<0,"EBE négatif",I_3/ebe_3))),0,IF(I_3=0,0,IF(ebe_3<0,"EBE négatif",I_3/ebe_3))) -> 0.0% | L69: =IF(ISERROR(IF(I_4=0,0,IF(ebe_4<0,"EBE négatif",I_4/ebe_4))),0,IF(I_4=0,0,IF(ebe_4<0,"EBE négatif",I_4/ebe_4))) -> 0.0% | N69: =IF(ISERROR(IF(I_5=0,0,IF(ebe_5<0,"EBE négatif",I_5/ebe_5))),0,IF(I_5=0,0,IF(ebe_5<0,"EBE négatif",I_5/ebe_5))) -> 0.0%
C71: Commentaire | F71: =IF(F69=0," ",IF(F69<30%,"Excellent",IF(F69<50%,"Neutre","Danger !"))) ->  | H71: =IF(H69=0," ",IF(H69<30%,"Excellent",IF(H69<50%,"Neutre","Danger !"))) ->  | J71: =IF(J69=0," ",IF(J69<30%,"Excellent",IF(J69<50%,"Neutre","Danger !"))) ->  | L71: =IF(L69=0," ",IF(L69<30%,"Excellent",IF(L69<50%,"Neutre","Danger !"))) ->  | N71: =IF(N69=0," ",IF(N69<30%,"Excellent",IF(N69<50%,"Neutre","Danger !"))) -> 
B73: Résultat d'exploitation | C73: Montant | D73: =IF(ISBLANK(u)," ",u) ->  | F73: =IF(ISERROR(re_1)," ",re_1) -> 0 | H73: =IF(ISERROR(re_2)," ",re_2) -> 0 | J73: =IF(ISERROR(re_3)," ",re_3) -> 0 | L73: =IF(ISERROR(re_4)," ",re_4) -> 0 | N73: =IF(ISERROR(re_5)," ",re_5) -> 0
C74: Taux de marge nette d'exploitation | F74: =IF(ca_1=0," ",IF(re_1=" "," ",re_1/pr_1)) ->  | H74: =IF(ca_2=0," ",IF(re_2=" "," ",re_2/pr_2)) ->  | J74: 100.0% | L74: =IF(ca_4=0," ",IF(re_4=" "," ",re_4/pr_4)) ->  | N74: =IF(ca_5=0," ",IF(re_5=" "," ",re_5/pr_5)) -> 
F76: =IF(F74=" "," ",IF(F74<-10%,"Très mauvais",IF(F74<=0%,"Mauvais",IF(F74<5%,"Médiocre",IF(F74<10%,"Moyen",IF(F74<25%,"Bon","Excellent")))))) ->  | H76: =IF(H74=" "," ",IF(H74<-10%,"Très mauvais",IF(H74<=0%,"Mauvais",IF(H74<5%,"Médiocre",IF(H74<10%,"Moyen",IF(H74<25%,"Bon","Excellent")))))) ->  | J76: =IF(J74=" "," ",IF(J74<-10%,"Très mauvais",IF(J74<=0%,"Mauvais",IF(J74<5%,"Médiocre",IF(J74<10%,"Moyen",IF(J74<25%,"Bon","Excellent")))))) -> Excellent | L76: =IF(L74=" "," ",IF(L74<-10%,"Très mauvais",IF(L74<=0%,"Mauvais",IF(L74<5%,"Médiocre",IF(L74<10%,"Moyen",IF(L74<25%,"Bon","Excellent")))))) ->  | N76: =IF(N74=" "," ",IF(N74<-10%,"Très mauvais",IF(N74<=0%,"Mauvais",IF(N74<5%,"Médiocre",IF(N74<10%,"Moyen",IF(N74<25%,"Bon","Excellent")))))) -> 
B78: Résultat courant avant impôts | C78: Montant | D78: =IF(ISBLANK(u)," ",u) ->  | F78: =IF(ISERROR(rc_1)," ",rc_1) -> 0 | H78: =IF(ISERROR(rc_2)," ",rc_2) -> 0 | J78: =IF(ISERROR(rc_3)," ",rc_3) -> 0 | L78: =IF(ISERROR(rc_4)," ",rc_4) -> 0 | N78: =IF(ISERROR(rc_5)," ",rc_5) -> 0
C79: Taux de résultat courant avant impôts | F79: =IF(ca_1=0," ",IF(rc_1=" "," ",rc_1/pr_1)) ->  | H79: =IF(ca_2=0," ",IF(rc_2=" "," ",rc_2/pr_2)) ->  | J79: =IF(ca_3=0," ",IF(rc_3=" "," ",rc_3/pr_3)) ->  | L79: =IF(ca_4=0," ",IF(rc_4=" "," ",rc_4/pr_4)) ->  | N79: =IF(ca_5=0," ",IF(rc_5=" "," ",rc_5/pr_5)) -> 
F81: =IF(F79=" "," ",IF(F79<-7%,"Très mauvais",IF(F79<=0%,"Mauvais",IF(F79<3%,"Médiocre",IF(F79<6%,"Moyen",IF(F79<12%,"Bon","Excellent")))))) ->  | H81: =IF(H79=" "," ",IF(H79<-7%,"Très mauvais",IF(H79<=0%,"Mauvais",IF(H79<3%,"Médiocre",IF(H79<6%,"Moyen",IF(H79<12%,"Bon","Excellent")))))) ->  | J81: =IF(J79=" "," ",IF(J79<-7%,"Très mauvais",IF(J79<=0%,"Mauvais",IF(J79<3%,"Médiocre",IF(J79<6%,"Moyen",IF(J79<12%,"Bon","Excellent")))))) ->  | L81: =IF(L79=" "," ",IF(L79<-7%,"Très mauvais",IF(L79<=0%,"Mauvais",IF(L79<3%,"Médiocre",IF(L79<6%,"Moyen",IF(L79<12%,"Bon","Excellent")))))) ->  | N81: =IF(N79=" "," ",IF(N79<-7%,"Très mauvais",IF(N79<=0%,"Mauvais",IF(N79<3%,"Médiocre",IF(N79<6%,"Moyen",IF(N79<12%,"Bon","Excellent")))))) -> 
B83: Résultat net | C83: Montant | D83: =IF(ISBLANK(u)," ",u) ->  | F83: =IF(ISERROR(r_1)," ",r_1) ->  | H83: =IF(ISERROR(r_2)," ",r_2) ->  | J83: =IF(ISERROR(r_3)," ",r_3) ->  | L83: =IF(ISERROR(r_4)," ",r_4) ->  | N83: =IF(ISERROR(r_5)," ",r_5) -> 
C84: Taux de marge nette | F84: =IF(ca_1=0," ",IF(r_1=" "," ",r_1/pr_1)) ->  | H84: =IF(ca_2=0," ",IF(r_2=" "," ",r_2/pr_2)) ->  | J84: =IF(ca_3=0," ",IF(r_3=" "," ",r_3/pr_3)) ->  | L84: =IF(ca_4=0," ",IF(r_4=" "," ",r_4/pr_4)) ->  | N84: =IF(ca_5=0," ",IF(r_5=" "," ",r_5/pr_5)) -> 
C85: Commentaire
B86: Capacité d'autofinancement | C86: Montant | D86: =IF(ISBLANK(u)," ",u) ->  | F86: =IF(ISERROR(caf_1)," ",caf_1) ->  | H86: =IF(ISERROR(caf_2)," ",caf_2) ->  | J86: =IF(ISERROR(caf_3)," ",caf_3) ->  | L86: =IF(ISERROR(caf_4)," ",caf_4) ->  | N86: =IF(ISERROR(caf_5)," ",caf_5) -> 
C87: Taux de capacité d'autofinancement | F87: =IF(ca_1=0," ",IF(caf_1=" "," ",caf_1/pr_1)) ->  | H87: =IF(ca_2=0," ",IF(caf_2=" "," ",caf_2/pr_2)) ->  | J87: =IF(ca_3=0," ",IF(caf_3=" "," ",caf_3/pr_3)) ->  | L87: =IF(ca_4=0," ",IF(caf_4=" "," ",caf_4/pr_4)) ->  | N87: =IF(ca_5=0," ",IF(caf_5=" "," ",caf_5/pr_5)) -> 
F89: =IF(ca_1=0," ",IF(F86<0,"CAF nulle",IF(F86<ga_1,"CAF insuffisante",IF(F86<(bfe_1-bfe_2),"CAF insuffisante"," ")))) ->  | H89: =IF(ca_2=0," ",IF(H86<0,"CAF nulle",IF(H86<ga_2,"CAF insuffisante",IF(H86<(bfe_2-bfe_3),"CAF insuffisante"," ")))) ->  | J89: =IF(ca_3=0," ",IF(J86<0,"CAF nulle",IF(J86<ga_3,"CAF insuffisante",IF(J86<(bfe_3-bfe_4),"CAF insuffisante"," ")))) ->  | L89: =IF(ca_4=0," ",IF(L86<0,"CAF nulle",IF(L86<ga_4,"CAF insuffisante",IF(L86<(bfe_4-bfe_5),"CAF insuffisante"," ")))) ->  | N89: =IF(ca_5=0," ",IF(N86<0,"CAF nulle",IF(N86<ga_5,"CAF insuffisante"," "))) -> 
B91: Point mort | C91: Montant | D91: =IF(ISBLANK(u)," ",u) ->  | F91: =IF(ISERROR(pm_1)," ",pm_1) ->  | H91: =IF(ISERROR(pm_2)," ",pm_2) ->  | J91: =IF(ISERROR(pm_3)," ",pm_3) ->  | L91: =IF(ISERROR(pm_4)," ",pm_4) ->  | N91: =IF(ISERROR(pm_5)," ",pm_5) -> 
C92: % de la production | F92: =IF(ca_1=0," ",IF(pm_1=" "," ",pm_1/pr_1)) ->  | H92: =IF(ca_2=0," ",IF(pm_2=" "," ",pm_2/pr_2)) ->  | J92: =IF(ca_3=0," ",IF(pm_3=" "," ",pm_3/pr_3)) ->  | L92: =IF(ca_4=0," ",IF(pm_4=" "," ",pm_4/pr_4)) ->  | N92: =IF(ca_5=0," ",IF(pm_5=" "," ",pm_5/pr_5)) -> 
B94: B - Struture financière & investissements | F94: =IF(b_1=" "," ",IF((rp_1/b_1)<0,0,rp_1/b_1)) ->  | H94: =IF(b_2=" "," ",IF((rp_2/b_2)<0,0,rp_2/b_2)) ->  | J94: =IF(b_3=" "," ",IF((rp_3/b_3)<0,0,rp_3/b_3)) ->  | L94: =IF(b_4=" "," ",IF((rp_4/b_4)<0,0,rp_4/b_4)) ->  | N94: =IF(b_5=" "," ",IF((rp_5/b_5)<0,0,rp_5/b_5)) -> 
B95: Capitaux propres | D95: =IF(ISBLANK(u)," ",u) ->  | F95: =IF(b_1=" "," ",dl_1) ->  | H95: =IF(b_2=" "," ",dl_2) ->  | J95: =IF(b_3=" "," ",dl_3) ->  | L95: =IF(b_4=" "," ",dl_4) ->  | N95: =IF(b_5=" "," ",dl_5) -> 
B96: Capitaux propres / capital social | D96: % | F96: =IF(ISERROR(dl_1/da_1)," ",dl_1/da_1) ->  | H96: =IF(ISERROR(dl_2/da_2)," ",dl_2/da_2) ->  | J96: =IF(ISERROR(dl_3/da_3)," ",dl_3/da_3) ->  | L96: =IF(ISERROR(dl_4/da_4)," ",dl_4/da_4) ->  | N96: =IF(ISERROR(dl_5/da_5)," ",dl_5/da_5) -> 
F97: =IF(b_1=" ",0,IF(dl_1>(da_1/2),0,dl_1-(da_1/2))) -> 0 | H97: =IF(b_2=" ",0,IF(dl_2>(da_2/2),0,dl_2-(da_2/2))) -> 0 | J97: =IF(b_3=" ",0,IF(dl_3>(da_3/2),0,dl_3-(da_3/2))) -> 0 | L97: =IF(b_4=" ",0,IF(dl_4>(da_4/2),0,dl_4-(da_4/2))) -> 0 | N97: =IF(b_5=" ",0,IF(dl_5>(da_5/2),0,dl_5-(da_5/2))) -> 0
C98: Commentaire | F98: =IF(F97<0,"Attention ! capitaux propres < à la moitié du capital social"," ") ->  | H98: =IF(H97<0,"Attention ! capitaux propres < à la moitié du capital social"," ") ->  | J98: =IF(J97<0,"Attention ! capitaux propres < à la moitié du capital social"," ") ->  | L98: =IF(L97<0,"Attention ! capitaux propres < à la moitié du capital social"," ") ->  | N98: =IF(N97<0,"Attention ! capitaux propres < à la moitié du capital social"," ") -> 
C99: Commentaire | F99: =IF(b_1=" "," ",100%-F94) ->  | H99: =IF(b_2=" "," ",100%-H94) ->  | J99: =IF(b_3=" "," ",100%-J94) ->  | L99: =IF(b_4=" "," ",100%-L94) ->  | N99: =IF(b_5=" "," ",100%-N94) -> 
B100: Autonomie financière | C100: Fonds propres / total bilan | F100: =IF(ISERROR(IF(rp_1<0,"Fonds propres négatifs !",(rp_1/b_1)))," ",IF(rp_1<0,"Fonds propres négatifs !",rp_1/b_1)) ->  | H100: =IF(ISERROR(IF(rp_2<0,"Fonds propres négatifs !",(rp_2/b_2)))," ",IF(rp_2<0,"Fonds propres négatifs !",rp_2/b_2)) ->  | J100: =IF(ISERROR(IF(rp_3<0,"Fonds propres négatifs !",(rp_3/b_3)))," ",IF(rp_3<0,"Fonds propres négatifs !",rp_3/b_3)) ->  | L100: =IF(ISERROR(IF(rp_4<0,"Fonds propres négatifs !",(rp_4/b_4)))," ",IF(rp_4<0,"Fonds propres négatifs !",rp_4/b_4)) ->  | N100: =IF(ISERROR(IF(rp_5<0,"Fonds propres négatifs !",(rp_5/b_5)))," ",IF(rp_5<0,"Fonds propres négatifs !",rp_5/b_5)) -> 
F103: =IF(F100<20%,"Fonds propres insuffisants"," ") ->  | H103: =IF(H100<20%,"Fonds propres insuffisants"," ") ->  | J103: =IF(J100<20%,"Fonds propres insuffisants"," ") ->  | L103: =IF(L100<20%,"Fonds propres insuffisants"," ") ->  | N103: =IF(N100<20%,"Fonds propres insuffisants"," ") -> 
C104: Commentaire
B105: Taux d'endettement LMT | C105: Endettement financier LMT / Fonds propres | F105: =IF(ISERROR(IF(rp_1<0,">150%",(emp_1+encoursCB_1)/rp_1)),0,IF(rp_1<0,">150%",(emp_1+encoursCB_1)/rp_1)) -> 0.0% | H105: =IF(ISERROR(IF(rp_2<0,">150%",(emp_2+encoursCB_2)/rp_2)),0,IF(rp_2<0,">150%",(emp_2+encoursCB_2)/rp_2)) -> 0.0% | J105: =IF(ISERROR(IF(rp_3<0,">150%",(emp_3+encoursCB_3)/rp_3)),0,IF(rp_3<0,">150%",(emp_3+encoursCB_3)/rp_3)) -> 0.0% | L105: =IF(ISERROR(IF(rp_4<0,">150%",(emp_4+encoursCB_4)/rp_4)),0,IF(rp_4<0,">150%",(emp_4+encoursCB_4)/rp_4)) -> 0.0% | N105: =IF(ISERROR(IF(rp_5<0,">150%",(emp_5+encoursCB_5)/rp_5)),0,IF(rp_5<0,">150%",(emp_5+encoursCB_5)/rp_5)) -> 0.0%
F107: =IF(F105<1," ",IF(F105=1,"Capacite d'endettement saturée",IF(F105<=1.5,"Endettement supérieur aux capitaux propres","Niveau d'endettement trop élevé"))) ->  | H107: =IF(H105<1," ",IF(H105=1,"Capacite d'endettement saturée",IF(H105<=1.5,"Endettement supérieur aux capitaux propres","Niveau d'endettement trop élevé"))) ->  | J107: =IF(J105<1," ",IF(J105=1,"Capacite d'endettement saturée",IF(J105<=1.5,"Endettement supérieur aux capitaux propres","Niveau d'endettement trop élevé"))) ->  | L107: =IF(L105<1," ",IF(L105=1,"Capacite d'endettement saturée",IF(L105<=1.5,"Endettement supérieur aux capitaux propres","Niveau d'endettement trop élevé"))) ->  | N107: =IF(N105<1," ",IF(N105=1,"Capacite d'endettement saturée",IF(N105<=1.5,"Endettement supérieur aux capitaux propres","Niveau d'endettement trop élevé"))) -> 
C108: Commentaire
B109: Capacité de remboursement des emprunts | F109: =IF(ISERROR(IF(emp_1=0,0,(IF(caf_1<=0,"Nulle !",emp_1/caf_1)))),0,IF(emp_1=0,0,IF(caf_1<=0,"Nulle !",emp_1/caf_1))) -> 0.0 ans | H109: =IF(ISERROR(IF(emp_2=0,0,(IF(caf_2<=0,"Nulle !",emp_2/caf_2)))),0,IF(emp_2=0,0,IF(caf_2<=0,"Nulle !",emp_2/caf_2))) -> 0.0 ans | J109: =IF(ISERROR(IF(emp_3=0,0,(IF(caf_3<=0,"Nulle !",emp_3/caf_3)))),0,IF(emp_3=0,0,IF(caf_3<=0,"Nulle !",emp_3/caf_3))) -> 0.0 ans | L109: =IF(ISERROR(IF(emp_4=0,0,(IF(caf_4<=0,"Nulle !",emp_4/caf_4)))),0,IF(emp_4=0,0,IF(caf_4<=0,"Nulle !",emp_4/caf_4))) -> 0.0 ans | N109: =IF(ISERROR(IF(emp_5=0,0,(IF(caf_5<=0,"Nulle !",emp_5/caf_5)))),0,IF(emp_5=0,0,IF(caf_5<=0,"Nulle !",emp_5/caf_5))) -> 0.0 ans
F111: =IF(F109>4,"Risque de difficulté de remboursement"," ") ->  | H111: =IF(H109>4,"Risque de difficulté de remboursement"," ") ->  | J111: =IF(J109>4,"Risque de difficulté de remboursement"," ") ->  | L111: =IF(L109>4,"Risque de difficulté de remboursement"," ") ->  | N111: =IF(N109>4,"Risque de difficulté de remboursement"," ") -> 
C112: Commentaire
B113: Quote-part de la capacité d'autofinancement consacrée au remboursement de l'échéance annuelle des emprunts | F113: =IF(ISERROR(IF(vk_1=0,0,(IF(caf_1<=0,"CAF nulle !",vk_1/caf_1)))),0,IF(vk_1=0,0,IF(caf_1<=0,"CAF nulle !",vk_1/caf_1))) -> 0% | H113: =IF(ISERROR(IF(vk_2=0,0,(IF(caf_2<=0,"CAF nulle !",vk_2/caf_2)))),0,IF(vk_2=0,0,IF(caf_2<=0,"CAF nulle !",vk_2/caf_2))) -> 0% | J113: =IF(ISERROR(IF(vk_3=0,0,(IF(caf_3<=0,"CAF nulle !",vk_3/caf_3)))),0,IF(vk_3=0,0,IF(caf_3<=0,"CAF nulle !",vk_3/caf_3))) -> 0% | L113: =IF(ISERROR(IF(vk_4=0,0,(IF(caf_4<=0,"CAF nulle !",vk_4/caf_4)))),0,IF(vk_4=0,0,IF(caf_4<=0,"CAF nulle !",vk_4/caf_4))) -> 0% | N113: =IF(ISERROR(IF(vk_5=0,0,(IF(caf_5<=0,"CAF nulle !",vk_5/caf_5)))),0,IF(vk_5=0,0,IF(caf_5<=0,"CAF nulle !",vk_5/caf_5))) -> 0%
F115: =IF(F113>60%,"Risque de difficulté de remboursement"," ") ->  | H115: =IF(H113>60%,"Risque de difficulté de remboursement"," ") ->  | J115: =IF(J113>60%,"Risque de difficulté de remboursement"," ") ->  | L115: =IF(L113>60%,"Risque de difficulté de remboursement"," ") ->  | N115: =IF(N113>60%,"Risque de difficulté de remboursement"," ") -> 
B117: Taux d'endettement financier net | C117: Endettement financier net / Fonds propres | F117: =IF(ISERROR(IF(rp_1<0,(emp_1-tr_1)/(rp_1*-1),(emp_1-tr_1)/rp_1)),0,IF(rp_1<0,(emp_1-tr_1)/(rp_1*-1),(emp_1-tr_1)/rp_1)) -> 0.0% | H117: =IF(ISERROR(IF(rp_2<0,(emp_2-tr_2)/(rp_2*-1),(emp_2-tr_2)/rp_2)),0,IF(rp_2<0,(emp_2-tr_2)/(rp_2*-1),(emp_2-tr_2)/rp_2)) -> 0.0% | J117: =IF(ISERROR(IF(rp_3<0,(emp_3-tr_3)/(rp_3*-1),(emp_3-tr_3)/rp_3)),0,IF(rp_3<0,(emp_3-tr_3)/(rp_3*-1),(emp_3-tr_3)/rp_3)) -> 0.0% | L117: =IF(ISERROR(IF(rp_4<0,(emp_4-tr_4)/(rp_4*-1),(emp_4-tr_4)/rp_4)),0,IF(rp_4<0,(emp_4-tr_4)/(rp_4*-1),(emp_4-tr_4)/rp_4)) -> 0.0% | N117: =IF(ISERROR(IF(rp_5<0,(emp_5-tr_5)/(rp_5*-1),(emp_5-tr_5)/rp_5)),0,IF(rp_5<0,(emp_5-tr_5)/(rp_5*-1),(emp_5-tr_5)/rp_5)) -> 0.0%
F118: =IF(b_1=" "," ",100%-F117) ->  | H118: =IF(b_2=" "," ",100%-H117) ->  | J118: =IF(b_3=" "," ",100%-J117) ->  | L118: =IF(b_4=" "," ",100%-L117) ->  | N118: =IF(b_5=" "," ",100%-N117) -> 
B119: Investissements immatériels | C119: Montant | D119: =IF(ISBLANK(u)," ",u) ->  | F119: =IF(ca_1=0," ",'Infos complémentaires'!F9+'Infos complémentaires'!F15) ->  | H119: =IF(ca_2=0," ",'Infos complémentaires'!H9+'Infos complémentaires'!H15) ->  | J119: =IF(ca_3=0," ",'Infos complémentaires'!J9+'Infos complémentaires'!J15) ->  | L119: =IF(ca_4=0," ",'Infos complémentaires'!L9+'Infos complémentaires'!L15) ->  | N119: =IF(ca_5=0," ",'Infos complémentaires'!N9+'Infos complémentaires'!N15) ->  | O119: =IF(AND(ca_5>0,N119=0)," renseigner l'onglet infos complémentaires"," ") -> 
D120: % de chiffre d'affaires | F120: =IF(ISERROR(IF(ca_1=0," ",F119/ca_1))," ",IF(ca_1=0," ",F119/ca_1)) ->  | H120: =IF(ISERROR(IF(ca_2=0," ",H119/ca_2))," ",IF(ca_2=0," ",H119/ca_2)) ->  | J120: =IF(ISERROR(IF(ca_3=0," ",J119/ca_3))," ",IF(ca_3=0," ",J119/ca_3)) ->  | L120: =IF(ISERROR(IF(ca_4=0," ",L119/ca_4))," ",IF(ca_4=0," ",L119/ca_4)) ->  | N120: =IF(ISERROR(IF(ca_5=0," ",N119/ca_5))," ",IF(ca_5=0," ",N119/ca_5)) -> 
B121: Investissements matériels | C121: Montant | D121: =IF(ISBLANK(u)," ",u) ->  | F121: =IF(ca_1=0," ",'Infos complémentaires'!F21) ->  | H121: =IF(ca_2=0," ",'Infos complémentaires'!H21) ->  | J121: =IF(ca_3=0," ",'Infos complémentaires'!J21) ->  | L121: =IF(ca_4=0," ",'Infos complémentaires'!L21) ->  | N121: =IF(ca_5=0," ",'Infos complémentaires'!N21) ->  | O121: =IF(AND(ca_5>0,N121=0)," renseigner l'onglet infos complémentaires"," ") -> 
D122: % de chiffre d'affaires | F122: =IF(ISERROR(IF(ca_1=0," ",F121/ca_1))," ",IF(ca_1=0," ",F121/ca_1)) ->  | H122: =IF(ISERROR(IF(ca_2=0," ",H121/ca_2))," ",IF(ca_2=0," ",H121/ca_2)) ->  | J122: =IF(ISERROR(IF(ca_3=0," ",J121/ca_3))," ",IF(ca_3=0," ",J121/ca_3)) ->  | L122: =IF(ISERROR(IF(ca_4=0," ",L121/ca_4))," ",IF(ca_4=0," ",L121/ca_4)) ->  | N122: =IF(ISERROR(IF(ca_5=0," ",N121/ca_5))," ",IF(ca_5=0," ",N121/ca_5)) -> 
B123: Investissements financiers | C123: Montant | D123: =IF(ISBLANK(u)," ",u) ->  | F123: =IF(ca_1=0," ",'Infos complémentaires'!F29) ->  | H123: =IF(ca_2=0," ",'Infos complémentaires'!H29) ->  | J123: =IF(ca_3=0," ",'Infos complémentaires'!J29) ->  | L123: =IF(ca_4=0," ",'Infos complémentaires'!L29) ->  | N123: =IF(ca_5=0," ",'Infos complémentaires'!N29) ->  | O123: =IF(AND(ca_5>0,N123=0)," renseigner l'onglet infos complémentaires"," ") -> 
D124: % de chiffre d'affaires | F124: =IF(ISERROR(IF(ca_1=0," ",F123/ca_1))," ",IF(ca_1=0," ",F123/ca_1)) ->  | H124: =IF(ISERROR(IF(ca_2=0," ",H123/ca_2))," ",IF(ca_2=0," ",H123/ca_2)) ->  | J124: =IF(ISERROR(IF(ca_3=0," ",J123/ca_3))," ",IF(ca_3=0," ",J123/ca_3)) ->  | L124: =IF(ISERROR(IF(ca_4=0," ",L123/ca_4))," ",IF(ca_4=0," ",L123/ca_4)) ->  | N124: =IF(ISERROR(IF(ca_5=0," ",N123/ca_5))," ",IF(ca_5=0," ",N123/ca_5)) -> 
B125: Total des investissements | C125: Montant | D125: =IF(ISBLANK(u)," ",u) ->  | F125: =IF(ca_1=0," ",'Infos complémentaires'!F31) ->  | H125: =IF(ca_2=0," ",'Infos complémentaires'!H31) ->  | J125: =IF(ca_3=0," ",'Infos complémentaires'!J31) ->  | L125: =IF(ca_4=0," ",'Infos complémentaires'!L31) ->  | N125: =IF(ca_5=0," ",'Infos complémentaires'!N31) ->  | O125: =IF(AND(ca_5>0,N125=0)," renseigner l'onglet infos complémentaires"," ") -> 
D126: % de chiffre d'affaires | F126: =IF(ISERROR(IF(ca_1=0," ",F125/ca_1))," ",IF(ca_1=0," ",F125/ca_1)) ->  | H126: =IF(ISERROR(IF(ca_2=0," ",H125/ca_2))," ",IF(ca_2=0," ",H125/ca_2)) ->  | J126: =IF(ISERROR(IF(ca_3=0," ",J125/ca_3))," ",IF(ca_3=0," ",J125/ca_3)) ->  | L126: =IF(ISERROR(IF(ca_4=0," ",L125/ca_4))," ",IF(ca_4=0," ",L125/ca_4)) ->  | N126: =IF(ISERROR(IF(ca_5=0," ",N125/ca_5))," ",IF(ca_5=0," ",N125/ca_5)) -> 
B127: Taux de renouvellement des immobilisations d'exploitation | F127: =IF(ISERROR(IF(ca_1=0,0,IF(OR(resultat!$H$4="N",resultat!$H$4="PS"),0,(immo_1-immo_fi_1)/(do_1+lw_1+nh_1))))," ",IF(ca_1=0,0,IF(OR(resultat!$H$4="N",resultat!$H$4="PS"),0,(immo_1-immo_fi_1)/(do_1+lw_1+nh_1)))) -> 0.0% | H127: =IF(ISERROR(IF(ca_2=0,0,IF(OR(resultat!$H$4="N",resultat!$H$4="PS"),0,(immo_2-immo_fi_2)/(do_2+lw_2+nh_2))))," ",IF(ca_2=0,0,IF(OR(resultat!$H$4="N",resultat!$H$4="PS"),0,(immo_2-immo_fi_2)/(do_2+lw_2+nh_2)))) -> 0.0% | J127: =IF(ISERROR(IF(ca_3=0,0,IF(OR(resultat!$H$4="N",resultat!$H$4="PS"),0,(immo_3-immo_fi_3)/(do_3+lw_3+nh_3))))," ",IF(ca_3=0,0,IF(OR(resultat!$H$4="N",resultat!$H$4="PS"),0,(immo_3-immo_fi_3)/(do_3+lw_3+nh_3)))) -> 0.0% | L127: =IF(ISERROR(IF(ca_4=0,0,IF(OR(resultat!$H$4="N",resultat!$H$4="PS"),0,(immo_4-immo_fi_4)/(do_4+lw_4+nh_4))))," ",IF(ca_4=0,0,IF(OR(resultat!$H$4="N",resultat!$H$4="PS"),0,(immo_4-immo_fi_4)/(do_4+lw_4+nh_4)))) -> 0.0% | N127: =IF(ISERROR(IF(ca_5=0,0,IF(OR(resultat!$H$4="N",resultat!$H$4="PS"),0,(immo_5-immo_fi_5)/(do_5+lw_5+nh_5))))," ",IF(ca_5=0,0,IF(OR(resultat!$H$4="N",resultat!$H$4="PS"),0,(immo_5-immo_fi_5)/(do_5+lw_5+nh_5)))) -> 0.0%
B128: Degré d'amortissement des immobilisations corporelles | F128: =IF(ca_1=0,0,IF(OR(resultat!$H$4="N",resultat!$H$4="PS"),0,amort_1)) -> 0.0% | H128: =IF(ca_2=0,0,IF(OR(resultat!$H$4="N",resultat!$H$4="PS"),0,amort_2)) -> 0.0% | J128: =IF(ca_3=0,0,IF(OR(resultat!$H$4="N",resultat!$H$4="PS"),0,amort_3)) -> 0.0% | L128: =IF(ca_4=0,0,IF(OR(resultat!$H$4="N",resultat!$H$4="PS"),0,amort_4)) -> 0.0% | N128: =IF(ca_5=0,0,IF(OR(resultat!$H$4="N",resultat!$H$4="PS"),0,amort_5)) -> 0.0%
C130: Commentaire | F130: =IF(F128>70%, "Outil de production vétuste"," ") ->  | H130: =IF(H128>70%, "Outil de production vétuste"," ") ->  | J130: =IF(J128>70%, "Outil de production vétuste"," ") ->  | L130: =IF(L128>70%, "Outil de production vétuste"," ") ->  | N130: =IF(N128>70%, "Outil de production vétuste"," ") -> 
B133: C - Liquidité et maîtrise des flux
B134: Fonds de roulement | C134: Montant | D134: =IF(ISBLANK(u)," ",u) ->  | F134: =IF(ca_1=0," ",fr_1) ->  | H134: =IF(ca_2=0," ",fr_2) ->  | J134: =IF(ca_3=0," ",fr_3) ->  | L134: =IF(ca_4=0," ",fr_4) ->  | N134: =IF(ca_5=0," ",fr_5) -> 
C135: Jours de chiffre d'affaires | F135: =IF(ISERROR(fr_1*(du_1*30)/ca_1)," ",fr_1*(du_1*30)/ca_1) ->  | H135: =IF(ISERROR(fr_2*(du_2*30)/ca_2)," ",fr_2*(du_2*30)/ca_2) ->  | J135: =IF(ISERROR(fr_3*(du_3*30)/ca_3)," ",fr_3*(du_3*30)/ca_3) ->  | L135: =IF(ISERROR(fr_4*(du_4*30)/ca_4)," ",fr_4*(du_4*30)/ca_4) ->  | N135: =IF(ISERROR(fr_5*(du_5*30)/ca_5)," ",fr_5*(du_5*30)/ca_5) -> 
B136: FR | C136: % de chiffre d'affaires | F136: =IF(ISERROR(fr_1/ca_1)," ",fr_1/ca_1) ->  | H136: =IF(ISERROR(fr_2/ca_2)," ",fr_2/ca_2) ->  | J136: =IF(ISERROR(fr_3/ca_3)," ",fr_3/ca_3) ->  | L136: =IF(ISERROR(fr_4/ca_4)," ",fr_4/ca_4) ->  | N136: =IF(ISERROR(fr_5/ca_5)," ",fr_5/ca_5) -> 
C138: Evolution | D138: % | F138: =IF(ca_1=0," ",IF(b_1=0," ",(F134/H134)-1)) ->  | H138: =IF(ca_2=0," ",IF(b_2=0," ",(H134/J134)-1)) ->  | J138: =IF(ca_3=0," ",(J134/L134)-1) ->  | L138: =IF(ca_4=0," ",(L134/N134)-1) -> 
C139: Commentaire | F139: =IF(ca_1=0," ",bfre_1) ->  | H139: =IF(ca_2=0," ",bfre_2) ->  | J139: =IF(ca_3=0," ",bfre_3) ->  | L139: =IF(ca_4=0," ",bfre_4) ->  | N139: =IF(ca_5=0," ",bfre_5) -> 
B140: Besoin en fonds de roulement d'exploitation | C140: Montant | D140: =IF(ISBLANK(u)," ",u) ->  | F140: =IF(F139=" "," ",IF(F139<=0,"Pas de besoin",F139)) ->  | H140: =IF(H139=" "," ",IF(H139<=0,"Pas de besoin",H139)) ->  | J140: =IF(J139=" "," ",IF(J139<=0,"Pas de besoin",J139)) ->  | L140: =IF(L139=" "," ",IF(L139<=0,"Pas de besoin",L139)) ->  | N140: =IF(N139=" "," ",IF(N139<=0,"Pas de besoin",N139)) -> 
C141: Jours de chiffre d'affaires | F141: =IF(ISERROR(bfre_1*(du_1*30)/ca_1)," ",bfre_1*(du_1*30)/ca_1) ->  | H141: =IF(ISERROR(bfre_2*(du_2*30)/ca_2)," ",bfre_2*(du_2*30)/ca_2) ->  | J141: =IF(ISERROR(bfre_3*(du_3*30)/ca_3)," ",bfre_3*(du_3*30)/ca_3) ->  | L141: =IF(ISERROR(bfre_4*(du_4*30)/ca_4)," ",bfre_4*(du_4*30)/ca_4) ->  | N141: =IF(ISERROR(bfre_5*(du_5*30)/ca_5)," ",bfre_5*(du_5*30)/ca_5) -> 
B142: BFRE | C142: % de chiffre d'affaires | F142: =IF(ISERROR(bfre_1/ca_1)," ",bfre_1/ca_1) ->  | H142: =IF(ISERROR(bfre_2/ca_2)," ",bfre_2/ca_2) ->  | J142: =IF(ISERROR(bfre_3/ca_3)," ",bfre_3/ca_3) ->  | L142: =IF(ISERROR(bfre_4/ca_4)," ",bfre_4/ca_4) ->  | N142: =IF(ISERROR(bfre_5/ca_5)," ",bfre_5/ca_5) -> 
C144: Evolution du BFRE | D144: % | F144: =IF(ISERROR(IF(ca_1=0," ",(F140/H140)-1))," ",IF(ca_1=0," ",(F140/H140)-1)) ->  | H144: =IF(ISERROR(IF(ca_2=0," ",(H140/J140)-1))," ",IF(ca_2=0," ",(H140/J140)-1)) ->  | J144: =IF(ISERROR(IF(ca_3=0," ",(J140/L140)-1))," ",IF(ca_3=0," ",(J140/L140)-1)) ->  | L144: =IF(ISERROR(IF(ca_4=0," ",(L140/N140)-1))," ",IF(ca_4=0," ",(L140/N140)-1)) -> 
C145: Evolution du chiffre d'affaires | D145: % | F145: =IF(ISERROR(IF(ca_1=0," ",(ca_1/ca_2)-1))," ",IF(ca_1=0," ",(ca_1/ca_2)-1)) ->  | H145: =IF(ISERROR(IF(ca_2=0," ",(ca_2/ca_3)-1))," ",IF(ca_2=0," ",(ca_2/ca_3)-1)) ->  | J145: =IF(ISERROR(IF(ca_3=0," ",(ca_3/ca_4)-1))," ",IF(ca_3=0," ",(ca_3/ca_4)-1)) ->  | L145: =IF(ISERROR(IF(ca_4=0," ",(ca_4/ca_5)-1))," ",IF(ca_4=0," ",(ca_4/ca_5)-1)) -> 
F147: =IF(b_1=0," ",IF(F144>F145,"Le BFRE augmente plus vite ou diminue moins vite que le chiffre d'affaires"," ")) ->  | H147: =IF(H144>H145,"Le BFRE augmente plus vite ou diminue moins vite que le chiffre d'affaires"," ") ->  | J147: =IF(J144>J145,"Le BFRE augmente plus vite ou diminue moins vite que le chiffre d'affaires"," ") ->  | L147: =IF(L144>L145,"Le BFRE augmente plus vite ou diminue moins vite que le chiffre d'affaires"," ") -> 
F148: =IF(ca_1=0," ",bfr_1) ->  | H148: =IF(ca_2=0," ",bfr_2) ->  | J148: =IF(ca_3=0," ",bfr_3) ->  | L148: =IF(ca_4=0," ",bfr_4) ->  | N148: =IF(ca_5=0," ",bfr_5) -> 
B149: Besoin en fonds de roulement global | C149: Montant | D149: =IF(ISBLANK(u)," ",u) ->  | F149: =IF(b_1=0," ",IF(F148=" "," ",IF(F148<=0,"Pas de besoin",F148))) ->  | H149: =IF(H148=" "," ",IF(H148<=0,"Pas de besoin",H148)) ->  | J149: =IF(J148=" "," ",IF(J148<=0,"Pas de besoin",J148)) ->  | L149: =IF(L148=" "," ",IF(L148<=0,"Pas de besoin",L148)) ->  | N149: =IF(N148=" "," ",IF(N148<=0,"Pas de besoin",N148)) -> 
C150: Jours de chiffre d'affaires | F150: =IF(ISERROR(bfr_1*(du_1*30)/ca_1)," ",bfr_1*(du_1*30)/ca_1) ->  | H150: =IF(ISERROR(bfr_2*(du_2*30)/ca_2)," ",bfr_2*(du_2*30)/ca_2) ->  | J150: =IF(ISERROR(bfr_3*(du_3*30)/ca_3)," ",bfr_3*(du_3*30)/ca_3) ->  | L150: =IF(ISERROR(bfr_4*(du_4*30)/ca_4)," ",bfr_4*(du_4*30)/ca_4) ->  | N150: =IF(ISERROR(bfr_5*(du_5*30)/ca_5)," ",bfr_5*(du_5*30)/ca_5) -> 
B151: BFR | C151: % de chiffre d'affaires | F151: =IF(ISERROR(bfr_1/ca_1)," ",bfr_1/ca_1) ->  | H151: =IF(ISERROR(bfr_2/ca_2)," ",bfr_2/ca_2) ->  | J151: =IF(ISERROR(bfr_3/ca_3)," ",bfr_3/ca_3) ->  | L151: =IF(ISERROR(bfr_4/ca_4)," ",bfr_4/ca_4) ->  | N151: =IF(ISERROR(bfr_5/ca_5)," ",bfr_5/ca_5) -> 
C152: Commentaire
C153: Taux de couverture du BFR par le FR | F153: =IF(ca_1=0," ",IF(b_1=0," ",IF(fr_1=0,0,IF(bfr_1<0," ",IF(fr_1<0,0,fr_1/bfr_1))))) ->  | H153: =IF(ca_2=0," ",IF(fr_2=0,0,IF(bfr_2<0," ",IF(fr_2<0,0,fr_2/bfr_2)))) ->  | J153: =IF(ca_3=0," ",IF(fr_3=0,0,IF(bfr_3<0," ",IF(fr_3<0,0,fr_3/bfr_3)))) ->  | L153: =IF(ca_4=0," ",IF(fr_4=0,0,IF(bfr_4<0," ",IF(fr_4<0,0,fr_4/bfr_4)))) ->  | N153: =IF(ca_5=0," ",IF(fr_5=0,0,IF(bfr_5<0," ",IF(fr_5<0,0,fr_5/bfr_5)))) -> 
F155: =IF(F153<=33%,"Situation financière très fragile",IF(F153<50%,"Couverture insuffisante"," ")) ->  | H155: =IF(H153<=33%,"Situation financière très fragile",IF(H153<50%,"Couverture insuffisante"," ")) ->  | J155: =IF(J153<=33%,"Situation financière très fragile",IF(J153<50%,"Couverture insuffisante"," ")) ->  | L155: =IF(L153<=33%,"Situation financière très fragile",IF(L153<50%,"Couverture insuffisante"," ")) ->  | N155: =IF(N153<=33%,"Situation financière très fragile",IF(N153<50%,"Couverture insuffisante"," ")) -> 
B157: Trésorerie nette | C157: Montant | D157: =IF(ISBLANK(u)," ",u) ->  | F157: =IF(ca_1=0," ",tr_1) ->  | H157: =IF(ca_2=0," ",tr_2) ->  | J157: =IF(ca_3=0," ",tr_3) ->  | L157: =IF(ca_4=0," ",tr_4) ->  | N157: =IF(ca_5=0," ",tr_5) -> 
C158: Jours de chiffre d'affaires | F158: =IF(ISERROR(tr_1*(du_1*30)/ca_1)," ",tr_1*(du_1*30)/ca_1) ->  | H158: =IF(ISERROR(tr_2*(du_2*30)/ca_2)," ",tr_2*(du_2*30)/ca_2) ->  | J158: =IF(ISERROR(tr_3*(du_3*30)/ca_3)," ",tr_3*(du_3*30)/ca_3) ->  | L158: =IF(ISERROR(tr_4*(du_4*30)/ca_4)," ",tr_4*(du_4*30)/ca_4) ->  | N158: =IF(ISERROR(tr_5*(du_5*30)/ca_5)," ",tr_5*(du_5*30)/ca_5) -> 
B159: TN | C159: % de chiffre d'affaires | F159: =IF(ISERROR(tr_1/ca_1)," ",tr_1/ca_1) ->  | H159: =IF(ISERROR(tr_2/ca_2)," ",tr_2/ca_2) ->  | J159: =IF(ISERROR(tr_3/ca_3)," ",tr_3/ca_3) ->  | L159: =IF(ISERROR(tr_4/ca_4)," ",tr_4/ca_4) ->  | N159: =IF(ISERROR(tr_5/ca_5)," ",tr_5/ca_5) -> 
C160: Commentaire
C161: Part du BFR financée par la trésorerie | F161: =IF(ISERROR(IF(tr_1>0,0,IF(bfr_1<=0,0,tr_1*-1/bfr_1))),0,IF(tr_1>0,0,IF(bfr_1<=0,0,tr_1*-1/bfr_1))) -> 0% | H161: =IF(ISERROR(IF(tr_2>0,0,IF(bfr_2<=0,0,tr_2*-1/bfr_2))),0,IF(tr_2>0,0,IF(bfr_2<=0,0,tr_2*-1/bfr_2))) -> 0% | J161: =IF(ISERROR(IF(tr_3>0,0,IF(bfr_3<=0,0,tr_3*-1/bfr_3))),0,IF(tr_3>0,0,IF(bfr_3<=0,0,tr_3*-1/bfr_3))) -> 0% | L161: =IF(ISERROR(IF(tr_4>0,0,IF(bfr_4<=0,0,tr_4*-1/bfr_4))),0,IF(tr_4>0,0,IF(bfr_4<=0,0,tr_4*-1/bfr_4))) -> 0% | N161: =IF(ISERROR(IF(tr_5>0,0,IF(bfr_5<=0,0,tr_5*-1/bfr_5))),0,IF(tr_5>0,0,IF(bfr_5<=0,0,tr_5*-1/bfr_5))) -> 0%
F163: =IF(F161=0," ",IF(F161<50%," ",IF(F161<67%,"Concours bancaires importants",IF(F161>=67%,"Concours bancaires trop importants"," ")))) ->  | H163: =IF(H161=0," ",IF(H161<50%," ",IF(H161<67%,"Concours bancaires importants",IF(H161>=67%,"Concours bancaires trop importants"," ")))) ->  | J163: =IF(J161=0," ",IF(J161<50%," ",IF(J161<67%,"Concours bancaires importants",IF(J161>=67%,"Concours bancaires trop importants"," ")))) ->  | L163: =IF(L161=0," ",IF(L161<50%," ",IF(L161<67%,"Concours bancaires importants",IF(L161>=67%,"Concours bancaires trop importants"," ")))) ->  | N163: =IF(N161=0," ",IF(N161<50%," ",IF(N161<67%,"Concours bancaires importants",IF(N161>=67%,"Concours bancaires trop importants"," ")))) -> 
C164: Commentaire
C165: Besoin de trésorerie/créances clients | F165: =IF(ISERROR(IF(ca_1=0,0,IF(tr_1>0,0,(tr_1*-1)/clt_brut_1))),0,IF(ca_1=0,0,IF(tr_1>0,0,(tr_1*-1)/clt_brut_1))) -> 0% | H165: =IF(ISERROR(IF(ca_2=0,0,IF(tr_2>0,0,(tr_2*-1)/clt_brut_2))),0,IF(ca_2=0,0,IF(tr_2>0,0,(tr_2*-1)/clt_brut_2))) -> 0% | J165: =IF(ISERROR(IF(ca_3=0,0,IF(tr_3>0,0,(tr_3*-1)/clt_brut_3))),0,IF(ca_3=0,0,IF(tr_3>0,0,(tr_3*-1)/clt_brut_3))) -> 0% | L165: =IF(ISERROR(IF(ca_4=0,0,IF(tr_4>0,0,(tr_4*-1)/clt_brut_4))),0,IF(ca_4=0,0,IF(tr_4>0,0,(tr_4*-1)/clt_brut_4))) -> 0% | N165: =IF(ISERROR(IF(ca_5=0,0,IF(tr_5>0,0,(tr_5*-1)/clt_brut_5))),0,IF(ca_5=0,0,IF(tr_5>0,0,(tr_5*-1)/clt_brut_5))) -> 0%
F167: =IF(F165=0," ",IF(F165>=60%, "Vulnérabilité importante"," ")) ->  | H167: =IF(H165=0," ",IF(H165>=60%, "Vulnérabilité importante"," ")) ->  | J167: =IF(J165=0," ",IF(J165>=60%, "Vulnérabilité importante"," ")) ->  | L167: =IF(L165=0," ",IF(L165>=60%, "Vulnérabilité importante"," ")) ->  | N167: =IF(N165=0," ",IF(N165>=60%, "Vulnérabilité importante"," ")) -> 
C168: Commentaire | F168: =IF(F169=" ",0,IF((F169-H169)<0,(clt_brut_1*-1)*(F169-H169)/F169,(clt_brut_1*-1)*(F169-H169)/F169)) -> 0 | H168: =IF(H169=" ",0,IF((H169-J169)<0,(clt_brut_2*-1)*(H169-J169)/H169,(clt_brut_2*-1)*(H169-J169)/H169)) -> 0 | J168: =IF(J169=" ",0,IF((J169-L169)<0,(clt_brut_3*-1)*(J169-L169)/J169,(clt_brut_3*-1)*(J169-L169)/J169)) -> 0 | L168: =IF(L169=" ",0,IF((L169-N169)<0,(clt_brut_4*-1)*(L169-N169)/L169,(clt_brut_4*-1)*(L169-N169)/L169)) -> 0
B169: Délai moyen de règlement des clients | F169: =IF(ISERROR(clt_brut_1*(du_1*30)/(ca_1+tvac_1+tvac_1b))," ",clt_brut_1*(du_1*30)/(ca_1+tvac_1+tvac_1b)) ->  | H169: =IF(ISERROR(clt_brut_2*(du_2*30)/(ca_2+tvac_2+tvac_2b))," ",clt_brut_2*(du_2*30)/(ca_2+tvac_2+tvac_2b)) ->  | J169: =IF(ISERROR(clt_brut_3*(du_3*30)/(ca_3+tvac_3+tvac_3b))," ",clt_brut_3*(du_3*30)/(ca_3+tvac_3+tvac_3b)) ->  | L169: =IF(ISERROR(clt_brut_4*(du_4*30)/(ca_4+tvac_4+tvac_4b))," ",clt_brut_4*(du_4*30)/(ca_4+tvac_4+tvac_4b)) ->  | N169: =IF(ISERROR(clt_brut_5*(du_5*30)/(ca_5+tvac_5+tvac_5b))," ",clt_brut_5*(du_5*30)/(ca_5+tvac_5+tvac_5b)) -> 
B170: Incidence de l'évolution du délai de règlement des clients sur la trésorerie | F170: =IF(F169=0," ",IF(F171>0,"Gain de trésorerie",IF(F171<0,"Perte de trésorerie"," "))) -> Gain de trésorerie | H170: =IF(H169=0," ",IF(H171>0,"Gain de trésorerie",IF(H171<0,"Perte de trésorerie"," "))) -> Gain de trésorerie | J170: =IF(J169=0," ",IF(J171>0,"Gain de trésorerie",IF(J171<0,"Perte de trésorerie"," "))) -> Gain de trésorerie | L170: =IF(L169=0," ",IF(L171>0,"Gain de trésorerie",IF(L171<0,"Perte de trésorerie"," "))) -> Gain de trésorerie
F171: =IF(F169=0," ",IF(u="K€",F168,IF(u="€",F168/1000))) -> FALSE | H171: =IF(H169=0," ",IF(u="K€",H168,IF(u="€",H168/1000))) -> FALSE | J171: =IF(J169=0," ",IF(u="K€",J168,IF(u="€",J168/1000))) -> FALSE | L171: =IF(L169=0," ",IF(u="K€",L168,IF(u="€",L168/1000))) -> FALSE
D173: Ratio moyen du secteur
D175: Ecart | F175: =IF(ISBLANK(F173)," ",IF(F169<(0.99*F173),"Favorable",IF(F169>(F173*1.01),"Défavorable","Correct "))) ->  | H175: =IF(ISBLANK(H173)," ",IF(H169<(0.99*H173),"Favorable",IF(H169>(H173*1.01),"Défavorable","Correct "))) ->  | J175: =IF(ISBLANK(J173)," ",IF(J169<(0.99*J173),"Favorable",IF(J169>(J173*1.01),"Défavorable","Correct "))) ->  | L175: =IF(ISBLANK(L173)," ",IF(L169<(0.99*L173),"Favorable",IF(L169>(L173*1.01),"Défavorable","Correct "))) ->  | N175: =IF(ISBLANK(N173)," ",IF(N169<(0.99*N173),"Favorable",IF(N169>(N173*1.01),"Défavorable","Correct "))) -> 
C176: Commentaire | F176: =IF(F177=" ",0,IF((F177-H177)<0,dx_1*(F177-H177)/F177,dx_1*(F177-H177)/F177)) -> 0 | H176: =IF(H177=" ",0,IF((H177-J177)<0,dx_2*(H177-J177)/H177,dx_2*(H177-J177)/H177)) -> 0 | J176: =IF(J177=" ",0,IF((J177-L177)<0,dx_3*(J177-L177)/J177,dx_3*(J177-L177)/J177)) -> 0 | L176: =IF(L177=" ",0,IF((L177-N177)<0,dx_4*(L177-N177)/L177,dx_4*(L177-N177)/L177)) -> 0
B177: Délai moyen de règlement des fournisseurs | F177: =IF(ISERROR(dx_1*(du_1*30)/(fs_1+fu_1+fw_1-hp_1-hq_1+tvad_1+tvad_1b))," ",dx_1*(du_1*30)/(fs_1+fu_1+fw_1-hp_1-hq_1+tvad_1+tvad_1b)) ->  | H177: =IF(ISERROR(dx_2*(du_2*30)/(fs_2+fu_2+fw_2-hp_2-hq_2+tvad_2+tvad_2b))," ",dx_2*(du_2*30)/(fs_2+fu_2+fw_2-hp_2-hq_2+tvad_2+tvad_2b)) ->  | J177: =IF(ISERROR(dx_3*(du_3*30)/(fs_3+fu_3+fw_3-hp_3-hq_3+tvad_3+tvad_3b))," ",dx_3*(du_3*30)/(fs_3+fu_3+fw_3-hp_3-hq_3+tvad_3+tvad_3b)) ->  | L177: =IF(ISERROR(dx_4*(du_4*30)/(fs_4+fu_4+fw_4-hp_4-hq_4+tvad_4+tvad_4b))," ",dx_4*(du_4*30)/(fs_4+fu_4+fw_4-hp_4-hq_4+tvad_4+tvad_4b)) ->  | N177: =IF(ISERROR(dx_5*(du_5*30)/(fs_5+fu_5+fw_5-hp_5-hq_5+tvad_5+tvad_5b))," ",dx_5*(du_5*30)/(fs_5+fu_5+fw_5-hp_5-hq_5+tvad_5+tvad_5b)) -> 
B178: Incidence de l'évolution du délai de règlement des fournisseurs sur la trésorerie | F178: =IF(F177=0," ",IF(F179>0,"Gain de trésorerie",IF(F179<0,"Perte de trésorerie"," "))) -> Gain de trésorerie | H178: =IF(H177=0," ",IF(H179>0,"Gain de trésorerie",IF(H179<0,"Perte de trésorerie"," "))) -> Gain de trésorerie | J178: =IF(J177=0," ",IF(J179>0,"Gain de trésorerie",IF(J179<0,"Perte de trésorerie"," "))) -> Gain de trésorerie | L178: =IF(L177=0," ",IF(L179>0,"Gain de trésorerie",IF(L179<0,"Perte de trésorerie"," "))) -> Gain de trésorerie
F179: =IF(F177=0," ",IF(u="K€",F176,IF(u="€",F176/1000))) -> FALSE | H179: =IF(H177=0," ",IF(u="K€",H176,IF(u="€",H176/1000))) -> FALSE | J179: =IF(J177=0," ",IF(u="K€",J176,IF(u="€",J176/1000))) -> FALSE | L179: =IF(L177=0," ",IF(u="K€",L176,IF(u="€",L176/1000))) -> FALSE
D181: Ratio moyen du secteur
D183: Ecart | F183: =IF(ISBLANK(F181)," ",IF(F177<(0.99*F181),"Défavorable",IF(F177>(F181*1.01),"Favorable","Correct "))) ->  | H183: =IF(ISBLANK(H181)," ",IF(H177<(0.99*H181),"Défavorable",IF(H177>(H181*1.01),"Favorable","Correct "))) ->  | J183: =IF(ISBLANK(J181)," ",IF(J177<(0.99*J181),"Défavorable",IF(J177>(J181*1.01),"Favorable","Correct "))) ->  | L183: =IF(ISBLANK(L181)," ",IF(L177<(0.99*L181),"Défavorable",IF(L177>(L181*1.01),"Favorable","Correct "))) ->  | N183: =IF(ISBLANK(N181)," ",IF(N177<(0.99*N181),"Défavorable",IF(N177>(N181*1.01),"Favorable","Correct "))) -> 
C185: Commentaire | F185: =IF(F186=" ",0,IF((F186-H186)<0,(bt_1*-1)*(F186-H186)/F186,(bt_1*-1)*(F186-H186)/F186)) -> 0 | H185: =IF(H186=" ",0,IF((H186-J186)<0,(bt_2*-1)*(H186-J186)/H186,(bt_2*-1)*(H186-J186)/H186)) -> 0 | J185: =IF(J186=" ",0,IF((J186-L186)<0,(bt_3*-1)*(J186-L186)/J186,(bt_3*-1)*(J186-L186)/J186)) -> 0 | L185: =IF(L186=" ",0,IF((L186-N186)<0,(bt_4*-1)*(L186-N186)/L186,(bt_4*-1)*(L186-N186)/L186)) -> 0
B186: Délai d'écoulement des stocks de marchandises | C186: en jours d'achat | F186: =IF(ISERROR(bt_1*(du_1*30)/fs_1)," ",bt_1*(du_1*30)/fs_1) ->  | H186: =IF(ISERROR(bt_2*(du_2*30)/fs_2)," ",bt_2*(du_2*30)/fs_2) ->  | J186: =IF(ISERROR(bt_3*(du_3*30)/fs_3)," ",bt_3*(du_3*30)/fs_3) ->  | L186: =IF(ISERROR(bt_4*(du_4*30)/fs_4)," ",bt_4*(du_4*30)/fs_4) ->  | N186: =IF(ISERROR(bt_5*(du_5*30)/fs_5)," ",bt_5*(du_5*30)/fs_5) -> 
C187: en jours de consommation | F187: =IF(ISERROR(bt_1*(du_1*30)/(fs_1+ft_1))," ",bt_1*(du_1*30)/(fs_1+ft_1)) ->  | H187: =IF(ISERROR(bt_2*(du_2*30)/(fs_2+ft_2))," ",bt_2*(du_2*30)/(fs_2+ft_2)) ->  | J187: =IF(ISERROR(bt_3*(du_3*30)/(fs_3+ft_3))," ",bt_3*(du_3*30)/(fs_3+ft_3)) ->  | L187: =IF(ISERROR(bt_4*(du_4*30)/(fs_4+ft_4))," ",bt_4*(du_4*30)/(fs_4+ft_4)) ->  | N187: =IF(ISERROR(bt_5*(du_5*30)/(fs_5+ft_5))," ",bt_5*(du_5*30)/(fs_5+ft_5)) -> 
B188: Incidence de l'évolution du délai d'écoulement des stocks de marchandises sur la trésorerie | F188: =IF(b_1=0," ",IF(F186=" "," ",IF(F189>0,"Gain de trésorerie",IF(F189<0,"Perte de trésorerie"," ")))) ->  | H188: =IF(H186=" "," ",IF(H189>0,"Gain de trésorerie",IF(H189<0,"Perte de trésorerie"," "))) ->  | J188: =IF(J186=" "," ",IF(J189>0,"Gain de trésorerie",IF(J189<0,"Perte de trésorerie"," "))) ->  | L188: =IF(L186=" "," ",IF(L189>0,"Gain de trésorerie",IF(L189<0,"Perte de trésorerie"," "))) -> 
F189: =IF(b_1=0," ",IF(F186=" "," ",IF(u="K€",F185,IF(u="€",F185/1000)))) ->  | H189: =IF(H186=" "," ",IF(u="K€",H185,IF(u="€",H185/1000))) ->  | J189: =IF(J186=" "," ",IF(u="K€",J185,IF(u="€",J185/1000))) ->  | L189: =IF(L186=" "," ",IF(u="K€",L185,IF(u="€",L185/1000))) -> 
D191: Ratio moyen du secteur (jour d'achat)
D193: Ecart | F193: =IF(ISBLANK(F191)," ",IF(F186<(0.99*F191),"Favorable",IF(F186>(F191*1.01),"Défavorable","Correct "))) ->  | H193: =IF(ISBLANK(H191)," ",IF(H186<(0.99*H191),"Favorable",IF(H186>(H191*1.01),"Défavorable","Correct "))) ->  | J193: =IF(ISBLANK(J191)," ",IF(J186<(0.99*J191),"Favorable",IF(J186>(J191*1.01),"Défavorable","Correct "))) ->  | L193: =IF(ISBLANK(L191)," ",IF(L186<(0.99*L191),"Favorable",IF(L186>(L191*1.01),"Défavorable","Correct "))) ->  | N193: =IF(ISBLANK(N191)," ",IF(N186<(0.99*N191),"Favorable",IF(N186>(N191*1.01),"Défavorable","Correct "))) -> 
C194: Commentaire | F194: =IF(F195=" ",0,IF((F195-H195)<0,(bl_1*-1)*(F195-H195)/F195,(bl_1*-1)*(F195-H195)/F195)) -> 0 | H194: =IF(H195=" ",0,IF((H195-J195)<0,(bl_2*-1)*(H195-J195)/H195,(bl_2*-1)*(H195-J195)/H195)) -> 0 | J194: =IF(J195=" ",0,IF((J195-L195)<0,(bl_3*-1)*(J195-L195)/J195,(bl_3*-1)*(J195-L195)/J195)) -> 0 | L194: =IF(L195=" ",0,IF((L195-N195)<0,(bl_4*-1)*(L195-N195)/L195,(bl_4*-1)*(L195-N195)/L195)) -> 0
B195: Délai d'écoulement des stocks de matières & appros | C195: en jours d'achat | F195: =IF(ISERROR(bl_1*(du_1*30)/fu_1)," ",bl_1*(du_1*30)/fu_1) ->  | H195: =IF(ISERROR(bl_2*(du_2*30)/fu_2)," ",bl_2*(du_2*30)/fu_2) ->  | J195: =IF(ISERROR(bl_3*(du_3*30)/fu_3)," ",bl_3*(du_3*30)/fu_3) ->  | L195: =IF(ISERROR(bl_4*(du_4*30)/fu_4)," ",bl_4*(du_4*30)/fu_4) ->  | N195: =IF(ISERROR(bl_5*(du_5*30)/fu_5)," ",bl_5*(du_5*30)/fu_5) -> 
C196: en jours de consommation | F196: =IF(ISERROR(bl_1*(du_1*30)/(fu_1+fv_1))," ",bl_1*(du_1*30)/(fu_1+fv_1)) ->  | H196: =IF(ISERROR(bl_2*(du_2*30)/(fu_2+fv_2))," ",bl_2*(du_2*30)/(fu_2+fv_2)) ->  | J196: =IF(ISERROR(bl_3*(du_3*30)/(fu_3+fv_3))," ",bl_3*(du_3*30)/(fu_3+fv_3)) ->  | L196: =IF(ISERROR(bl_4*(du_4*30)/(fu_4+fv_4))," ",bl_4*(du_4*30)/(fu_4+fv_4)) ->  | N196: =IF(ISERROR(bl_5*(du_5*30)/(fu_5+fv_5))," ",bl_5*(du_5*30)/(fu_5+fv_5)) -> 
B197: Incidence de l'évolution du délai d'écoulement des stocks de matières premières et autres approvisionnements sur la trésorerie | F197: =IF(F195=" "," ",IF(F198>0,"Gain de trésorerie",IF(F198<0,"Perte de trésorerie"," "))) ->  | H197: =IF(H195=" "," ",IF(H198>0,"Gain de trésorerie",IF(H198<0,"Perte de trésorerie"," "))) ->  | J197: =IF(J195=" "," ",IF(J198>0,"Gain de trésorerie",IF(J198<0,"Perte de trésorerie"," "))) ->  | L197: =IF(L195=" "," ",IF(L198>0,"Gain de trésorerie",IF(L198<0,"Perte de trésorerie"," "))) -> 
F198: =IF(F195=" "," ",IF(u="K€",F194,IF(u="€",F194/1000))) ->  | H198: =IF(H195=" "," ",IF(u="K€",H194,IF(u="€",H194/1000))) ->  | J198: =IF(J195=" "," ",IF(u="K€",J194,IF(u="€",J194/1000))) ->  | L198: =IF(L195=" "," ",IF(u="K€",L194,IF(u="€",L194/1000))) -> 
D200: Ratio moyen du secteur (jour d'achat)
D202: Ecart | F202: =IF(ISBLANK(F200)," ",IF(F195<(0.99*F200),"Favorable",IF(F195>(F200*1.01),"Défavorable","Correct "))) ->  | H202: =IF(ISBLANK(H200)," ",IF(H195<(0.99*H200),"Favorable",IF(H195>(H200*1.01),"Défavorable","Correct "))) ->  | J202: =IF(ISBLANK(J200)," ",IF(J195<(0.99*J200),"Favorable",IF(J195>(J200*1.01),"Défavorable","Correct "))) ->  | L202: =IF(ISBLANK(L200)," ",IF(L195<(0.99*L200),"Favorable",IF(L195>(L200*1.01),"Défavorable","Correct "))) ->  | N202: =IF(ISBLANK(N200)," ",IF(N195<(0.99*N200),"Favorable",IF(N195>(N200*1.01),"Défavorable","Correct "))) -> 
C203: Commentaire | F203: =IF(F204=0,0,IF((F204-H204)<0,((bn_1+bp_1)*-1)*(F204-H204)/F204,((bn_1+bp_1)*-1)*(F204-H204)/F204)) ->  | H203: =IF(H204=0,0,IF((H204-J204)<0,((bn_2+bp_2)*-1)*(H204-J204)/H204,((bn_2+bp_2)*-1)*(H204-J204)/H204)) ->  | J203: =IF(J204=0,0,IF((J204-L204)<0,((bn_3+bp_3)*-1)*(J204-L204)/J204,((bn_3+bp_3)*-1)*(J204-L204)/J204)) ->  | L203: =IF(L204=0,0,IF((L204-N204)<0,((bn_4+bp_4)*-1)*(L204-N204)/L204,((bn_4+bp_4)*-1)*(L204-N204)/L204)) -> 
B204: Délai d'écoulement des stocks d'encours de production | F204: =IF(ISERROR((bn_1+bp_1)*(du_1*30)/(ff_1+fm_1+fn_1-re_1))," ",(bn_1+bp_1)*(du_1*30)/(ff_1+fm_1+fn_1-re_1)) ->  | H204: =IF(ISERROR((bn_2+bp_2)*(du_2*30)/(ff_2+fm_2+fn_2-re_2))," ",(bn_2+bp_2)*(du_2*30)/(ff_2+fm_2+fn_2-re_2)) ->  | J204: =IF(ISERROR((bn_3+bp_3)*(du_3*30)/(ff_3+fm_3+fn_3-re_3))," ",(bn_3+bp_3)*(du_3*30)/(ff_3+fm_3+fn_3-re_3)) ->  | L204: =IF(ISERROR((bn_4+bp_4)*(du_4*30)/(ff_4+fm_4+fn_4-re_4))," ",(bn_4+bp_4)*(du_4*30)/(ff_4+fm_4+fn_4-re_4)) ->  | N204: =IF(ISERROR((bn_5+bp_5)*(du_5*30)/(ff_5+fm_5+fn_5-re_5))," ",(bn_5+bp_5)*(du_5*30)/(ff_5+fm_5+fn_5-re_5)) -> 
B205: Incidence de l'évolution du délai d'écoulement des stocks d'encours de production sur la trésorerie | F205: =IF(F204=" "," ",IF(F206>0,"Gain de trésorerie",IF(F206<0,"Perte de trésorerie"," "))) ->  | H205: =IF(H204=" "," ",IF(H206>0,"Gain de trésorerie",IF(H206<0,"Perte de trésorerie"," "))) ->  | J205: =IF(J204=" "," ",IF(J206>0,"Gain de trésorerie",IF(J206<0,"Perte de trésorerie"," "))) ->  | L205: =IF(L204=" "," ",IF(L206>0,"Gain de trésorerie",IF(L206<0,"Perte de trésorerie"," "))) -> 
F206: =IF(F204=" "," ",IF(u="K€",F203,IF(u="€",F203/1000))) ->  | H206: =IF(H204=" "," ",IF(u="K€",H203,IF(u="€",H203/1000))) ->  | J206: =IF(J204=" "," ",IF(u="K€",J203,IF(u="€",J203/1000))) ->  | L206: =IF(L204=" "," ",IF(u="K€",L203,IF(u="€",L203/1000))) -> 
D208: Ratio moyen du secteur
D210: Ecart | F210: =IF(ISBLANK(F208)," ",IF(F204<(0.99*F208),"Favorable",IF(F204>(F208*1.01),"Défavorable","Correct "))) ->  | H210: =IF(ISBLANK(H208)," ",IF(H204<(0.99*H208),"Favorable",IF(H204>(H208*1.01),"Défavorable","Correct "))) ->  | J210: =IF(ISBLANK(J208)," ",IF(J204<(0.99*J208),"Favorable",IF(J204>(J208*1.01),"Défavorable","Correct "))) ->  | L210: =IF(ISBLANK(L208)," ",IF(L204<(0.99*L208),"Favorable",IF(L204>(L208*1.01),"Défavorable","Correct "))) ->  | N210: =IF(ISBLANK(N208)," ",IF(N204<(0.99*N208),"Favorable",IF(N204>(N208*1.01),"Défavorable","Correct "))) -> 
F211: =IF(ISERROR(IF(F212=" ",0,IF((F212-H212)<0,(br_1*-1)*(F212-H212)/F212,(br_1*-1)*(F212-H212)/F212))),0,IF(F212=" ",0,IF((F212-H212)<0,(br_1*-1)*(F212-H212)/F212,(br_1*-1)*(F212-H212)/F212))) -> 0 | H211: =IF(ISERROR(IF(H212=" ",0,IF((H212-J212)<0,(br_2*-1)*(H212-J212)/H212,(br_2*-1)*(H212-J212)/H212))),0,IF(H212=" ",0,IF((H212-J212)<0,(br_2*-1)*(H212-J212)/H212,(br_2*-1)*(H212-J212)/H212))) -> 0 | J211: =IF(ISERROR(IF(J212=" ",0,IF((J212-L212)<0,(br_3*-1)*(J212-L212)/J212,(br_3*-1)*(J212-L212)/J212))),0,IF(J212=" ",0,IF((J212-L212)<0,(br_3*-1)*(J212-L212)/J212,(br_3*-1)*(J212-L212)/J212))) -> 0 | L211: =IF(ISERROR(IF(L212=" ",0,IF((L212-N212)<0,(br_4*-1)*(L212-N212)/L212,(br_4*-1)*(L212-N212)/L212))),0,IF(L212=" ",0,IF((L212-N212)<0,(br_4*-1)*(L212-N212)/L212,(br_4*-1)*(L212-N212)/L212))) -> 0
B212: Délai d'écoulement des stocks de produits intermédiaires et finis | F212: =IF(ISERROR(IF(ISBLANK(br_1)," ",br_1*(du_1*30)/(ff_1-re_1))),0,IF(ISBLANK(br_1)," ",br_1*(du_1*30)/(ff_1-re_1))) ->  | H212: =IF(ISERROR(IF(ISBLANK(br_2)," ",br_2*(du_2*30)/(ff_2-re_2))),0,IF(ISBLANK(br_2)," ",br_2*(du_2*30)/(ff_2-re_2))) ->  | J212: =IF(ISERROR(IF(ISBLANK(br_3)," ",br_3*(du_3*30)/(ff_3-re_3))),0,IF(ISBLANK(br_3)," ",br_3*(du_3*30)/(ff_3-re_3))) ->  | L212: =IF(ISERROR(IF(ISBLANK(br_4)," ",br_4*(du_4*30)/(ff_4-re_4))),0,IF(ISBLANK(br_4)," ",br_4*(du_4*30)/(ff_4-re_4))) ->  | N212: =IF(ISERROR(IF(ISBLANK(br_5)," ",br_5*(du_5*30)/(ff_5-re_5))),0,IF(ISBLANK(br_5)," ",br_5*(du_5*30)/(ff_5-re_5))) -> 
B213: Incidence de l'évolution du délai d'écoulement des stocks de produits intermédiaires et finis sur la trésorerie | F213: =IF(F212=" "," ",IF(F214>0,"Gain de trésorerie",IF(F214<0,"Perte de trésorerie"," "))) ->  | H213: =IF(H212=" "," ",IF(H214>0,"Gain de trésorerie",IF(H214<0,"Perte de trésorerie"," "))) ->  | J213: =IF(J212=" "," ",IF(J214>0,"Gain de trésorerie",IF(J214<0,"Perte de trésorerie"," "))) ->  | L213: =IF(L212=" "," ",IF(L214>0,"Gain de trésorerie",IF(L214<0,"Perte de trésorerie"," "))) -> 
F214: =IF(ISERROR(IF(F212=" "," ",IF(u="K€",F211,IF(u="€",F211/1000)))),0,IF(F212=" "," ",IF(u="K€",F211,IF(u="€",F211/1000)))) ->  | H214: =IF(ISERROR(IF(H212=" "," ",IF(u="K€",H211,IF(u="€",H211/1000)))),0,IF(H212=" "," ",IF(u="K€",H211,IF(u="€",H211/1000)))) ->  | J214: =IF(ISERROR(IF(J212=" "," ",IF(u="K€",J211,IF(u="€",J211/1000)))),0,IF(J212=" "," ",IF(u="K€",J211,IF(u="€",J211/1000)))) ->  | L214: =IF(ISERROR(IF(L212=" "," ",IF(u="K€",L211,IF(u="€",L211/1000)))),0,IF(L212=" "," ",IF(u="K€",L211,IF(u="€",L211/1000)))) -> 
D216: Ratio moyen du secteur
D218: Ecart | F218: =IF(ISBLANK(F216)," ",IF(F212<(0.99*F216),"Favorable",IF(F212>(F216*1.01),"Défavorable","Correct "))) ->  | H218: =IF(ISBLANK(H216)," ",IF(H212<(0.99*H216),"Favorable",IF(H212>(H216*1.01),"Défavorable","Correct "))) ->  | J218: =IF(ISBLANK(J216)," ",IF(J212<(0.99*J216),"Favorable",IF(J212>(J216*1.01),"Défavorable","Correct "))) ->  | L218: =IF(ISBLANK(L216)," ",IF(L212<(0.99*L216),"Favorable",IF(L212>(L216*1.01),"Défavorable","Correct "))) ->  | N218: =IF(ISBLANK(N216)," ",IF(N212<(0.99*N216),"Favorable",IF(N212>(N216*1.01),"Défavorable","Correct "))) -> 
F219: =IF(ISERROR(IF(F220=" ",0,IF((F220-H220)<0,(st_1*-1)*(F220-H220)/F220,(st_1*-1)*(F220-H220)/F220))),0,IF(F220=" ",0,IF((F220-H220)<0,(st_1*-1)*(F220-H220)/F220,(st_1*-1)*(F220-H220)/F220))) -> 0 | H219: =IF(ISERROR(IF(H220=" ",0,IF((H220-J220)<0,(st_2*-1)*(H220-J220)/H220,(st_2*-1)*(H220-J220)/H220))),0,IF(H220=" ",0,IF((H220-J220)<0,(st_2*-1)*(H220-J220)/H220,(st_2*-1)*(H220-J220)/H220))) -> 0 | J219: =IF(ISERROR(IF(J220=" ",0,IF((J220-L220)<0,(st_3*-1)*(J220-L220)/J220,(st_3*-1)*(J220-L220)/J220))),0,IF(J220=" ",0,IF((J220-L220)<0,(st_3*-1)*(J220-L220)/J220,(st_3*-1)*(J220-L220)/J220))) -> 0 | L219: =IF(ISERROR(IF(L220=" ",0,IF((L220-N220)<0,(st_4*-1)*(L220-N220)/L220,(st_4*-1)*(L220-N220)/L220))),0,IF(L220=" ",0,IF((L220-N220)<0,(st_4*-1)*(L220-N220)/L220,(st_4*-1)*(L220-N220)/L220))) -> 0
B220: Délai de rotation du stock global - en jours de chiffre d'affaires HT | F220: =IF(ca_1=0," ",st_1*du_1*30/ca_1) ->  | H220: =IF(ca_2=0," ",st_2*du_2*30/ca_2) ->  | J220: =IF(ca_3=0," ",st_3*du_3*30/ca_3) ->  | L220: =IF(ca_4=0," ",st_4*du_4*30/ca_4) ->  | N220: =IF(ca_5=0," ",st_5*du_5*30/ca_5) -> 
B221: Incidence de l'évolution des délais de rotation des stocks sur la trésorerie | F221: =IF(F220=" "," ",IF(F222>0,"Gain de trésorerie",IF(F222<0,"Perte de trésorerie"," "))) ->  | H221: =IF(H220=" "," ",IF(H222>0,"Gain de trésorerie",IF(H222<0,"Perte de trésorerie"," "))) ->  | J221: =IF(J220=" "," ",IF(J222>0,"Gain de trésorerie",IF(J222<0,"Perte de trésorerie"," "))) ->  | L221: =IF(L220=" "," ",IF(L222>0,"Gain de trésorerie",IF(L222<0,"Perte de trésorerie"," "))) -> 
F222: =IF(ISERROR(IF(F220=" "," ",IF(u="K€",F219,IF(u="€",F219/1000)))),0,IF(F220=" "," ",IF(u="K€",F219,IF(u="€",F219/1000)))) ->  | H222: =IF(ISERROR(IF(H220=" "," ",IF(u="K€",H219,IF(u="€",H219/1000)))),0,IF(H220=" "," ",IF(u="K€",H219,IF(u="€",H219/1000)))) ->  | J222: =IF(ISERROR(IF(J220=" "," ",IF(u="K€",J219,IF(u="€",J219/1000)))),0,IF(J220=" "," ",IF(u="K€",J219,IF(u="€",J219/1000)))) ->  | L222: =IF(ISERROR(IF(L220=" "," ",IF(u="K€",L219,IF(u="€",L219/1000)))),0,IF(L220=" "," ",IF(u="K€",L219,IF(u="€",L219/1000)))) -> 
D224: Ratio moyen du secteur
D226: Ecart | F226: =IF(ISBLANK(F224)," ",IF(F220<(0.99*F224),"Favorable",IF(F220>(F224*1.01),"Défavorable","Correct "))) ->  | H226: =IF(ISBLANK(H224)," ",IF(H220<(0.99*H224),"Favorable",IF(H220>(H224*1.01),"Défavorable","Correct "))) ->  | J226: =IF(ISBLANK(J224)," ",IF(J220<(0.99*J224),"Favorable",IF(J220>(J224*1.01),"Défavorable","Correct "))) ->  | L226: =IF(ISBLANK(L224)," ",IF(L220<(0.99*L224),"Favorable",IF(L220>(L224*1.01),"Défavorable","Correct "))) ->  | N226: =IF(ISBLANK(N224)," ",IF(N220<(0.99*N224),"Favorable",IF(N220>(N224*1.01),"Défavorable","Correct "))) -> 
F227: =F168+F176+F185+F194+F203+F211 ->  | H227: =H168+H176+H185+H194+H203+H211 ->  | J227: =J168+J176+J185+J194+J203+J211 ->  | L227: =L168+L176+L185+L194+L203+L211 -> 
B228: Incidence de l'évolution des délais de rotation des stocks et des délais de règlement des clients et fournisseurs sur la trésorerie | F228: =IF(ISERROR(IF(F227=0," ",IF(F229>0,"Gain total de trésorerie",IF(F229<0,"Perte totale de trésorerie"," "))))," ",IF(F227=0," ",IF(F229>0,"Gain total de trésorerie",IF(F229<0,"Perte totale de trésorerie"," ")))) ->  | H228: =IF(ISERROR(IF(H227=0," ",IF(H229>0,"Gain total de trésorerie",IF(H229<0,"Perte totale de trésorerie"," "))))," ",IF(H227=0," ",IF(H229>0,"Gain total de trésorerie",IF(H229<0,"Perte totale de trésorerie"," ")))) ->  | J228: =IF(ISERROR(IF(J227=0," ",IF(J229>0,"Gain total de trésorerie",IF(J229<0,"Perte totale de trésorerie"," "))))," ",IF(J227=0," ",IF(J229>0,"Gain total de trésorerie",IF(J229<0,"Perte totale de trésorerie"," ")))) ->  | L228: =IF(ISERROR(IF(L227=0," ",IF(L229>0,"Gain total de trésorerie",IF(L229<0,"Perte totale de trésorerie"," "))))," ",IF(L227=0," ",IF(L229>0,"Gain total de trésorerie",IF(L229<0,"Perte totale de trésorerie"," ")))) -> 
F229: =IF(ISERROR(IF(F227=0," ",IF(u="K€",F227,IF(u="€",F227/1000))))," ",IF(F227=0," ",IF(u="K€",F227,IF(u="€",F227/1000)))) ->  | H229: =IF(ISERROR(IF(H227=0," ",IF(u="K€",H227,IF(u="€",H227/1000))))," ",IF(H227=0," ",IF(u="K€",H227,IF(u="€",H227/1000)))) ->  | J229: =IF(ISERROR(IF(J227=0," ",IF(u="K€",J227,IF(u="€",J227/1000))))," ",IF(J227=0," ",IF(u="K€",J227,IF(u="€",J227/1000)))) ->  | L229: =IF(ISERROR(IF(L227=0," ",IF(u="K€",L227,IF(u="€",L227/1000))))," ",IF(L227=0," ",IF(u="K€",L227,IF(u="€",L227/1000)))) -> 
B231: D - Analyse des flux de trésorerie | C231: Commentaire | F231: =IF(b_1=" ","",bfre_1+by_1+bilan!E80+bilan!E101+dbz_1) ->  | H231: =IF(b_2=" ","",bfre_2+by_2+bilan!G80+bilan!G101+dbz_2) ->  | J231: =IF(b_3=" ","",bfre_3+by_3+bilan!I80+bilan!I101+dbz_3) ->  | L231: =IF(b_4=" ","",bfre_4+by_4+bilan!K80+bilan!K101+dbz_4) ->  | N231: =IF(b_5=" ","",bfre_5+by_5+bilan!M80+bilan!M101+dbz_5) -> 
B232: Capacité d'autofinancement - CAF | D232: =IF(ISBLANK(u)," ",u) ->  | F232: =IF(ISERROR(caf_1)," ",caf_1) ->  | H232: =IF(ISERROR(caf_2)," ",caf_2) ->  | J232: =IF(ISERROR(caf_3)," ",caf_3) ->  | L232: =IF(ISERROR(caf_4)," ",caf_4) -> 
B233: Variation du besoin en FR d'exploitation - BFRE | D233: =IF(ISBLANK(u)," ",u) ->  | F233: =IF(b_1=" "," ",'tableau de financement'!G44-'tableau de financement'!H42) ->  | H233: =IF(b_2=" "," ",'tableau de financement'!J44-'tableau de financement'!K42) ->  | J233: =IF(b_3=" "," ",'tableau de financement'!M44-'tableau de financement'!N42) ->  | L233: =IF(b_4=" "," ",'tableau de financement'!P44-'tableau de financement'!Q42) -> 
B234: Flux de trésorerie généré par l'exploitation - FTE = CAF -BFRE | D234: =IF(ISBLANK(u)," ",u) ->  | F234: =IF(ISERROR(F232-F233)," ",F232-F233) ->  | H234: =IF(ISERROR(H232-H233)," ",H232-H233) ->  | J234: =IF(ISERROR(J232-J233)," ",J232-J233) ->  | L234: =IF(ISERROR(L232-L233)," ",L232-L233) -> 
C236: Commentaire | F236: =IF(b_1=0," ",IF(F232<F233,"La CAF ne couvre pas l'augmentation du BFRE"," ")) ->  | H236: =IF(H232<H233,"La CAF ne couvre pas l'augmentation du BFRE"," ") ->  | J236: =IF(J232<J233,"La CAF ne couvre pas l'augmentation du BFRE"," ") ->  | L236: =IF(L232<L233,"La CAF ne couvre pas l'augmentation du BFRE"," ") -> 
B238: Flux de trésorerie nécessité par les investissements | D238: =u -> 0 | F238: =IF(ca_1=0," ",immo_1-cession_1+'tableau de financement'!G51-'tableau de financement'!H51) ->  | H238: =IF(ca_2=0," ",immo_2-cession_2+'tableau de financement'!J51-'tableau de financement'!K51) ->  | J238: =IF(ca_3=0," ",immo_3-cession_3+'tableau de financement'!M51-'tableau de financement'!N51) ->  | L238: =IF(ca_4=0," ",immo_4-cession_4+'tableau de financement'!P51-'tableau de financement'!Q51) -> 
B239: Flux de trésorerie issu d'opérations de financement | D239: =u -> 0 | F239: =IF(b_1=0," ",IF(ca_1=0," ",(tr_1-tr_2)-F234+F238)) ->  | H239: =IF(ca_2=0," ",(tr_2-tr_3)-H234+H238) ->  | J239: =IF(ca_3=0," ",(tr_3-tr_4)-J234+J238) ->  | L239: =IF(ca_4=0," ",(tr_4-tr_5)-L234+L238) -> 
B241: Variation gobale de trésorerie | C241: Montant | D241: =u -> 0 | F241: =IF(ISERROR(F234-F238+F239)," ",F234-F238+F239) ->  | H241: =IF(ISERROR(H234-H238+H239)," ",H234-H238+H239) ->  | J241: =IF(ISERROR(J234-J238+J239)," ",J234-J238+J239) ->  | L241: =IF(ISERROR(L234-L238+L239)," ",L234-L238+L239) -> 
C242: Jours de chiffre d'affaires | F242: =IF(ca_1=0," ",IF(b_1=0," ",F241*(du_1*30)/ca_1)) ->  | H242: =IF(ca_2=0," ",H241*(du_2*30)/ca_2) ->  | J242: =IF(ca_3=0," ",J241*(du_3*30)/ca_3) ->  | L242: =IF(ca_4=0," ",L241*(du_4*30)/ca_4) -> 
B243: Trésorerie nette | C243: Montant | D243: =u -> 0 | F243: =IF(ca_1=0," ",IF(b_1=0," ",H243+F241)) ->  | H243: =IF(ca_2=0," ",J243+H241) ->  | J243: =IF(ca_3=0," ",L243+J241) ->  | L243: =IF(ca_4=0," ",N243+L241) ->  | N243: =IF(ca_5=0," ",tr_5) -> 
C244: Jours de chiffre d'affaires | F244: =IF(ISERROR(tr_1*(du_1*30)/ca_1)," ",tr_1*(du_1*30)/ca_1) ->  | H244: =IF(ISERROR(tr_2*(du_2*30)/ca_2)," ",tr_2*(du_2*30)/ca_2) ->  | J244: =IF(ISERROR(tr_3*(du_3*30)/ca_3)," ",tr_3*(du_3*30)/ca_3) ->  | L244: =IF(ISERROR(tr_4*(du_4*30)/ca_4)," ",tr_4*(du_4*30)/ca_4) ->  | N244: =IF(ISERROR(tr_5*(du_5*30)/ca_5)," ",tr_5*(du_5*30)/ca_5) -> 
B246: E - Score
F248: =IF(ISERROR(IF(ISBLANK(Score!J14)," ",Score!J14))," ",IF(ISBLANK(Score!J14)," ",Score!J14)) ->  | H248: =IF(ISERROR(IF(ISBLANK(Score!N14)," ",Score!N14))," ",IF(ISBLANK(Score!N14)," ",Score!N14)) ->  | J248: =IF(ISERROR(IF(ISBLANK(Score!R14)," ",Score!R14))," ",IF(ISBLANK(Score!R14)," ",Score!R14)) ->  | L248: =IF(ISERROR(IF(ISBLANK(Score!V14)," ",Score!V14))," ",IF(ISBLANK(Score!V14)," ",Score!V14)) ->  | N248: =IF(ISERROR(IF(ISBLANK(Score!Z14)," ",Score!Z14))," ",IF(ISBLANK(Score!Z14)," ",Score!Z14)) -> 
F250: =IF(ISBLANK(Score!H16)," ",Score!H16) ->  | H250: =IF(ISBLANK(Score!L16)," ",Score!L16) ->  | J250: =IF(ISBLANK(Score!P16)," ",Score!P16) ->  | L250: =IF(ISBLANK(Score!T16)," ",Score!T16) ->  | N250: =IF(ISBLANK(Score!X16)," ",Score!X16) -> 

Sheet Graphiques
B2: =IF(ISBLANK(societe)," ",societe) ->  | J2: =d -> 0 | K2: =d_1 ->  | L2: =d_2 ->  | M2: =d_3 ->  | N2: =d_4 -> 
I3: Export | J3: =IF(u="€",export_5/1000,IF(u="K€",export_5)) -> FALSE | K3: =IF(u="€",export_4/1000,IF(u="K€",export_4)) -> FALSE | L3: =IF(u="€",export_3/1000,IF(u="K€",export_3)) -> FALSE | M3: =IF(u="€",export_2/1000,IF(u="K€",export_2)) -> FALSE | N3: =IF(u="€",export_1/1000,IF(u="K€",export_1)) -> FALSE
I4: France | J4: =J5-J3 -> 0 | K4: =K5-K3 -> 0 | L4: =L5-L3 -> 0 | M4: =M5-M3 -> 0 | N4: =N5-N3 -> 0
I5: Total | J5: =IF(u="€",ca_5/1000,IF(u="K€",ca_5)) -> FALSE | K5: =IF(u="€",ca_4/1000,IF(u="K€",ca_4)) -> FALSE | L5: =IF(u="€",ca_3/1000,IF(u="K€",ca_3)) -> FALSE | M5: =IF(u="€",ca_2/1000,IF(u="K€",ca_2)) -> FALSE | N5: =IF(u="€",ca_1/1000,IF(u="K€",ca_1)) -> FALSE

Sheet Levier
C3: =IF(ISBLANK(societe)," ",societe) ->  | F3: =IF(ISBLANK(d_4)," ",d_4) ->  | H3: =IF(ISBLANK(d_3)," ",d_3) ->  | J3: =IF(ISBLANK(d_2)," ",d_2) ->  | L3: =IF(ISBLANK(d_1)," ",d_1) ->  | N3: =IF(ISBLANK(d)," ",d) -> 
F4: =IF(ISBLANK(u)," ",u) ->  | H4: =IF(ISBLANK(u)," ",u) ->  | J4: =IF(ISBLANK(u)," ",u) ->  | L4: =IF(ISBLANK(u)," ",u) ->  | N4: =IF(ISBLANK(u)," ",u) -> 
C6: Immobilisations incorporelles & corporelles | F6: =bj_1-nk_1+x_1 -> 0 | H6: =bj_2-nk_2+x_2 -> 0 | J6: =bj_3-nk_3+x_3 -> 0 | L6: =bj_4-nk_4+x_4 -> 0 | N6: =bj_5-nk_5+x_5 -> 0
C7: Immobilisations financières | F7: =nk_1-x_1 -> 0 | H7: =nk_2-x_2 -> 0 | J7: =nk_3-x_3 -> 0 | L7: =nk_4-x_4 -> 0 | N7: =nk_5-x_5 -> 0
C8: Immobilisations totales | F8: =IF(b_1=" "," ",bj_1) ->  | H8: =IF(b_2=" "," ",bj_2) ->  | J8: =IF(b_3=" "," ",bj_3) ->  | L8: =IF(b_4=" "," ",bj_4) ->  | N8: =IF(b_5=" "," ",bj_5) -> 
C9: Besoin en fonds de roulement | F9: =IF(b_1=" "," ",bfr_1) ->  | H9: =IF(b_2=" "," ",bfr_2) ->  | J9: =IF(b_3=" "," ",bfr_3) ->  | L9: =IF(b_4=" "," ",bfr_4) ->  | N9: =IF(b_5=" "," ",bfr_5) -> 
C10: Actif économique | F10: =IF(b_1=" "," ",SUM(F8:F9)) ->  | H10: =IF(b_2=" "," ",SUM(H8:H9)) ->  | J10: =IF(b_3=" "," ",SUM(J8:J9)) ->  | L10: =IF(b_4=" "," ",SUM(L8:L9)) ->  | N10: =IF(b_5=" "," ",SUM(N8:N9)) -> 
C11: Capitaux propres | F11: =IF(b_1=" "," ",rp_1) ->  | H11: =IF(b_2=" "," ",rp_2) ->  | J11: =IF(b_3=" "," ",rp_3) ->  | L11: =IF(b_4=" "," ",rp_4) ->  | N11: =IF(b_5=" "," ",rp_5) -> 
C12: Endettement net | F12: =IF(b_1=" "," ",emp_1-tr_1) ->  | H12: =IF(b_2=" "," ",emp_2-tr_2) ->  | J12: =IF(b_3=" "," ",emp_3-tr_3) ->  | L12: =IF(b_4=" "," ",emp_4-tr_4) ->  | N12: =IF(b_5=" "," ",emp_5-tr_5) -> 
C13: Actif économique | F13: =IF(b_1=" "," ",SUM(F11:F12)) ->  | H13: =IF(b_2=" "," ",SUM(H11:H12)) ->  | J13: =IF(b_3=" "," ",SUM(J11:J12)) ->  | L13: =IF(b_4=" "," ",SUM(L11:L12)) ->  | N13: =IF(b_5=" "," ",SUM(N11:N12)) -> 
C15: Taux d'endettement net | F15: =IF(ISERROR(IF(b_1=" "," ",F12/F11))," ",IF(b_1=" "," ",F12/F11)) ->  | H15: =IF(ISERROR(IF(b_2=" "," ",H12/H11))," ",IF(b_2=" "," ",H12/H11)) ->  | J15: =IF(ISERROR(IF(b_3=" "," ",J12/J11))," ",IF(b_3=" "," ",J12/J11)) ->  | L15: =IF(ISERROR(IF(b_4=" "," ",L12/L11))," ",IF(b_4=" "," ",L12/L11)) ->  | N15: =IF(ISERROR(IF(b_5=" "," ",N12/N11))," ",IF(b_5=" "," ",N12/N11)) -> 
C17: Résultat courant avant impôt | F17: =IF(ca_1=0," ",rc_1-IAP_1-forfait_1+hj_1) ->  | H17: =IF(ca_2=0," ",rc_2-IAP_2-forfait_2+hj_2) ->  | J17: =IF(ca_3=0," ",rc_3-IAP_3-forfait_3+hj_3) ->  | L17: =IF(ca_4=0," ",rc_4-IAP_4-forfait_4+hj_4) ->  | N17: =IF(ca_5=0," ",rc_5-IAP_5-forfait_5+hj_5) -> 
C18: Charges financières sur endettement | F18: =IF(ca_1=0," ",I_1-icb_1) ->  | H18: =IF(ca_2=0," ",I_2-icb_2) ->  | J18: =IF(ca_3=0," ",I_3-icb_3) ->  | L18: =IF(ca_4=0," ",I_4-icb_4) ->  | N18: =IF(ca_5=0," ",I_5-icb_5) -> 
C19: Résultat économique avant impôt | F19: =IF(ca_1=0," ",F17+F18) ->  | H19: =IF(ca_2=0," ",H17+H18) ->  | J19: =IF(ca_3=0," ",J17+J18) ->  | L19: =IF(ca_4=0," ",L17+L18) ->  | N19: =IF(ca_5=0," ",N17+N18) -> 
A20: =IF(ISBLANK(taux_IS_théorique),1,0) -> 1 | C20: Taux de l'impôt sur les sociétés | F20: =IF(b_1=" "," ",IF(hk_1<0,0,MIN(taux_IS_théorique,hk_1/(hk_1+r_1)))) ->  | H20: =IF(b_2=" "," ",IF(hk_2<0,0,MIN(taux_IS_théorique,hk_2/(hk_2+r_2)))) ->  | J20: =IF(b_3=" "," ",IF(hk_3<0,0,MIN(taux_IS_théorique,hk_3/(hk_3+r_3)))) ->  | L20: =IF(b_4=" "," ",IF(hk_4<0,0,MIN(taux_IS_théorique,hk_4/(hk_4+r_4)))) ->  | N20: =IF(b_5=" "," ",IF(hk_5<0,0,MIN(taux_IS_théorique,hk_5/(hk_5+r_5)))) -> 
C21: Résultat économique net | F21: =IF(F20=" "," ",IF(F19<0,F19,F19*(1-F20))) ->  | H21: =IF(H20=" "," ",IF(H19<0,H19,H19*(1-H20))) ->  | J21: =IF(J20=" "," ",IF(J19<0,J19,J19*(1-J20))) ->  | L21: =IF(L20=" "," ",IF(L19<0,L19,L19*(1-L20))) ->  | N21: =IF(N20=" "," ",IF(N19<0,N19,N19*(1-N20))) -> 
C22: Rentabilité économique nette | F22: =IF(ISERROR(IF(F21=" "," ",F21/F10))," ",IF(F21=" "," ",F21/F10)) ->  | H22: =IF(ISERROR(IF(H21=" "," ",H21/H10))," ",IF(H21=" "," ",H21/H10)) ->  | J22: =IF(ISERROR(IF(J21=" "," ",J21/J10))," ",IF(J21=" "," ",J21/J10)) ->  | L22: =IF(ISERROR(IF(L21=" "," ",L21/L10))," ",IF(L21=" "," ",L21/L10)) ->  | N22: =IF(ISERROR(IF(N21=" "," ",N21/N10))," ",IF(N21=" "," ",N21/N10)) -> 
C24: Coût de la dette | F24: =IF(ISERROR(IF(b_1=" "," ",IF(F19<0,F18/F12,(F18/F12)*(1-F20))))," ",IF(b_1=" "," ",IF(F19<0,F18/F12,(F18/F12)*(1-F20)))) ->  | H24: =IF(ISERROR(IF(b_2=" "," ",IF(H19<0,H18/H12,(H18/H12)*(1-H20))))," ",IF(b_2=" "," ",IF(H19<0,H18/H12,(H18/H12)*(1-H20)))) ->  | J24: =IF(ISERROR(IF(b_3=" "," ",IF(J19<0,J18/J12,(J18/J12)*(1-J20))))," ",IF(b_3=" "," ",IF(J19<0,J18/J12,(J18/J12)*(1-J20)))) ->  | L24: =IF(ISERROR(IF(b_4=" "," ",IF(L19<0,L18/L12,(L18/L12)*(1-L20))))," ",IF(b_4=" "," ",IF(L19<0,L18/L12,(L18/L12)*(1-L20)))) ->  | N24: =IF(ISERROR(IF(b_5=" "," ",IF(N19<0,N18/N12,(N18/N12)*(1-N20))))," ",IF(b_5=" "," ",IF(N19<0,N18/N12,(N18/N12)*(1-N20)))) -> 
C26: Effet de levier | F26: =IF(ISERROR(IF(b_1=" "," ",(((F19/F13)-(F18/F12))*F15)*(1-F20)))," ",IF(b_1=" "," ",(((F19/F13)-(F18/F12))*F15)*(1-F20))) ->  | H26: =IF(ISERROR(IF(b_2=" "," ",(((H19/H13)-(H18/H12))*H15)*(1-H20)))," ",IF(b_2=" "," ",(((H19/H13)-(H18/H12))*H15)*(1-H20))) ->  | J26: =IF(ISERROR(IF(b_3=" "," ",(((J19/J13)-(J18/J12))*J15)*(1-J20)))," ",IF(b_3=" "," ",(((J19/J13)-(J18/J12))*J15)*(1-J20))) ->  | L26: =IF(ISERROR(IF(b_4=" "," ",(((L19/L13)-(L18/L12))*L15)*(1-L20)))," ",IF(b_4=" "," ",(((L19/L13)-(L18/L12))*L15)*(1-L20))) ->  | N26: =IF(ISERROR(IF(b_5=" "," ",(((N19/N13)-(N18/N12))*N15)*(1-N20)))," ",IF(b_5=" "," ",(((N19/N13)-(N18/N12))*N15)*(1-N20))) -> 
C28: Rentabilité des capitaux propres | F28: =IF(ISERROR(F22+F26)," ",F22+F26) ->  | H28: =IF(ISERROR(H22+H26)," ",H22+H26) ->  | J28: =IF(ISERROR(J22+J26)," ",J22+J26) ->  | L28: =IF(ISERROR(L22+L26)," ",L22+L26) ->  | N28: =IF(ISERROR(N22+N26)," ",N22+N26) -> 
C30: Rentabilité constatée | F30: =IF(b_1=" "," ",r_1/rp_1) ->  | H30: =IF(b_2=" "," ",r_2/rp_2) ->  | J30: =IF(b_3=" "," ",r_3/rp_3) ->  | L30: =IF(b_4=" "," ",r_4/rp_4) ->  | N30: =IF(b_5=" "," ",r_5/rp_5) -> 
C32: En tenant compte des opérations exceptionnelles :
C33: Eléments exceptionnels | F33: =IF(ca_1=0," ",IF(hk_1>=0,hi_1-hj_1,hi_1-hj_1-hk_1)) ->  | H33: =IF(ca_2=0," ",IF(hk_2>=0,hi_2-hj_2,hi_2-hj_2-hk_2)) ->  | J33: =IF(ca_3=0," ",IF(hk_3>=0,hi_3-hj_3,hi_3-hj_3-hk_3)) ->  | L33: =IF(ca_4=0," ",IF(hk_4>=0,hi_4-hj_4,hi_4-hj_4-hk_4)) ->  | N33: =IF(ca_5=0," ",IF(hk_5>=0,hi_5-hj_5,hi_5-hj_5-hk_5)) -> 
F34: =IF(F20=" "," ",IF((F19+F33)<0,F19+F33,(F19+F33)*(1-F20))) ->  | H34: =IF(H20=" "," ",IF((H19+H33)<0,H19+H33,(H19+H33)*(1-H20))) ->  | J34: =IF(J20=" "," ",IF((J19+J33)<0,J19+J33,(J19+J33)*(1-J20))) ->  | L34: =IF(L20=" "," ",IF((L19+L33)<0,L19+L33,(L19+L33)*(1-L20))) ->  | N34: =IF(N20=" "," ",IF((N19+N33)<0,N19+N33,(N19+N33)*(1-N20))) -> 
C35: Rentabilité économique nette | F35: =IF(ISERROR(IF(F34=" "," ",F34/F10))," ",IF(F34=" "," ",F34/F10)) ->  | H35: =IF(ISERROR(IF(H34=" "," ",H34/H10))," ",IF(H34=" "," ",H34/H10)) ->  | J35: =IF(ISERROR(IF(J34=" "," ",J34/J10))," ",IF(J34=" "," ",J34/J10)) ->  | L35: =IF(ISERROR(IF(L34=" "," ",L34/L10))," ",IF(L34=" "," ",L34/L10)) ->  | N35: =IF(ISERROR(IF(N34=" "," ",N34/N10))," ",IF(N34=" "," ",N34/N10)) -> 
C37: Effet de levier | F37: =IF(ISERROR(IF(b_1=" "," ",((((F19+F33)/F13)-(F18/F12))*F15)*(1-F20)))," ",IF(b_1=" "," ",((((F19+F33)/F13)-(F18/F12))*F15)*(1-F20))) ->  | H37: =IF(ISERROR(IF(b_2=" "," ",((((H19+H33)/H13)-(H18/H12))*H15)*(1-H20)))," ",IF(b_2=" "," ",((((H19+H33)/H13)-(H18/H12))*H15)*(1-H20))) ->  | J37: =IF(ISERROR(IF(b_3=" "," ",((((J19+J33)/J13)-(J18/J12))*J15)*(1-J20)))," ",IF(b_3=" "," ",((((J19+J33)/J13)-(J18/J12))*J15)*(1-J20))) ->  | L37: =IF(ISERROR(IF(b_4=" "," ",((((L19+L33)/L13)-(L18/L12))*L15)*(1-L20)))," ",IF(b_4=" "," ",((((L19+L33)/L13)-(L18/L12))*L15)*(1-L20))) ->  | N37: =IF(ISERROR(IF(b_5=" "," ",((((N19+N33)/N13)-(N18/N12))*N15)*(1-N20)))," ",IF(b_5=" "," ",((((N19+N33)/N13)-(N18/N12))*N15)*(1-N20))) -> 
C39: Rentabilité des capitaux propres | F39: =IF(ISERROR(F35+F37)," ",F35+F37) ->  | H39: =IF(ISERROR(H35+H37)," ",H35+H37) ->  | J39: =IF(ISERROR(J35+J37)," ",J35+J37) ->  | L39: =IF(ISERROR(L35+L37)," ",L35+L37) ->  | N39: =IF(ISERROR(N35+N37)," ",N35+N37) -> 

Sheet Score
B2: =IF(ISBLANK(societe)," ",societe) ->  | H2: =IF(ISBLANK(d_4)," ",d_4) ->  | L2: =IF(ISBLANK(d_3)," ",d_3) ->  | P2: =IF(ISBLANK(d_2)," ",d_2) ->  | T2: =IF(ISBLANK(d_1)," ",d_1) ->  | X2: =IF(ISBLANK(d)," ",d) -> 
B3: SCORE AFDCC | H3: =IF(du_1=0," ",du_1) ->  | L3: =IF(du_2=0," ",du_2) ->  | P3: =IF(du_3=0," ",du_3) ->  | T3: =IF(du_4=0," ",du_4) ->  | X3: =IF(du_5=0," ",du_5) -> 
B4: Ratios | D4: coefficient | E4: Bornes | H4: ratios | I4: ratios bornés | J4: contrib | L4: ratios | M4: ratios bornés | N4: contrib | P4: ratios | Q4: ratios bornés | R4: contrib | T4: ratios | U4: ratios bornés | V4: contrib | X4: ratios | Y4: ratios bornés | Z4: contrib
E5: inférieure | F5: supérieure
B6: Constante | D6: 0.57 | J6: =IF(b_1=" "," ",$D$6) ->  | N6: =IF(b_2=" "," ",$D$6) ->  | R6: =IF(b_3=" "," ",$D$6) ->  | V6: =IF(b_4=" "," ",$D$6) ->  | Z6: =IF(b_5=" "," ",$D$6) -> 
B7: Frais financiers / EBE | D7: -0.0635 | E7: 0 | F7: 100 | H7: =IF(b_1=" "," ",(I_1*100)/ebe_1) ->  | I7: =IF(b_1=" "," ",IF(ebe_1<0,100,IF(H7<$E$7,$E$7,IF(H7>$F$7,$F$7,H7)))) ->  | J7: =IF(b_1=" "," ",$D$7*I7) ->  | L7: =IF(b_2=" "," ",(I_2*100)/ebe_2) ->  | M7: =IF(b_2=" "," ",IF(ebe_2<0,100,IF(L7<$E$7,$E$7,IF(L7>$F$7,$F$7,L7)))) ->  | N7: =IF(b_2=" "," ",$D$7*M7) ->  | P7: =IF(b_3=" "," ",(I_3*100)/ebe_3) ->  | Q7: =IF(b_3=" "," ",IF(ebe_3<0,100,IF(P7<$E$7,$E$7,IF(P7>$F$7,$F$7,P7)))) ->  | R7: =IF(b_3=" "," ",$D$7*Q7) ->  | T7: =IF(b_4=" "," ",(I_4*100)/ebe_4) ->  | U7: =IF(b_4=" "," ",IF(ebe_4<0,100,IF(T7<$E$7,$E$7,IF(T7>$F$7,$F$7,T7)))) ->  | V7: =IF(b_4=" "," ",$D$7*U7) ->  | X7: =IF(b_5=" "," ",(I_5*100)/ebe_5) ->  | Y7: =IF(b_5=" "," ",IF(ebe_5<0,100,IF(X7<$E$7,$E$7,IF(X7>$F$7,$F$7,X7)))) ->  | Z7: =IF(b_5=" "," ",$D$7*Y7) -> 
B8: (Réalisable + Disponible) / Dettes à court terme | D8: 0.0183 | E8: 0 | F8: 200 | H8: =IF(b_1=" "," ",(aa_1+créances_nettes_expl_1+cd_1+cf_1)*100/DCT_1) ->  | I8: =IF(b_1=" "," ",IF(H8<$E$8,$E$8,IF(H8>$F$8,$F$8,H8))) ->  | J8: =IF(b_1=" "," ",$D$8*I8) ->  | L8: =IF(b_2=" "," ",(aa_2+créances_nettes_expl_2+cd_2+cf_2)*100/DCT_2) ->  | M8: =IF(b_2=" "," ",IF(L8<$E$8,$E$8,IF(L8>$F$8,$F$8,L8))) ->  | N8: =IF(b_2=" "," ",$D$8*M8) ->  | P8: =IF(b_3=" "," ",(aa_3+créances_nettes_expl_3+cd_3+cf_3)*100/DCT_3) ->  | Q8: =IF(b_3=" "," ",IF(P8<$E$8,$E$8,IF(P8>$F$8,$F$8,P8))) ->  | R8: =IF(b_3=" "," ",$D$8*Q8) ->  | T8: =IF(b_4=" "," ",(aa_4+créances_nettes_expl_4+cd_4+cf_4)*100/DCT_4) ->  | U8: =IF(b_4=" "," ",IF(T8<$E$8,$E$8,IF(T8>$F$8,$F$8,T8))) ->  | V8: =IF(b_4=" "," ",$D$8*U8) ->  | X8: =IF(b_5=" "," ",(aa_5+créances_nettes_expl_5+cd_5+cf_5)*100/DCT_5) ->  | Y8: =IF(b_5=" "," ",IF(X8<$E$8,$E$8,IF(X8>$F$8,$F$8,X8))) ->  | Z8: =IF(b_5=" "," ",$D$8*Y8) -> 
B9: Capitaux permanents / Passif | D9: 0.0471 | E9: -25 | F9: 100 | H9: =IF(b_1=" "," ",(cp_1*100)/b_1) ->  | I9: =IF(b_1=" "," ",IF(H9<$E$9,$E$9,IF(H9>$F$9,$F$9,H9))) ->  | J9: =IF(b_1=" "," ",$D$9*I9) ->  | L9: =IF(b_2=" "," ",(cp_2*100)/b_2) ->  | M9: =IF(b_2=" "," ",IF(L9<$E$9,$E$9,IF(L9>$F$9,$F$9,L9))) ->  | N9: =IF(b_2=" "," ",$D$9*M9) ->  | P9: =IF(b_3=" "," ",(cp_3*100)/b_3) ->  | Q9: =IF(b_3=" "," ",IF(P9<$E$9,$E$9,IF(P9>$F$9,$F$9,P9))) ->  | R9: =IF(b_3=" "," ",$D$9*Q9) ->  | T9: =IF(b_4=" "," ",(cp_4*100)/b_4) ->  | U9: =IF(b_4=" "," ",IF(T9<$E$9,$E$9,IF(T9>$F$9,$F$9,T9))) ->  | V9: =IF(b_4=" "," ",$D$9*U9) ->  | X9: =IF(b_5=" "," ",(cp_5*100)/b_5) ->  | Y9: =IF(b_5=" "," ",IF(X9<$E$9,$E$9,IF(X9>$F$9,$F$9,X9))) ->  | Z9: =IF(b_5=" "," ",$D$9*Y9) -> 
B10: VA / CA | D10: -0.0246 | E10: 0 | F10: 100 | H10: =IF(b_1=" "," ",(va_1*100)/ca_1) ->  | I10: =IF(b_1=" "," ",IF(H10<$E$10,$E$10,IF(H10>$F$10,$F$10,H10))) ->  | J10: =IF(b_1=" "," ",$D$10*I10) ->  | L10: =IF(b_2=" "," ",(va_2*100)/ca_2) ->  | M10: =IF(b_2=" "," ",IF(L10<$E$10,$E$10,IF(L10>$F$10,$F$10,L10))) ->  | N10: =IF(b_2=" "," ",$D$10*M10) ->  | P10: =IF(b_3=" "," ",(va_3*100)/ca_3) ->  | Q10: =IF(b_3=" "," ",IF(P10<$E$10,$E$10,IF(P10>$F$10,$F$10,P10))) ->  | R10: =IF(b_3=" "," ",$D$10*Q10) ->  | T10: =IF(b_4=" "," ",(va_4*100)/ca_4) ->  | U10: =IF(b_4=" "," ",IF(T10<$E$10,$E$10,IF(T10>$F$10,$F$10,T10))) ->  | V10: =IF(b_4=" "," ",$D$10*U10) ->  | X10: =IF(b_5=" "," ",(va_5*100)/ca_5) ->  | Y10: =IF(b_5=" "," ",IF(X10<$E$10,$E$10,IF(X10>$F$10,$F$10,X10))) ->  | Z10: =IF(b_5=" "," ",$D$10*Y10) -> 
B11: Trésorerie / CA (J) | D11: 0.0115 | E11: -100 | F11: 100 | H11: =IF(b_1=" "," ",(tr_1*du_1*30)/ca_1) ->  | I11: =IF(b_1=" "," ",IF(H11<$E$11,$E$128,IF(H11>$F$11,$F$11,H11))) ->  | J11: =IF(b_1=" "," ",$D$11*I11) ->  | L11: =IF(b_2=" "," ",(tr_2*du_2*30)/ca_2) ->  | M11: =IF(b_2=" "," ",IF(L11<$E$11,$E$128,IF(L11>$F$11,$F$11,L11))) ->  | N11: =IF(b_2=" "," ",$D$11*M11) ->  | P11: =IF(b_3=" "," ",(tr_3*du_3*30)/ca_3) ->  | Q11: =IF(b_3=" "," ",IF(P11<$E$11,$E$128,IF(P11>$F$11,$F$11,P11))) ->  | R11: =IF(b_3=" "," ",$D$11*Q11) ->  | T11: =IF(b_4=" "," ",(tr_4*du_4*30)/ca_4) ->  | U11: =IF(b_4=" "," ",IF(T11<$E$11,$E$128,IF(T11>$F$11,$F$11,T11))) ->  | V11: =IF(b_4=" "," ",$D$11*U11) ->  | X11: =IF(b_5=" "," ",(tr_5*du_5*30)/ca_5) ->  | Y11: =IF(b_5=" "," ",IF(X11<$E$11,$E$128,IF(X11>$F$11,$F$11,X11))) ->  | Z11: =IF(b_5=" "," ",$D$11*Y11) -> 
B12: Fonds de roulement / CA (J) | D12: -0.0096 | E12: -100 | F12: 150 | H12: =IF(b_1=" "," ",fr_1*du_1*30/ca_1) ->  | I12: =IF(b_1=" "," ",IF(H12<$E$12,$E$12,IF(H12>$F$12,$F$12,H12))) ->  | J12: =IF(b_1=" "," ",$D$12*I12) ->  | L12: =IF(b_2=" "," ",fr_2*du_2*30/ca_2) ->  | M12: =IF(b_2=" "," ",IF(L12<$E$12,$E$12,IF(L12>$F$12,$F$12,L12))) ->  | N12: =IF(b_2=" "," ",$D$12*M12) ->  | P12: =IF(b_3=" "," ",fr_3*du_3*30/ca_3) ->  | Q12: =IF(b_3=" "," ",IF(P12<$E$12,$E$12,IF(P12>$F$12,$F$12,P12))) ->  | R12: =IF(b_3=" "," ",$D$12*Q12) ->  | T12: =IF(b_4=" "," ",fr_4*du_4*30/ca_4) ->  | U12: =IF(b_4=" "," ",IF(T12<$E$12,$E$12,IF(T12>$F$12,$F$12,T12))) ->  | V12: =IF(b_4=" "," ",$D$12*U12) ->  | X12: =IF(b_5=" "," ",fr_5*du_5*30/ca_5) ->  | Y12: =IF(b_5=" "," ",IF(X12<$E$12,$E$12,IF(X12>$F$12,$F$12,X12))) ->  | Z12: =IF(b_5=" "," ",$D$12*Y12) -> 
H14: =IF(b_1=" "," ","Score") ->  | J14: =IF(b_1=" "," ",SUM(J6:J12)) ->  | L14: =IF(b_2=0," ","Score") -> Score | N14: =IF(b_2=" "," ",SUM(N6:N12)) ->  | P14: =IF(b_3=0," ","Score") -> Score | R14: =IF(b_3=" "," ",SUM(R6:R12)) ->  | T14: =IF(b_4=0," ","Score") -> Score | V14: =IF(b_4=" "," ",SUM(V6:V12)) ->  | X14: =IF(b_5=0," ","Score") -> Score | Z14: =IF(b_5=" "," ",SUM(Z6:Z12)) -> 
H16: =IF(b_1=" "," ",IF(J14<=-4.01,"Risque de défaillance très élevé",IF(J14<=-2.57,"Risque de défaillance élevé",IF(J14<=1.26,"Risque de défaillance moyen",IF(J14<=2.1,"Risque de défaillance faible",IF(J14<=2.86,"Risque de défaillance très faible","Risque de défaillance nul")))))) ->  | L16: =IF(b_2=" "," ",IF(N14<=-4.01,"Risque de défaillance très élevé",IF(N14<=-2.57,"Risque de défaillance élevé",IF(N14<=1.26,"Risque de défaillance moyen",IF(N14<=2.1,"Risque de défaillance faible",IF(N14<=2.86,"Risque de défaillance très faible","Risque de défaillance nul")))))) ->  | P16: =IF(b_3=" "," ",IF(R14<=-4.01,"Risque de défaillance très élevé",IF(R14<=-2.57,"Risque de défaillance élevé",IF(R14<=1.26,"Risque de défaillance moyen",IF(R14<=2.1,"Risque de défaillance faible",IF(R14<=2.86,"Risque de défaillance très faible","Risque de défaillance nul")))))) ->  | T16: =IF(b_4=" "," ",IF(V14<=-4.01,"Risque de défaillance très élevé",IF(V14<=-2.57,"Risque de défaillance élevé",IF(V14<=1.26,"Risque de défaillance moyen",IF(V14<=2.1,"Risque de défaillance faible",IF(V14<=2.86,"Risque de défaillance très faible","Risque de défaillance nul")))))) ->  | X16: =IF(b_5=" "," ",IF(Z14<=-4.01,"Risque de défaillance très élevé",IF(Z14<=-2.57,"Risque de défaillance élevé",IF(Z14<=1.26,"Risque de défaillance moyen",IF(Z14<=2.1,"Risque de défaillance faible",IF(Z14<=2.86,"Risque de défaillance très faible","Risque de défaillance nul")))))) -> 

Sheet Lexique
B2: La Capacité d’AutoFinancement (CAF), cash-flow ou Marge Brute d’Autofinancement (MBA), exprime la capacité de l’entreprise à générer la trésorerie nécessaire à :
B3: - Assurer le renouvellement des équipements (amortissements),
B4: - Assurer la couverture des pertes probables et des risques auxquelles l’entreprise est exposée (provisions),
B5: - Rembourser le capital de la dette,
B6: - Financer le développement de l’outil de production et la croissance (BFR) – (part du résultat conservé),
B7: - Payer des dividendes aux actionnaires (part du résultat distribué),
B8: - Améliorer la liquidité de l’entreprise,
B9: et constitue de ce fait le clignotant le plus prédictif d’un risque de défaillance.
B10: La liquidité de l'entreprise est sa capacité à faire face à ses engagements à court terme dans le cadre de son activité courante, en utilisant son disponible ou des actifs aisément et rapidement cessibles ou des lignes de crédits non employées
B11: La solvabilité traduit l'aptitude de l'entreprise à faire face à ses engagements en cas de liquidation, c'est-à-dire d'arrêt de l'exploitation et de mise en vente des actifs. Une entreprise peut donc être considérée comme insolvable dès lors que ses capitaux propres sont négatifs : elle doit en effet plus qu'elle ne possède.
B12: Le crédit-bail est un contrat de location d'une durée déterminée, passé entre une entreprise (industrielle ou commerciale) et une banque ou un établissement spécialisé, et assorti d'une promesse de vente à l'échéance du contrat. L'utilisateur n'est donc pas juridiquement propriétaire du bien mis à sa disposition pendant la durée du contrat. Dans une vision économique de l'entreprise (qui est celle des comptes consolidés), les biens loués en crédit-bail sont assimilés à des immobilisations. La contrepartie bilantielle est une dette financière qui équivaut à la valeur actuelle des engagements de loyers et du prix de levée de l'option d'achat dont dispose l'entreprise.
B13: La location financière ou operating lease est une location longue durée d'un bien sans que l'entreprise ne dispose de la faculté de l'acquérir après une période d'utilisation donnée. Contrairement au crédit-bail, cette activité n'est pas soumise à la réglementation bancaire. Forme dérivée du crédit-bail (qui est soumis à la réglementation bancaire), la location financière longue durée sans option d’achat (operating lease en franglais) n’est pas soumise à la réglementation bancaire et elle est très utilisée dans certains secteurs (informatique, transports....)

Sheet Feuil3
D1: =IF(ISBLANK(d_4)," ",d_4) ->  | G1: =IF(ISBLANK(d_3)," ",d_3) ->  | J1: =IF(ISBLANK(d_2)," ",d_2) ->  | M1: =IF(ISBLANK(d_1)," ",d_1) -> 
B2: A - Ratios financiers | D2: € | E2: Ratio | F2: Note | G2: € | H2: Ratio | I2: Note | J2: € | K2: Ratio | L2: Note | M2: € | N2: Ratio | O2: Note
B3: Autonomie financière | C3: Situation nette | D3: =IF(ca_1=0," ",rp_1) ->  | E3: =IF(ISERROR(D3/D4)," ",D3/D4) ->  | F3: =IF(ratio_1=" "," ",IF(ratio_1<0.1,0,IF(ratio_1<0.3,1,IF(ratio_1<=0.5,2,IF(ratio_1>0.5,3," "))))) ->  | G3: =IF(ca_2=0," ",rp_2) ->  | H3: =IF(ISERROR(G3/G4)," ",G3/G4) ->  | I3: =IF(ratio_2=" "," ",IF(ratio_2<0.1,0,IF(ratio_2<0.3,1,IF(ratio_2<=0.5,2,IF(ratio_2>0.5,3," "))))) ->  | J3: =IF(ca_3=0," ",rp_3) ->  | K3: =IF(ISERROR(J3/J4)," ",J3/J4) ->  | L3: =IF(ratio_3=" "," ",IF(ratio_3<0.1,0,IF(ratio_3<0.3,1,IF(ratio_3<=0.5,2,IF(ratio_3>0.5,3," "))))) ->  | M3: =IF(ca_4=0," ",rp_4) ->  | N3: =IF(ISERROR(M3/M4)," ",M3/M4) ->  | O3: =IF(ratio_4=" "," ",IF(ratio_4<0.1,0,IF(ratio_4<0.3,1,IF(ratio_4<=0.5,2,IF(ratio_4>0.5,3," "))))) -> 
C4: Total bilan | D4: =IF(ca_1=0," ",b_1) ->  | G4: =IF(ca_2=0," ",b_2) ->  | J4: =IF(ca_3=0," ",b_3) ->  | M4: =IF(ca_4=0," ",b_4) -> 
B5: Assise financière | C5: Situation nette | D5: =D3 ->  | E5: =IF(ISERROR(D5/D6)," ",D5/D6) ->  | F5: =IF(ratio_1=" "," ",IF(ratio_1<0.2,0,IF(ratio_1<=0.5,1,IF(ratio_1>0.5,2," ")))) ->  | G5: =G3 ->  | H5: =IF(ISERROR(G5/G6)," ",G5/G6) ->  | I5: =IF(ratio_2=" "," ",IF(ratio_2<0.2,0,IF(ratio_2<=0.5,1,IF(ratio_2>0.5,2," ")))) ->  | J5: =J3 ->  | K5: =IF(ISERROR(J5/J6)," ",J5/J6) ->  | L5: =IF(ratio_3=" "," ",IF(ratio_3<0.2,0,IF(ratio_3<=0.5,1,IF(ratio_3>0.5,2," ")))) ->  | M5: =M3 ->  | N5: =IF(ISERROR(M5/M6)," ",M5/M6) ->  | O5: =IF(ratio_4=" "," ",IF(ratio_4<0.2,0,IF(ratio_4<=0.5,1,IF(ratio_4>0.5,2," ")))) -> 
C6: Immobilisations nettes | D6: =IF(ca_1=0," ",bj_1) ->  | G6: =IF(ca_2=0," ",bj_2) ->  | J6: =IF(ca_3=0," ",bj_3) ->  | M6: =IF(ca_4=0," ",bj_4) -> 
B7: Equilibre financier | C7: Fonds de roulement | D7: =IF(ca_1=0," ",fr_1) ->  | E7: =IF(ISERROR(D7/D8)," ",D7/D8) ->  | F7: =IF(ratio_1=" "," ",IF(ratio_1<0.1,0,IF(ratio_1<0.3,1,IF(ratio_1<=0.5,2,IF(ratio_1>0.5,3," "))))) ->  | G7: =IF(ca_2=0," ",fr_2) ->  | H7: =IF(ISERROR(G7/G8)," ",G7/G8) ->  | I7: =IF(ratio_2=" "," ",IF(ratio_2<0.1,0,IF(ratio_2<0.3,1,IF(ratio_2<=0.5,2,IF(ratio_2>0.5,3," "))))) ->  | J7: =IF(ca_3=0," ",fr_3) ->  | K7: =IF(ISERROR(J7/J8)," ",J7/J8) ->  | L7: =IF(ratio_3=" "," ",IF(ratio_3<0.1,0,IF(ratio_3<0.3,1,IF(ratio_3<=0.5,2,IF(ratio_3>0.5,3," "))))) ->  | M7: =IF(ca_4=0," ",fr_4) ->  | N7: =IF(ISERROR(M7/M8)," ",M7/M8) ->  | O7: =IF(ratio_4=" "," ",IF(ratio_4<0.1,0,IF(ratio_4<0.3,1,IF(ratio_4<=0.5,2,IF(ratio_4>0.5,3," "))))) -> 
C8: Besoin en fonds de roulement d'exploitation | D8: =IF(ca_1=0," ",bfre_1) ->  | G8: =IF(ca_2=0," ",bfre_2) ->  | J8: =IF(ca_3=0," ",bfre_3) ->  | M8: =IF(ca_4=0," ",bfre_4) -> 
B9: Rentabilité d'exploitation | C9: Résultat courant avant impôts | D9: =IF(ca_1=0," ",rc_1) ->  | E9: =IF(ISERROR((D9-D10-D11)/D12)," ",(D9-D10-D11)/D12) ->  | F9: =IF(ratio_1=" "," ",IF(ratio_1<0.5,0,IF(ratio_1<1,1,IF(ratio_1<=2.5,2,IF(ratio_1>2.5,3," "))))) ->  | G9: =IF(ca_2=0," ",rc_2) ->  | H9: =IF(ISERROR((G9-G10-G11)/G12)," ",(G9-G10-G11)/G12) ->  | I9: =IF(ratio_2=" "," ",IF(ratio_2<0.5,0,IF(ratio_2<1,1,IF(ratio_2<=2.5,2,IF(ratio_2>2.5,3," "))))) ->  | J9: =IF(ca_3=0," ",rc_3) ->  | K9: =IF(ISERROR((J9-J10-J11)/J12)," ",(J9-J10-J11)/J12) ->  | L9: =IF(ratio_3=" "," ",IF(ratio_3<0.5,0,IF(ratio_3<1,1,IF(ratio_3<=2.5,2,IF(ratio_3>2.5,3," "))))) ->  | M9: =IF(ca_4=0," ",rc_4) ->  | N9: =IF(ISERROR((M9-M10-M11)/M12)," ",(M9-M10-M11)/M12) ->  | O9: =IF(ratio_4=" "," ",IF(ratio_4<0.5,0,IF(ratio_4<1,1,IF(ratio_4<=2.5,2,IF(ratio_4>2.5,3," "))))) -> 
C10: Impôt sur les bénéfices | D10: =IF(ca_1=0," ",hk_1) ->  | G10: =IF(ca_2=0," ",hk_2) ->  | J10: =IF(ca_3=0," ",hk_3) ->  | M10: =IF(ca_4=0," ",hk_4) -> 
C11: Participation des salariés | D11: =IF(ca_1=0," ",hj_1) ->  | E11: =IF(ISERROR(D11/D12)," ",D11/D12) ->  | F11: =IF(ratio_2=" "," ",IF(ratio_2<0.1,0,IF(ratio_2<0.3,1,IF(ratio_2<=0.5,2,IF(ratio_2>0.5,3," "))))) ->  | G11: =IF(ca_2=0," ",hj_2) ->  | H11: =IF(ISERROR(G11/G12)," ",G11/G12) ->  | I11: =IF(ratio_2=" "," ",IF(ratio_2<0.1,0,IF(ratio_2<0.3,1,IF(ratio_2<=0.5,2,IF(ratio_2>0.5,3," "))))) ->  | J11: =IF(ca_3=0," ",hj_3) ->  | K11: =IF(ISERROR(J11/J12)," ",J11/J12) ->  | L11: =IF(ratio_2=" "," ",IF(ratio_2<0.1,0,IF(ratio_2<0.3,1,IF(ratio_2<=0.5,2,IF(ratio_2>0.5,3," "))))) ->  | M11: =IF(ca_4=0," ",hj_4) ->  | N11: =IF(ISERROR(M11/M12)," ",M11/M12) ->  | O11: =IF(ratio_2=" "," ",IF(ratio_2<0.1,0,IF(ratio_2<0.3,1,IF(ratio_2<=0.5,2,IF(ratio_2>0.5,3," "))))) -> 
C12: Production de l'exercice | D12: =IF(ca_1=0," ",pr_1) ->  | G12: =IF(ca_2=0," ",pr_2) ->  | J12: =IF(ca_3=0," ",pr_3) ->  | M12: =IF(ca_4=0," ",pr_4) -> 
B13: Capacité de remboursement | C13: Capacité d'autofinancement | D13: =IF(ca_1=0," ",caf_1) ->  | E13: =IF(ISERROR((D13-D14)/D15)," ",(D13-D14)/D15) ->  | F13: =IF(ratio_1=" "," ",IF(ratio_1<0.75,-1,IF(ratio_1<1,0,IF(ratio_1<=1.5,1,IF(ratio_1<=2,2,IF(ratio_1>2,3," ")))))) ->  | G13: =IF(ca_2=0," ",caf_2) ->  | H13: =IF(ISERROR((G13-G14)/G15)," ",(G13-G14)/G15) ->  | I13: =IF(ratio_2=" "," ",IF(ratio_2<0.75,-1,IF(ratio_2<1,0,IF(ratio_2<=1.5,1,IF(ratio_2<=2,2,IF(ratio_2>2,3," ")))))) ->  | J13: =IF(ca_3=0," ",caf_3) ->  | K13: =IF(ISERROR((J13-J14)/J15)," ",(J13-J14)/J15) ->  | L13: =IF(ratio_3=" "," ",IF(ratio_3<0.75,-1,IF(ratio_3<1,0,IF(ratio_3<=1.5,1,IF(ratio_3<=2,2,IF(ratio_3>2,3," ")))))) ->  | M13: =IF(ca_4=0," ",caf_4) ->  | N13: =IF(ISERROR((M13-M14)/M15)," ",(M13-M14)/M15) ->  | O13: =IF(ratio_4=" "," ",IF(ratio_4<0.75,-1,IF(ratio_4<1,0,IF(ratio_4<=1.5,1,IF(ratio_4<=2,2,IF(ratio_4>2,3," ")))))) -> 
C14: Distribution de dividende | D14: =IF(ca_1=0," ",ze_1) ->  | G14: =IF(ca_2=0," ",ze_2) ->  | J14: =IF(ca_3=0," ",ze_3) ->  | M14: =IF(ca_4=0," ",ze_4) -> 
C15: Endettement financier à moins d'1an | D15: =IF(ca_1=0," ",vk_1) ->  | E15: =IF(ISERROR(D15/D16)," ",D15/D16) ->  | F15: =IF(ratio_2=" "," ",IF(ratio_2<0.1,0,IF(ratio_2<0.3,1,IF(ratio_2<=0.5,2,IF(ratio_2>0.5,3," "))))) ->  | G15: =IF(ca_2=0," ",vk_2) ->  | H15: =IF(ISERROR(G15/G16)," ",G15/G16) ->  | I15: =IF(ratio_2=" "," ",IF(ratio_2<0.1,0,IF(ratio_2<0.3,1,IF(ratio_2<=0.5,2,IF(ratio_2>0.5,3," "))))) ->  | J15: =IF(ca_3=0," ",vk_3) ->  | K15: =IF(ISERROR(J15/J16)," ",J15/J16) ->  | L15: =IF(ratio_2=" "," ",IF(ratio_2<0.1,0,IF(ratio_2<0.3,1,IF(ratio_2<=0.5,2,IF(ratio_2>0.5,3," "))))) ->  | M15: =IF(ca_4=0," ",vk_4) ->  | N15: =IF(ISERROR(M15/M16)," ",M15/M16) ->  | O15: =IF(ratio_2=" "," ",IF(ratio_2<0.1,0,IF(ratio_2<0.3,1,IF(ratio_2<=0.5,2,IF(ratio_2>0.5,3," "))))) -> 
B16: Productivité du travail | C16: Charges de personnel | D16: =IF(ca_1=0," ",p_1) ->  | E16: =IF(ISERROR(D16/D17)," ",D16/D17) ->  | F16: =IF(ratio_1=" "," ",IF(ratio_1<0.6,2,IF(ratio_1<=0.8,1,IF(ratio_1>0.8,0," ")))) ->  | G16: =IF(ca_2=0," ",p_2) ->  | H16: =IF(ISERROR(G16/G17)," ",G16/G17) ->  | I16: =IF(ratio_2=" "," ",IF(ratio_2<0.6,2,IF(ratio_2<=0.8,1,IF(ratio_2>0.8,0," ")))) ->  | J16: =IF(ca_3=0," ",p_3) ->  | K16: =IF(ISERROR(J16/J17)," ",J16/J17) ->  | L16: =IF(ratio_3=" "," ",IF(ratio_3<0.6,2,IF(ratio_3<=0.8,1,IF(ratio_3>0.8,0," ")))) ->  | M16: =IF(ca_4=0," ",p_4) ->  | N16: =IF(ISERROR(M16/M17)," ",M16/M17) ->  | O16: =IF(ratio_4=" "," ",IF(ratio_4<0.6,2,IF(ratio_4<=0.8,1,IF(ratio_4>0.8,0," ")))) -> 
C17: Valeur ajoutée | D17: =IF(ca_1=0," ",va_1) ->  | G17: =IF(ca_2=0," ",va_2) ->  | J17: =IF(ca_3=0," ",va_3) ->  | M17: =IF(ca_4=0," ",va_4) -> 
B19: B - Facteurs correctifs | E19: Ratio | F19: Note | H19: Ratio | I19: Note | K19: Ratio | L19: Note | N19: Ratio | O19: Note
B20: Retards de paiement constatés | F20: 0 | H20: Non | I20: =IF(H20="NON",0,IF(H20="OUI",-1," ")) -> 0 | K20: Non | L20: =IF(K20="NON",0,IF(K20="OUI",-1," ")) -> 0 | N20: Oui | O20: =IF(N20="NON",0,IF(N20="OUI",-1," ")) -> -1
B21: Date de création de l'entreprise (nombre d'années) | F21: 0 | H21: 3 an(s) | I21: =IF(ISBLANK(H21)," ",IF(H21<=3,-1,IF(H21>3,0))) -> -1 | K21: 30 an(s) | L21: =IF(ISBLANK(K21)," ",IF(K21<=3,-1,IF(K21>3,0))) -> 0 | N21: 30 an(s) | O21: =IF(ISBLANK(N21)," ",IF(N21<=3,-1,IF(N21>3,0))) -> 0
D23: Note globale | F23: =IF(ISERROR(F3+F5+F7+F9+F13+F16+F20+F21)," ",F3+F5+F7+F9+F13+F16+F20+F21) ->  | G23: Note globale | I23: =IF(ISERROR(I3+I5+I7+I9+I13+I16+I20+I21)," ",I3+I5+I7+I9+I13+I16+I20+I21) ->  | J23: Note globale | L23: =IF(ISERROR(L3+L5+L7+L9+L13+L16+L20+L21)," ",L3+L5+L7+L9+L13+L16+L20+L21) ->  | M23: Note globale | O23: =IF(ISERROR(O3+O5+O7+O9+O13+O16+O20+O21)," ",O3+O5+O7+O9+O13+O16+O20+O21) -> 
B25: Classes de risque | E25: =IF(F23=" "," ",IF(F23<3,"Risque très élevé",IF(F23<8,"Risque élevé",IF(F23<13,"Risque moyen","Risque faible")))) ->  | H25: =IF(I23=" "," ",IF(I23<3,"Risque très élevé",IF(I23<8,"Risque élevé",IF(I23<13,"Risque moyen","Risque faible")))) ->  | K25: =IF(L23=" "," ",IF(L23<3,"Risque très élevé",IF(L23<8,"Risque élevé",IF(L23<13,"Risque moyen","Risque faible")))) ->  | N25: =IF(O23=" "," ",IF(O23<3,"Risque très élevé",IF(O23<8,"Risque élevé",IF(O23<13,"Risque moyen","Risque faible")))) -> 

Sheet Feuil4
B2: L'équilibre dans la croissance : l'autofinancement doit être suffisant pour financer au moins l'augmentation de son besoin en fonds de roulement
B4: Années | D4: 2010 | E4: 2011 | F4: 2012 | G4: 2013 | H4: 2014 | I4: 2015
B5: Chiffre d'affaires | D5: 484,726 | E5: 637,547 | F5: =E5*(1+$D$13) -> 816,060 | G5: =F5*(1+$D$13) -> 1,044,557 | H5: 1,337,033 | I5: 1,711,402 | K5: =+D5*1.15 -> 557434.9
B6: Résultat courant avant impôts | D6: 12,979 | E6: 19,955 | F6: =F5*$E$10 -> 25,542 | G6: =G5*$E$10 -> 32,694 | H6: 41,849 | I6: 53,566
B7: Impôt sur les bénéfices | C7: 33% | D7: =D6*C7 -> 4,283
B8: Dividendes | D8: 2,000
B9: BFRE | D9: =+D5*28% -> 135,723 | E9: =+E5*24% -> 153,011 | F9: =F5*$E$11 -> 195,854 | G9: =G5*$E$11 -> 250,694 | H9: 320,888 | I9: 410,737
B10: Taux d'autofinancement | C10: A | D10: =(D6-D7-D8)/D5 -> 1.38% | E10: =(E6-E7-E8)/E5 -> 3.13% | F10: =(F6-F7-F8)/F5 -> 3.13% | G10: 3.13% | H10: 3.13% | I10: 3.13% | K10: =K5*E10 -> 17447.51905 | M10: 5.00%
B11: Taux du cycle financier | C11: B | D11: =D9/D5 -> 28.00% | E11: =E9/E5 -> 24.00% | F11: =F9/F5 -> 24.00% | G11: 24.00% | H11: 24.00% | I11: 24.00% | K11: =K5*E11 -> 133784.376 | M11: 15.00%
B12: Taux de croissance du CA possible | C12: C | D12: =D10/(D11-D10) -> 5.19% | E12: =E10/(E11-E10) -> 15.00% | F12: 15.00% | G12: 15.00% | H12: 15.00% | I12: 15.00% | M12: =M10/(M11-M10) -> 50.00%
B13: D du chiffre d'affaires | D13: 28.00% | E13: =(E5/D5)-1 -> 31.53% | F13: =(F5/E5)-1 -> 28.00% | G13: 28.00% | H13: 28.00% | I13: 28.00% | M13: 20.00%
E14: =E10-(E11*(E13/(1+E13))) -> -2.62% | L14: Les frais financiers supplémentaires ne doivent pas dépasser | M14: =M10-(M11*(M13/(1+M13))) -> 2.50% du CA
E15: =E6-(E9-D9) -> 2,667 | F15: =F6-(F9-E9) -> -17,301 | G15: -22,145 | H15: -28,346 | I15: -36,282
B18: Croissance nécessaire | E18: 171.43 | L18: 30% | M18: 100 | N18: =ROUND(M18/2.3,2) -> 43.48
B19: Frais fixes | D19: 100 | E19: 100 | K19: CP | L19: Dettes LMT
B20: frais variables | D20: 35 | E20: =+E18*30% -> 51.429 | K20: 12000 | L20: =ROUND(K20*(1+L18),2) -> 15600 | M20: =SUM(K20:L20) -> 27600
B21: Frais financiers | D21: 5 | E21: 5
B22: Résultat avanr impôt | D22: 15 | E22: =E18-E19-E20-E21 -> 15.001
D23: =(D19+D21+D22)/(1-30%) -> 171.4285714
D25: CA | E25: 660 | F25: 100%
D26: ebe | E26: 53 | F26: =+E26/E25 -> 8.0%
D27: amort | E27: 15
D28: ff | E28: 4
B29: =1/2 -> 50.00% | D29: IS | E29: =ROUND((E26-E27-E28)*B29,0) -> 17
D30: RN | E30: =E26-E27-E28-E29 -> 17
D31: CAF | E31: =E30+E27 -> 32 | F31: =+E31/E25 -> 4.8%
E32: =ROUND(((E26-E27-E28)*(1-B29))+E27,0) -> 32
D33: BFRE | E33: =ROUND(E25*12%,0) -> 79 | F33: =ROUND(E33/E25,2) -> 12.00%
E35: =((E26+E27-E28)*(1-B29))/E25 -> 4.85% | F35: =+E35/F33 -> 0.404040404 | G35: =+F35*2 -> 0.8080808081 | H35: =+G35/(1+G35) -> 0.4469273743
E37: =E26/E25 -> 0.0803030303 | G37: =(E28-E27)/E25 -> -0.01666666667
